Workbook

Sheet AgreementSummary
A1: 2022-02-15
A2: 1
A3: 0
A5: AnalyticalSourcingApps Engine Ver16 06/06/2022

Sheet Agreement
A5: 2002-05-15

Sheet AsmntOrg
A3: Enter Name of Organization being Assessed
C4: Rigid Behavior | D4: 1 | E4: 2 | F4: 3 | G4: 4 | H4: 5 | I4: 6 | J4: 7 | K4: Flexible Behavior
A5: 1 | C5: People see outcomes in terms of the actions of others (helplessness) | D5: C | J5: D | K5: People see outcomes in terms of their actions (cause and effect)
A6: 2 | C6: All tasks are done perfectly/the best way | E6: C | H6: D | K6: Admits to not doing things perfectly
A7: 3 | C7: Rejects advice | F7: C | J7: D | K7: Asks for assistance
A8: 4 | C8: Defends current practices | D8: C | I8: D | K8: Questions current practices
A9: 5 | C9: Everything is under control | F9: C | I9: D | K9: Acknowledges not all tasks are under control or controllable
A10: 6 | C10: Our business is unique, and new concepts don't fit | D10: C | H10: D | K10: Adapts new concepts to internal problems or tasks
A11: 7 | C11: Concerned only with self | D11: C | I11: D | K11: Concern for others
A12: 8 | C12: Uses value-judging language (should, ought, must) | E12: C | I12: D | K12: Uses affirming language (appreciate, understand)
A13: 9 | C13: Always has or knows the answer | F13: C | I13: D | K13: Is curious- okay to ask "Why?"
A14: 10 | C14: Risks are not to be taken | F14: C | I14: D | K14: Supportive environment
A15: 11 | C15: Tense silence | F15: C | J15: D | K15: Highly participative
D16: 1 | E16: 2 | F16: 3 | G16: 4 | H16: 5 | I16: 6 | J16: 7
A17: 12 | C17: Only able to function with precise instructions | F17: C | I17: D | K17: Deals well with uncertainty
A18: 13 | C18: Scripted reactions | F18: C | I18: D | K18: Spontaneous responses
A19: 14 | C19: Everything is done by the book | F19: C | I19: D | K19: Finds creative ways to solve problems
A20: 15 | C20: Failure is unacceptable (feelings are repressed or acted out) | D20: C | J20: D | K20: Accepts failures as a normal consequence of business activity (feel sad/depressed when failure occurs, but processes feelings)
A21: 16 | C21: Feelings are expressed through acting them out (including silent rage) | D21: C | J21: D | K21: Feelings are expressed by talking about them
A22: 17 | C22: Problems are secrets not to be shared | D22: C | J22: D | K22: Problems are shared openly across functions
A23: 18 | C23: People are not equal | D23: C | J23: D | K23: People are viewed as equals
A24: 19 | C24: Failure is to be avoided at all costs | D24: C | J24: D | K24: Failure is a stepping stone to success
A25: 20 | C25: Information is used as currency | D25: C | J25: D | K25: Information is shared openly and moves through the organization quickly
A26: 21 | C26: Questions are threatening | D26: C | J26: D | K26: Not threatened by questions
A27: 22 | C27: Praise is generally followed by a "request" or threat; i.e., "you were lucky this time" | F27: C | J27: D | K27: Praise is accepted and is a cause for celebration
A28: 23 | C28: Change is agreed to reluctantly and threats are used to manage risk (failure is always the responsibility of the employee) | F28: C | J28: D | K28: Change is encouraged and negative consequences are managed via risk management techniques
D29: 1 | E29: 2 | F29: 3 | G29: 4 | H29: 5 | I29: 6 | J29: 7
A30: Current Behavior Score= | G30: Desired Behavior Score=
F32: Scoring
D33: Grand Total | J33: Organization Type
D34: <47 | K34: Rigid (Learned)
D35: 47-81 | K35: Borderline Rigid
D36: 82-133 | K36: Borderline Flexible
D37: >133 | K37: Flexible (Learning)

Sheet AsmntRel
A3: Enter Name of Organization Being Assessed
C4: Inward Looking Behaviors | D4: 1 | E4: 2 | F4: 3 | G4: 4 | H4: 5 | I4: 6 | J4: 7 | K4: Outward Looking Behaviors
A5: 1 | C5: Focus on current transaction | D5: C | H5: D | K5: Focus on future business
A6: 2 | C6: Buyer/Seller is expendable | H6: D | K6: Buyer/Seller is key part of business
A7: 3 | C7: Buyer/Seller assumes no risk | H7: C | I7: D | K7: Buyer/Seller shares in the business risk
A8: 4 | C8: Few face-to-face communications | F8: C | I8: D | K8: Frequent face-to-face communication
A9: 5 | C9: No executive interaction | G9: C | I9: D | K9: Frequent executive interaction
A10: 6 | C10: Single-point communication | G10: C | I10: D | K10: Multiple-point communication
A11: 7 | C11: Do not share forecast usage | E11: C | I11: D | K11: Share forecast for parts and demand
A12: 8 | C12: No direct computer-to-computer links | F12: C | I12: D | K12: Direct computer to computer links
A13: 9 | C13: Long-term relationship established day by day | G13: C | I13: D | K13: Long-term relationship is a vision both parties are working towards
A14: 10 | C14: Little exchange of technical information | H14: C | I14: D | K14: High exchange of technical information
A15: 11 | C15: No joint committees | G15: C | H15: D | K15: Joint committees on key issues
A16: 12 | C16: Deal with exceptions by legal mechanisms | H16: C | I16: D | K16: Deal with exceptions by negotiation
A17: 13 | C17: Detect errors through verification | G17: C | I17: D | K17: Joint monitoring of processes to prevent errors
A18: 14 | C18: Agreements have termination dates | G18: C | I18: D | K18: Agreements are ongoing (evergreen)
A19: 15 | C19: Low willingness to assist Buyer/Seller in difficult situations | G19: C | I19: D | K19: High willingness to assist Buyer/Seller in difficult situations
A20: 16 | C20: Buyer/Seller does not understand application of their product | G20: C | I20: D | K20: Buyer/Seller understands the application of their product
A21: 17 | C21: We do not study Buyer/Seller's process | G21: C | I21: D | K21: We study the Buyer/Seller's process
A22: 18 | C22: Buyer/Seller is satisfied with their current performance | J22: S | K22: Buyer/Seller is continuously improving their process
A23: 19 | C23: The decision to Buyer/Seller was made on the basis of price | I23: D | K23: The decision to Buyer/Seller was made on the basis of total value
D24: 1 | E24: 2 | F24: 3 | G24: 4 | H24: 5 | I24: 6 | J24: 7
A25: Current Behavior Score= | G25: Desired Behavior Score=
F26: Scoring
D27: Grand Total | J27: Organization Type
D28: <47 | K28: Antagonistic
D29: 47-95 | K29: Adversarial
D30: 96-114 | K30: Cooperative
D31: >114 | K31: Creative

Sheet AsmntTeam
A3: Enter Team Description
A4: Maxim 1: Taskwork and teamwork are separate.
A5: Observations:
B6: Taskwork is work done by individuals (i.e., autonomously)
B7: Teamwork is work done interactively (i.e. interdependently)
A8: Estimate of team's conformance with the stated maxim:
C9: 0 | D9: 0.1 | E9: 0.2 | F9: 0.3 | G9: 0.4 | H9: 0.5 | I9: 0.6 | J9: 0.7 | K9: 0.8 | L9: 0.9 | M9: 1
C10: 0 | D10: 1 | E10: 2 | F10: 3 | G10: 4 | H10: 5 | I10: 6 | J10: 7 | K10: 8 | L10: 9 | M10: 10
I11: X
A12: Maxim 2: Team members observe each other's work.
A13: Observations:
B14: Members trust one another
B15: The feeling is we are here to maximize the performance of the team
A16: Estimate of team's conformance with the stated maxim:
C17: 0 | D17: 0.1 | E17: 0.2 | F17: 0.3 | G17: 0.4 | H17: 0.5 | I17: 0.6 | J17: 0.7 | K17: 0.8 | L17: 0.9 | M17: 1
C18: 0 | D18: 1 | E18: 2 | F18: 3 | G18: 4 | H18: 5 | I18: 6 | J18: 7 | K18: 8 | L18: 9 | M18: 10
J19: X
A20: Maxim 3: Team members provide and accept input from each other.
A21: Observations:
B22: Members feel free to provide feedback
B23: Organizational heirarchies do not stand in the way of providing feedback
B24: Members share their strengths and weaknesses
B25: Team leaders demonstrate receptivity to constructive feedback
A26: Estimate of team's conformance with the stated maxim:
C27: 0 | D27: 0.1 | E27: 0.2 | F27: 0.3 | G27: 0.4 | H27: 0.5 | I27: 0.6 | J27: 0.7 | K27: 0.8 | L27: 0.9 | M27: 1
C28: 0 | D28: 1 | E28: 2 | F28: 3 | G28: 4 | H28: 5 | I28: 6 | J28: 7 | K28: 8 | L28: 9 | M28: 10
G29: X
A30: Maxim 4: Team members' use closed-loop communication to ensure effective communication.
A31: Observations:
B32: Closed-loop communication is a message where the sender initiates a message;
B33: the receiver receives the message and acknowledges its receipt; the sender checks
B34: again to ensure that the message that was sent is the message that was received.
A35: Estimate of team's conformance with the stated maxim:
C36: 0 | D36: 0.1 | E36: 0.2 | F36: 0.3 | G36: 0.4 | H36: 0.5 | I36: 0.6 | J36: 0.7 | K36: 0.8 | L36: 0.9 | M36: 1
C37: 0 | D37: 1 | E37: 2 | F37: 3 | G37: 4 | H37: 5 | I37: 6 | J37: 7 | K37: 8 | L37: 9 | M37: 10
G38: X
A39: Maxim 5: Team members provide back-up to each other during task.
A40: Observations:
B41: Members jump in and help when needed and accept assistance when offered
B42: Members know the technical tasks of their position and those of other team members
A43: Estimate of team's conformance with the stated maxim:
C44: 0 | D44: 0.1 | E44: 0.2 | F44: 0.3 | G44: 0.4 | H44: 0.5 | I44: 0.6 | J44: 0.7 | K44: 0.8 | L44: 0.9 | M44: 1
C45: 0 | D45: 1 | E45: 2 | F45: 3 | G45: 4 | H45: 5 | I45: 6 | J45: 7 | K45: 8 | L45: 9 | M45: 10
K46: X
A47: Maxim 6: Team members view the "team" as an integrated whole.
A48: Observations:
B49: Team members share the attitude that they are a team
B50: People on effective teams see themselves as team members first
A51: Estimate of team's conformance with the stated maxim:
C52: 0 | D52: 0.1 | E52: 0.2 | F52: 0.3 | G52: 0.4 | H52: 0.5 | I52: 0.6 | J52: 0.7 | K52: 0.8 | L52: 0.9 | M52: 1
C53: 0 | D53: 1 | E53: 2 | F53: 3 | G53: 4 | H53: 5 | I53: 6 | J53: 7 | K53: 8 | L53: 9 | M53: 10
I54: X
A55: Maxim 7: Team members nurture mutual dependence.
A56: Observations:
B57: Team members view mutual dependence as a strength
B58: Team members see that their success depends on the success of other team members
A59: Estimate of team's conformance with the stated maxim:
C60: 0 | D60: 0.1 | E60: 0.2 | F60: 0.3 | G60: 0.4 | H60: 0.5 | I60: 0.6 | J60: 0.7 | K60: 0.8 | L60: 0.9 | M60: 1
C61: 0 | D61: 1 | E61: 2 | F61: 3 | G61: 4 | H61: 5 | I61: 6 | J61: 7 | K61: 8 | L61: 9 | M61: 10
K62: X
A63: Maxim 8: A team members' behavior is a function of circumstances.
A64: Observations:
B65: Effective teams do not engage in ritualistic behavior (behavior as a practiced rite i.e., ceremonial)
B66: As circumstances dictate members engage in autocratic or democratic behavior
B67: Real teams demonstrate a balance between behaviors that nurture the team cohesiveness and
B68: behaviors that assist in completing the team's objectives
A69: Estimate of team's conformance with the stated maxim:
C70: 0 | D70: 0.1 | E70: 0.2 | F70: 0.3 | G70: 0.4 | H70: 0.5 | I70: 0.6 | J70: 0.7 | K70: 0.8 | L70: 0.9 | M70: 1
C71: 0 | D71: 1 | E71: 2 | F71: 3 | G71: 4 | H71: 5 | I71: 6 | J71: 7 | K71: 8 | L71: 9 | M71: 10
H72: X
A73: Maxim 9: Teams change over time.
A74: Observations:
B75: No change in the way a team behaves implies that they are stuck in their development process.
B76: Team development stages are:
B77: (1) Individuals ask "Why am I here?" and "What am I supposed to do?"- (storming)
B78: (2) Members' start communicating (members check with each other and ask questions) - (norming)
B79: (3) Teams exhibit greater coordination in all of their activities - (performing)
A80: Estimate of team's conformance with the stated maxim:
C81: 0 | D81: 0.1 | E81: 0.2 | F81: 0.3 | G81: 0.4 | H81: 0.5 | I81: 0.6 | J81: 0.7 | K81: 0.8 | L81: 0.9 | M81: 1
C82: 0 | D82: 1 | E82: 2 | F82: 3 | G82: 4 | H82: 5 | I82: 6 | J82: 7 | K82: 8 | L82: 9 | M82: 10
I83: X
D85: Team assessment scoring
D86: 54 | E86: is this team's score
C88: <= | D88: 45 | E88: Pseudo Team or Dysfunctional Team (if long standing)
C89: 46 - | D89: 70 | E89: Effective Team
C90: >= | D90: 71 | E90: High Performance Team

Sheet BidFactorCost
A3: Supplier Number | B3: #1 | C3: #2 | D3: # 3
A4: Quoted Price New Item | B4: 6.38 | C4: 6.9 | D4: 7.1
A5: Real Cost of New Item (see below) | B5: =B21 -> 7.021828 | C5: =C21 -> 7.405655 | D5: =D21 -> 7.328383333
A6: 12 Month History
A7: Dollar Volume | B7: 250000 | C7: 300000 | D7: 300000
A8: Additional Costs
A9: Price Increases | B9: 1100 | C9: 900 | D9: 200
A10: Additional Inspection | B10: 500 | C10: 375 | D10: 125
A11: Scrap, Rework, Rejections | B11: 0 | C11: 0 | D11: 0
A12: Delivery (early/late) | B12: 100 | C12: 500 | D12: 75
A13: Engineering Development Charges | B13: 5000 | C13: 3250 | D13: 1250
A14: Tooling Expenses | B14: 9950 | C14: 6980 | D14: 5500
A15: Expediting Costs | B15: 0 | C15: 0 | D15: 0
A16: Billed Overtime | B16: 8500 | C16: 9980 | D16: 2500
A17: Other | B17: 0 | C17: 0 | D17: 0
A18: Total Additional Costs | B18: =SUM(B9:B17) -> 25150 | C18: =SUM(C9:C17) -> 21985 | D18: =SUM(D9:D17) -> 9650
A19: Total Cost Including Purchases | B19: =B7+B18 -> 275150 | C19: =C7+C18 -> 321985 | D19: =D7+D18 -> 309650
A20: Bid Factor to Apply to Future Quotations | B20: =IF(B7>0,B19/B7,"NA") -> 1.1006 | C20: =IF(C7>0,C19/C7,"NA") -> 1.073283333 | D20: =IF(D7>0,D19/D7,"NA") -> 1.032166667
A21: Real Cost of New Item | B21: =B4*B20 -> 7.021828 | C21: =C4*C20 -> 7.405655 | D21: =D4*D20 -> 7.328383333

Sheet BidFactorEvent
D3: Supplier
A4: Performance Measurments | C4: $ per event | D4: #1 | E4: #2 | F4: # 3
A5: Quality | B5: Rejections | C5: 1000 | D5: 2 | E5: 5 | F5: 7
A6: Delivery | B6: Early | C6: 100 | D6: 15 | E6: 10 | F6: 12
B7: Late | C7: 500 | D7: 24 | E7: 12 | F7: 8
A8: Quantity | B8: Under | C8: 500 | D8: 25 | E8: 36 | F8: 24
B9: Over | C9: 100 | D9: 15 | E9: 35 | F9: 12
A10: Total Non-Productive Costs | D10: =$C$5*D5+$C$6*D6+$C$7*D7+$C$8*D8+$C$9*D9 -> 29500 | E10: =$C$5*E5+$C$6*E6+$C$7*E7+$C$8*E8+$C$9*E9 -> 33500 | F10: =$C$5*F5+$C$6*F6+$C$7*F7+$C$8*F8+$C$9*F9 -> 25400
A11: Purchases from this supplier | D11: 150000 | E11: 150000 | F11: 150000
A12: Bid Factor for this Supplier | D12: =IF(D11>0,(1+ D10/D11),"N.A.") -> 1.196666667 | E12: =IF(E11>0,(1+ E10/E11),"N.A.") -> 1.223333333 | F12: =IF(F11>0,(1+ F10/F11),"N.A.") -> 1.169333333

Sheet BreakEven
A3: Trial Shown in Graph
A4: Units | B4: 50 | C4: 100 | D4: 150 | E4: 200 | F4: 250
A5: Unit Selling Price | B5: 8 | C5: 7 | D5: 6.8 | E5: 6.7 | F5: 6.64
A6: Unit Variable Cost Less Profit | B6: 5.87 | C6: 5.87 | D6: 5.87 | E6: 5.87 | F6: 5.87
A7: Total Fixed Cost | B7: 60 | C7: 60 | D7: 60 | E7: 60 | F7: 60
A8: Unit Sales for Break-Even | B8: =IF((B5-B6)>0,CEILING(B7/(B5-B6),1),"Not Logical") -> 29 | C8: =IF((C5-C6)>0,CEILING(C7/(C5-C6),1),"Not Logical") -> 54 | D8: =IF((D5-D6)>0,CEILING(D7/(D5-D6),1),"Not Logical") -> 65 | E8: =IF((E5-E6)>0,CEILING(E7/(E5-E6),1),"Not Logical") -> 73 | F8: =IF((F5-F6)>0,CEILING(F7/(F5-F6),1),"Not Logical") -> 78
A9: Dollar Sales for Break-Even | B9: =IF(B8="Not Logical",B8,B5*B8) -> 232 | C9: =IF(C8="Not Logical",C8,C5*C8) -> 378 | D9: =IF(D8="Not Logical",D8,D5*D8) -> 442 | E9: =IF(E8="Not Logical",E8,E5*E8) -> 489.1 | F9: =IF(F8="Not Logical",F8,F5*F8) -> 517.92
B28: Graph Creation Information
A29: Units | B29: Fixed Costs | C29: Total Costs | D29: Sales
A30: 0 | B30: 60 | C30: 60 | D30: 0
A31: 65 | B31: 60 | C31: 441.55 | D31: 442
A32: 130 | B32: 60 | C32: 823.1 | D32: 884

Sheet EOQ
A3: Trial # | B3: 1 | C3: 2 | D3: 3 | E3: 4 | F3: 5
A4: Annual usage in Units | B4: 1000 | C4: 1000 | D4: 1000 | E4: 1000 | F4: 1000
A5: Order Costs | B5: 50 | C5: 50 | D5: 50 | E5: 50 | F5: 50
A6: Unit Costs | B6: 8 | C6: 7 | D6: 6.8 | E6: 6.7 | F6: 6.64
A7: Order Quantity* | B7: 50 | C7: 100 | D7: 150 | E7: 200 | F7: 250
A8: Carrying Cost as % of Inventory | B8: 20 | C8: 20 | D8: 20 | E8: 20 | F8: 20
A9: EOQ | B9: =IF(B6*B8>0,ROUNDUP((SQRT((2*B4*B5)/(B6*B8/100))),0),"Not Logical") -> 250 | C9: 268 | D9: 272 | E9: 274 | F9: 275
A10: Total Annual Cost ** | B10: 9040 | C10: 7570 | D10: 7252 | E10: 7084 | F10: 7006
A11: Minimum Order Quantity | B11: 50 | C11: 100 | D11: 150 | E11: 200 | F11: 250
A12: * May be a range,e.g. 75-125 | B12: EOQ not = | C12: EOQ not = | D12: EOQ not = | E12: EOQ not = | F12: EOQ not =
B13: Order Qty | C13: Order Qty | D13: Order Qty | E13: Order Qty | F13: Order Qty
A14: ** To see how Total Annual Cost is calculated, Click on Help This Sheet, then click on Theory

Sheet EPQ
A3: Trial # | B3: 1 | C3: 2 | D3: 3 | E3: 4
A4: Units to be produced annually | B4: 1200 | C4: 1200 | D4: 1200 | E4: 1200
A5: Setup Costs in Dollars | B5: 100 | C5: 50 | D5: 25 | E5: 4.15
A6: Unit Production Costs in Dollars | B6: 10 | C6: 10 | D6: 10 | E6: 10
A7: Order Quantity Needed * | B7: 100 | C7: 100 | D7: 100 | E7: 100
A8: Carrying cost as % of production cost | B8: 10 | C8: 10 | D8: 10 | E8: 10
A9: EPQ | B9: =IF(B6*B8>0,ROUNDUP((SQRT((2*B4*B5)/((B8/100)*B6))),0),"Not Logical") -> 490 | C9: =IF(C6*C8>0,ROUNDUP((SQRT((2*C4*C5)/((C8/100)*C6))),0),"Not Logical") -> 347 | D9: =IF(D6*D8>0,ROUNDUP((SQRT((2*D4*D5)/((D8/100)*D6))),0),"Not Logical") -> 245 | E9: =IF(E6*E8>0,ROUNDUP((SQRT((2*E4*E5)/((E8/100)*E6))),0),"Not Logical") -> 100
A10: Total Annual Production Cost | B10: 13250 | C10: 12650 | D10: 12350 | E10: 12099.8
A11: Minimum Production Quantity | B11: 100 | C11: 100 | D11: 100 | E11: 100
A12: * May be a range,e.g. 75-125 | B12: EPQ not = | C12: EPQ not = | D12: EPQ not =
B13: Order Qty | C13: Order Qty | D13: Order Qty

Sheet EquipmentTOC
A3: Suppliers | B3: #1 | C3: #2 | D3: #3
A4: Acquistion Costs
A5: Price Quoted | B5: 1500000 | C5: 2000000 | D5: 1600000
A6: End of life Value(usually negative) | B6: -50000 | C6: -60000 | D6: -35000
A7: Cost Associated with Payment | B7: 135000 | C7: 135000 | D7: 125000
A8: Other | B8: 0 | C8: 0 | D8: 0
A9: Total Acquisition Costs | B9: =SUM(B5:B8) -> 1585000 | C9: =SUM(C5:C8) -> 2075000 | D9: =SUM(D5:D8) -> 1690000
A10: Non-Recurring Acquisition Costs
A11: Transportation | B11: 2500 | C11: 2000 | D11: 1500
A12: Rigging | B12: 5000 | C12: 5000 | D12: 5000
A13: Installation | B13: 10000 | C13: 8000 | D13: 7500
A14: Training(operator & maintenance) | B14: 1500 | C14: 1500 | D14: 1500
A15: Other | B15: 0 | C15: 0 | D15: 0
A16: Total Non-recurring Acquisition Costs | B16: =SUM(B11:B15) -> 19000 | C16: =SUM(C11:C15) -> 16500 | D16: =SUM(D11:D15) -> 15500
A17: Ongoing Expenses
A18: Preventive maintenance | B18: 75000 | C18: 85000 | D18: 1250000
A19: Consumable supplies | B19: 3000000 | C19: 3600000 | D19: 4250000
A20: Spare parts | B20: 37500 | C20: 50000 | D20: 40000
A21: Other | B21: 0 | C21: 0 | D21: 0
A22: Total Ongoing Expenses | B22: =SUM(B18:B21) -> 3112500 | C22: =SUM(C18:C21) -> 3735000 | D22: =SUM(D18:D21) -> 5540000
A23: Total Cost of Ownership | B23: =B9+B16+B22 -> 4716500 | C23: =C9+C16+C22 -> 5826500 | D23: =D9+D16+D22 -> 7245500
A24: Useful life (years) | B24: 15 | C24: 15 | D24: 15
A25: Annual Production Quantity (units) | B25: 4000000 | C25: 4000000 | D25: 4000000
A26: Cost per unit over life of equipment | B26: =IF((B24*B25)>0,B23/(B24*B25),"NA") -> 0.07860833333 | C26: =IF((C24*C25)>0,C23/(C24*C25),"NA") -> 0.09710833333 | D26: =IF((D24*D25)>0,D23/(D24*D25),"NA") -> 0.1207583333

Sheet ExtendedTerms
B3: #1 | C3: #2 | D3: #3 | E3: # 4 | F3: # 5
A4: Quoted Net Payment Due (in days) | B4: 30 | C4: 40 | D4: 30 | E4: 30 | F4: 30
A5: Number of Days Payment is Extended | B5: 15 | C5: 15 | D5: 15 | E5: 15 | F5: 15
A6: Cost of Capital (percent) | B6: 8 | C6: 9 | D6: 10 | E6: 11 | F6: 12
A7: Payment Amount in Dollars | B7: 100000 | C7: 100000 | D7: 100000 | E7: 100000 | F7: 100000
A8: Dollar Value of this Extended Payment* | B8: =((B6*B7)/100)*(B5/360) -> 333.3333333 | C8: =((C6*C7)/100)*(C5/360) -> 375 | D8: =((D6*D7)/100)*(D5/360) -> 416.6666667 | E8: =((E6*E7)/100)*(E5/360) -> 458.3333333 | F8: =((F6*F7)/100)*(F5/360) -> 500
A9: Annual Value (assume event occurs monthly) | B9: =B8*12 -> 4000 | C9: =C8*12 -> 4500 | D9: =D8*12 -> 5000 | E9: =E8*12 -> 5500 | F9: =F8*12 -> 6000
A10: *360 day year is used for calculations

Sheet FinancialData
B3: Check box to include in following charts
B4: Values in Millions | C4: Supplier #1 20xx | D4: Supplier #1 20xx-1 | E4: Supplier #2 20xx | F4: Supplier #2 20xx-1 | G4: Industry Norm 20xx
B5: Cash | C5: 238 | D5: 930 | E5: 260 | F5: 212 | G5: 140.4
B6: Accounts Receivable | C6: 1445 | D6: 1529 | E6: 2250 | F6: 1521 | G6: 396.5
B7: Notes Receivable
B8: Inventory | C8: 1996 | D8: 1871 | E8: 1950 | F8: 756 | G8: 450
B9: Other Current Assets | C9: 450 | D9: 588 | E9: 280 | F9: 168 | G9: 57.9
B10: Total Current Assets | C10: =SUM(C5:C9) -> 4129 | D10: =SUM(D5:D9) -> 4918 | E10: =SUM(E5:E9) -> 4740 | F10: =SUM(F5:F9) -> 2657 | G10: =SUM(G5:G9) -> 1044.8
B11: Fixed Assets | C11: =3638+1099 -> 4737 | D11: =3897+1048 -> 4945 | E11: 1690 | F11: 435 | G11: 257.6
B12: Other non-Current Assets | C12: =1179+337 -> 1516 | D12: =446+446 -> 892 | E12: 420 | F12: 140 | G12: 141.8
B13: Total Assets | C13: =C10+C11+C12 -> 10382 | D13: =D10+D11+D12 -> 10755 | E13: =E10+E11+E12 -> 6850 | F13: =F10+F11+F12 -> 3232 | G13: =G10+G11+G12 -> 1444.2
B14: Accounts Payable | C14: =1073 -> 1073 | D14: 1221 | E14: 1300 | F14: 1328 | G14: 215.6
B15: Principal Due Next Year | C15: =473+145 -> 618 | D15: =150+182 -> 332 | E15: 8 | F15: 7 | G15: 11.6
B16: Short term portion of notes payable | C16: in above | D16: in above | E16: 100 | F16: 57 | G16: 57.9
B17: Other Current Liabilities | C17: =1649+263 -> 1912 | D17: =1948+4 -> 1952 | E17: 520 | F17: 319 | G17: 196.8
B18: Total Current Liabilities | C18: =SUM(C14:C17) -> 3603 | D18: =SUM(D14:D17) -> 3505 | E18: =SUM(E14:E17) -> 1928 | F18: =SUM(F14:F17) -> 1711 | G18: =SUM(G14:G17) -> 481.9
B19: Long Term Debt | C19: 1914 | D19: 1777 | E19: 1000 | F19: 454 | G19: 195.3
B20: Other Long Term Liabilities | C20: 1289 | D20: =1148+1663 -> 2811 | E20: 15 | F20: 4.6 | G20: 0
B21: Deferred Credits | C21: 593 | D21: 412 | E21: 30 | F21: 6 | G21: 0
B22: Net Worth | C22: =C13-(C18+C19+C20+C21) -> 2983 | D22: =D13-(D18+D19+D20+D21) -> 2250 | E22: =E13-(E18+E19+E20+E21) -> 3877 | F22: =F13-(F18+F19+F20+F21) -> 1056.4 | G22: =G13-(G18+G19+G20+G21) -> 767
B23: Total Liabilities & Net Worth | C23: =C18+SUM(C19:C22) -> 10382 | D23: =D18+SUM(D19:D22) -> 10755 | E23: =E18+SUM(E19:E22) -> 6850 | F23: =F18+SUM(F19:F22) -> 3232 | G23: =G18+SUM(G19:G22) -> 1444.2
B24: Net Sales | C24: 11831 | D24: 15560 | E24: 18000 | F24: 3703.8 | G24: 3191.779
B25: Income Before Interest & Taxes | C25: =11831-9912 -> 1919 | D25: =12042-9923 -> 2119 | E25: 4000 | F25: 1066.7 | G25: 1227.9
B26: Net Profit after Tax & Adjustments | C26: -273 | D26: -712 | E26: 600 | F26: 192.6 | G26: 74.355
B27: Before tax Profit | C27: -291 | D27: 702 | E27: 610 | F27: 250 | G27: 76
B28: Working Capital | C28: =C10-C18 -> 526 | D28: =D10-D18 -> 1413 | E28: =E10-E18 -> 2812 | F28: =F10-F18 -> 946 | G28: =G10-G18 -> 562.9
B29: Depreciation | C29: 504 | D29: 529 | E29: 130 | F29: 270 | G29: 134.599
B30: Interest Expenses | C30: 257 | D30: 220 | E30: 102 | F30: 57 | G30: 21.406
B31: Retained Earnings | C31: 747 | D31: 1594 | E31: 888 | F31: 1300 | G31: 61.708
B32: MktValue Common Stock | C32: =((45+25.88)/2)*(115/0.83) -> 4910.361446 | D32: =((62+40.88)/2)*(138/0.98) -> 7243.591837 | E32: 5500 | F32: 100 | G32: 200
B33: MktValue Preffered Stock | C33: 0 | D33: 0 | E33: 380 | F33: 34 | G33: 12
B34: MktValue Other Stock1 | C34: 0 | D34: 0 | E34: 0 | F34: 45 | G34: 6
B35: Note 1: Enter Book Value of Equity in this row for a Private Company
A99: 5 | B99: C | C99: D | D99: E | E99: F | F99: G
B100: Values in Millions | C100: Supplier #1 20xx | D100: Supplier #1 20xx-1 | E100: Supplier #2 20xx | F100: Supplier #2 20xx-1 | G100: Industry Norm 20xx
B101: Total Current Assets | C101: 4129 | D101: 4918 | E101: 4740 | F101: 2657 | G101: 1044.8
B102: Total Assets | C102: 10382 | D102: 10755 | E102: 6850 | F102: 3232 | G102: 1444.2
B103: Total Current Liabilities | C103: 3603 | D103: 3505 | E103: 1928 | F103: 1711 | G103: 481.9
B104: Total Liabilities & Net Worth | C104: 10382 | D104: 10755 | E104: 6850 | F104: 3232 | G104: 1444.2
B105: Total Liabilities & Net Worth | C105: 10755 | D105: 6850 | E105: 3232 | F105: 1444.2 | G105: 1444.2
B106: MktValue Other Stock1 | C106: 0 | D106: 0 | E106: 45 | F106: 6 | G106: 6

Sheet IntlPurchTOC
A3: Suppliers | B3: San Ramos | C3: Bleeker Ltd. | D3: Lee Ho Ltd.
A4: Base Price or Unit Price | B4: 46.88 | C4: 49.5 | D4: 43.5
A5: Quantity to be Sourced Internationally | B5: 100000 | C5: 100000 | D5: 100000
A6: Number of Shipments per year | B6: 12 | C6: 12 | D6: 12
A7: Shipment Costs
A8: Packaging | B8: 102000 | C8: 90000 | D8: 86800
A9: Inspection Fees (if at export) | B9: 9600 | C9: 8400 | D9: 10200
A10: Transportation Cost to Port of Entry | B10: 195800 | C10: 504000 | D10: 522000
A11: Letter of Credit Costs | B11: 0 | C11: 0 | D11: 21750
A12: Cost of paying earlier than standard terms | B12: 0 | C12: 0 | D12: 0
A13: Marine Insurance | B13: 0 | C13: 25000 | D13: 25000
A14: Tooling | B14: 75000 | C14: 100000 | D14: 50000
A15: Exchange rate Hedging | B15: 0 | C15: 0 | D15: 0
A16: Other Costs | B16: 0 | C16: 0 | D16: 0
A17: Total Shipment Costs | B17: =SUM(B8:B16) -> 382400 | C17: =SUM(C8:C16) -> 727400 | D17: =SUM(D8:D16) -> 715750
A18: Port of Entry Costs
A19: Customs Duties | B19: 0 | C19: 90000 | D19: 87000
A20: Duty Drawback (negative number) | B20: 0 | C20: -45000 | D20: -43500
A21: Customs Brokerage Fees | B21: 3000 | C21: 9000 | D21: 9000
A22: Customs Bond (pro-rated if applicable) | B22: 0 | C22: 0 | D22: 0
A23: Freight from port of entry to destination | B23: 326400 | C23: 225000 | D23: 340000
A24: Inspection fees (if at port) | B24: 0 | C24: 0 | D24: 0
A25: U.S. Port Terminal & Handling Fees | B25: 0 | C25: 5880 | D25: 5880
A26: Other costs | B26: 0 | C26: 0 | D26: 0
A27: Total Port of Entry Costs | B27: =SUM(B19:B26) -> 329400 | C27: =SUM(C19:C26) -> 284880 | D27: =SUM(D19:D26) -> 398380
A28: Additional Internal Costs
A29: Additional Inventory Costs | B29: 0 | C29: 18562.5 | D29: 37125
A30: Additional Administrative Costs | B30: 0 | C30: 0 | D30: 0
A31: Additional Travel Costs | B31: 2000 | C31: 4000 | D31: 8000
A32: Additional Communication Costs | B32: 0 | C32: 500 | D32: 1000
A33: Other Costs | B33: 0 | C33: 0 | D33: 0
A34: Total Internal Expenses | B34: =SUM(B29:B33) -> 2000 | C34: =SUM(C29:C33) -> 23062.5 | D34: =SUM(D29:D33) -> 46125
A35: Total Costs | B35: =B4*B5 +(B17+B27+B34) -> 5401800 | C35: =C4*C5 +(C17+C27+C34) -> 5985342.5 | D35: =D4*D5 +(D17+D27+D34) -> 5510255
A36: Unit Cost (including all costs above) | B36: =IF(B5>0,B35/B5,"NA") -> 54.018 | C36: =IF(C5>0,C35/C5,"NA") -> 59.853425 | D36: =IF(D5>0,D35/D5,"NA") -> 55.10255

Sheet Leverage
A2: Ratios | B2: Method of Calculation | C2: =FinancialData!C4 -> Supplier #1 20xx | D2: =FinancialData!D4 -> Supplier #1 20xx-1 | E2: =FinancialData!E4 -> Supplier #2 20xx | F2: =FinancialData!F4 -> Supplier #2 20xx-1 | G2: =FinancialData!G4 -> Industry Norm 20xx
A3: Collection Period | C3: =IF(FinancialData!C24<>0,(FinancialData!C6*365)/(FinancialData!C24),"NotKnown") -> 44.57991717 | D3: =IF(FinancialData!D24<>0,(FinancialData!D6*365)/(FinancialData!D24),"NotKnown") -> 35.86664524 | E3: =IF(FinancialData!E24<>0,(FinancialData!E6*365)/(FinancialData!E24),"NotKnown") -> 45.625 | F3: =IF(FinancialData!F24<>0,(FinancialData!F6*365)/(FinancialData!F24),"NotKnown") -> 149.8906528 | G3: 45
A4: Sales to Inventory | C4: =IF(FinancialData!C8<>0,FinancialData!C24/FinancialData!C8,"NotKnown") -> 5.927354709 | D4: =IF(FinancialData!D8<>0,FinancialData!D24/FinancialData!D8,"NotKnown") -> 8.316408338 | E4: =IF(FinancialData!E8<>0,FinancialData!E24/FinancialData!E8,"NotKnown") -> 9.230769231 | F4: =IF(FinancialData!F8<>0,FinancialData!F24/FinancialData!F8,"NotKnown") -> 4.899206349 | G4: =IF(FinancialData!G8<>0,FinancialData!G24/FinancialData!G8,"NotKnown") -> 7.092842222
A5: Assets to Sales | C5: =IF(FinancialData!C24<>0,FinancialData!C13/FinancialData!C24,"NotKnown") -> 0.8775251458 | D5: =IF(FinancialData!D24<>0,FinancialData!D13/FinancialData!D24,"NotKnown") -> 0.6911953728 | E5: =IF(FinancialData!E24<>0,FinancialData!E13/FinancialData!E24,"NotKnown") -> 0.3805555556 | F5: =IF(FinancialData!F24<>0,FinancialData!F13/FinancialData!F24,"NotKnown") -> 0.8726173119 | G5: =IF(FinancialData!G24<>0,FinancialData!G13/FinancialData!G24,"NotKnown") -> 0.4524749364
A6: Sales to Net Working Capital | C6: =IF(FinancialData!C28<>0,FinancialData!C24/FinancialData!C28,"NotKnown") -> 22.49239544 | D6: =IF(FinancialData!D28<>0,FinancialData!D24/FinancialData!D28,"NotKnown") -> 11.01203114 | E6: =IF(FinancialData!E28<>0,FinancialData!E24/FinancialData!E28,"NotKnown") -> 6.40113798 | F6: =IF(FinancialData!F28<>0,FinancialData!F24/FinancialData!F28,"NotKnown") -> 3.915221987 | G6: =IF(FinancialData!G28<>0,FinancialData!G24/FinancialData!G28,"NotKnown") -> 5.670241606
A7: Accounts Payable to Sales | C7: =IF(FinancialData!C24<>0,(FinancialData!C14/FinancialData!C24),"NotKnown") -> 0.09069393965 | D7: =IF(FinancialData!D24<>0,(FinancialData!D14/FinancialData!D24),"NotKnown") -> 0.07847043702 | E7: =IF(FinancialData!E24<>0,(FinancialData!E14/FinancialData!E24),"NotKnown") -> 0.07222222222 | F7: =IF(FinancialData!F24<>0,(FinancialData!F14/FinancialData!F24),"NotKnown") -> 0.3585506777 | G7: =IF(FinancialData!G24<>0,(FinancialData!G14/FinancialData!G24),"NotKnown") -> 0.06754853641
A8: Debt to Equity | C8: =IF(FinancialData!C22<>0,(FinancialData!C23-FinancialData!C22)/FinancialData!C22,"NotKnown") -> 2.48038887 | D8: =IF(FinancialData!D22<>0,(FinancialData!D23-FinancialData!D22)/FinancialData!D22,"NotKnown") -> 3.78 | E8: =IF(FinancialData!E22<>0,(FinancialData!E23-FinancialData!E22)/FinancialData!E22,"NotKnown") -> 0.7668300232 | F8: =IF(FinancialData!F22<>0,(FinancialData!F23-FinancialData!F22)/FinancialData!F22,"NotKnown") -> 2.059447179 | G8: =IF(FinancialData!G22<>0,(FinancialData!G23-FinancialData!G22)/FinancialData!G22,"NotKnown") -> 0.8829204694
A9: Current Debt to Equity | C9: =IF(FinancialData!C22<>0,(FinancialData!C18)/FinancialData!C22,"NotKnown") -> 1.207844452 | D9: =IF(FinancialData!D22<>0,(FinancialData!D18)/FinancialData!D22,"NotKnown") -> 1.557777778 | E9: =IF(FinancialData!E22<>0,(FinancialData!E18)/FinancialData!E22,"NotKnown") -> 0.4972917204 | F9: =IF(FinancialData!F22<>0,(FinancialData!F18)/FinancialData!F22,"NotKnown") -> 1.619651647 | G9: =IF(FinancialData!G22<>0,(FinancialData!G18)/FinancialData!G22,"NotKnown") -> 0.6282920469
A10: Interest Coverage | C10: =IF(FinancialData!C30<>0,(FinancialData!C27+FinancialData!C30)/FinancialData!C30,"NotKnown") -> -0.1322957198 | D10: =IF(FinancialData!D30<>0,(FinancialData!D27+FinancialData!D30)/FinancialData!D30,"NotKnown") -> 4.190909091 | E10: =IF(FinancialData!E30<>0,(FinancialData!E27+FinancialData!E30)/FinancialData!E30,"NotKnown") -> 6.980392157 | F10: =IF(FinancialData!F30<>0,(FinancialData!F27+FinancialData!F30)/FinancialData!F30,"NotKnown") -> 5.385964912 | G10: =IF(FinancialData!G30<>0,(FinancialData!G27+FinancialData!G30)/FinancialData!G30,"NotKnown") -> 4.550406428
A11: Debt Service | C11: =IF((FinancialData!C30+FinancialData!C15)<>0,(FinancialData!C27+FinancialData!C30+FinancialData!C29)/(FinancialData!C30+FinancialData!C15),"NotKnown") -> 0.5371428571 | D11: =IF((FinancialData!D30+FinancialData!D15)<>0,(FinancialData!D27+FinancialData!D30+FinancialData!D29)/(FinancialData!D30+FinancialData!D15),"NotKnown") -> 2.628623188 | E11: =IF((FinancialData!E30+FinancialData!E15)<>0,(FinancialData!E27+FinancialData!E30+FinancialData!E29)/(FinancialData!E30+FinancialData!E15),"NotKnown") -> 7.654545455 | F11: =IF((FinancialData!F30+FinancialData!F15)<>0,(FinancialData!F27+FinancialData!F30+FinancialData!F29)/(FinancialData!F30+FinancialData!F15),"NotKnown") -> 9.015625 | G11: =IF((FinancialData!G30+FinancialData!G15)<>0,(FinancialData!G27+FinancialData!G30+FinancialData!G29)/(FinancialData!G30+FinancialData!G15),"NotKnown") -> 7.029176513

Sheet PeqFdivQPlusV
A1: 5
A2: Note: Unit Variable Costs include Direct Material, Direct Labor, Manufacturing Overhead, and Profit
C3: Quote # | D3: 1 | E3: 2 | F3: 3 | G3: 4 | H3: 5
C4: Quantity | D4: 50 | E4: 100 | F4: 150 | G4: 200 | H4: 250
C5: Unit Price | D5: 8 | E5: 7 | F5: 6.8 | G5: 6.7 | H5: 6.64
C6: 5 | D6: =D4 -> 50 | E6: =E4 -> 100 | F6: =F4 -> 150 | G6: =G4 -> 200 | H6: =H4 -> 250
A7: PricePairs FixedCosts VarUnitCosts | B7: 1 & 2 $100.00 $6.00 | C7: 26 | D7: 8 | E7: 7 | F7: 6.666666667 | G7: 6.5 | H7: 6.4
A8: PricePairs FixedCosts VarUnitCosts | B8: 1 & 3 $90.00 $6.20 | C8: 24.19999723 | D8: 7.999999981 | E8: 7.100000134 | F8: 6.800000184 | G8: 6.65000021 | H8: 6.560000225
A9: PricePairs FixedCosts VarUnitCosts | B9: 1 & 4 $86.67 $6.27 | C9: 23.60000229 | D9: 8 | E9: 7.133333206 | F9: 6.844444275 | G9: 6.699999809 | H9: 6.61333313
A10: PricePairs FixedCosts VarUnitCosts | B10: 1 & 5 $85.00 $6.30 | C10: 23.30000124 | D10: 7.999999866 | E10: 7.14999979 | F10: 6.866666431 | G10: 6.724999752 | H10: 6.639999744
A11: PricePairs FixedCosts VarUnitCosts | B11: 2 & 3 $60.00 $6.40 | C11: 18.39998913 | D11: 7.599999428 | E11: 7 | F11: 6.800000191 | G11: 6.700000286 | H11: 6.640000343
A12: PricePairs FixedCosts VarUnitCosts | B12: 2 & 4 $60.00 $6.40 | C12: 18.40000725 | D12: 7.600000381 | E12: 7 | F12: 6.799999873 | G12: 6.699999809 | H12: 6.639999771
A13: PricePairs FixedCosts VarUnitCosts | B13: 2 & 5 $60.00 $6.40 | C13: 18.4000042 | D13: 7.600000076 | E13: 6.999999847 | F13: 6.799999771 | G13: 6.699999733 | H13: 6.63999971
A14: PricePairs FixedCosts VarUnitCosts | B14: 3 & 4 $60.00 $6.40 | C14: 18.40004444 | D14: 7.600003242 | E14: 7.000000954 | F14: 6.800000191 | G14: 6.699999809 | H14: 6.63999958
A15: PricePairs FixedCosts VarUnitCosts | B15: 3 & 5 $60.00 $6.40 | C15: 18.40002356 | D15: 7.600001583 | E15: 7.000000362 | F15: 6.799999955 | G15: 6.699999752 | H15: 6.63999963
A16: PricePairs FixedCosts VarUnitCosts | B16: 4 & 5 $60.00 $6.40 | C16: 18.39998865 | D16: 7.599998951 | E16: 6.999999523 | F16: 6.799999714 | G16: 6.699999809 | H16: 6.639999866

Sheet PaymentDiscount
A1: 7
A3: Trial# | B3: #1 | C3: #2 | D3: # 3 | E3: # 4 | F3: # 5
A4: Percent Discount | B4: 1 | C4: 1.5 | D4: 2 | E4: 2.5 | F4: 1
A5: Discount Period in Days | B5: 15 | C5: 15 | D5: 15 | E5: 15 | F5: 15
A6: Net Payment Due in Days | B6: 30 | C6: 30 | D6: 30 | E6: 30 | F6: 30
A7: Payment Amount in Dollars | B7: 100000 | C7: 100000 | D7: 100000 | E7: 100000 | F7: 100000
A8: Effective Annual Rate of Payment Discount* | B8: =IF(B6-B5>0,(((360/(B6-B5))*B4)/100),"Not Logical") -> 0.24 | C8: =IF(C6-C5>0,(((360/(C6-C5))*C4)/100),"error") -> 0.36 | D8: =IF(D6-D5>0,(((360/(D6-D5))*D4)/100),"error") -> 0.48 | E8: =IF(E6-E5>0,(((360/(E6-E5))*E4)/100),"error") -> 0.6 | F8: =IF(F6-F5>0,(((360/(F6-F5))*F4)/100),"error") -> 0.24
A9: Annual Value (assume event occurs monthly) | B9: =(B7)*12*(B4/100) -> 12000 | C9: =(C7)*12*(C4/100) -> 18000 | D9: =(D7)*12*(D4/100) -> 24000 | E9: =(E7)*12*(E4/100) -> 30000 | F9: =(F7)*12*(F4/100) -> 12000
A10: *360 day year is used for calculations

Sheet PPCalculator
A1: b
A3: Each 1% Improvement in | B3: Gives an operating income improvement of
A4: Price | B4: 0.111
A5: Variable Costs | B5: 0.078
A6: Volume | B6: 0.033
A7: Fixed Costs | B7: 0.023
A9: Scenario #1 | B9: Variable Cost Impact | D9: Assumptions #1
C10: =B5 -> 0.078 | D10: Operating Profit Improvement for each 1% decrease in Variable Costs
C11: 0.24 | D11: Operating Profit Margin
C12: 0.06 | D12: Price Decrease Needed
B13: A Variable Cost Decrease of | C13: =IF(AND($C$11<>0,$C$10<>0),$C$12/($C$11*$C$10)/100,"N.A") -> 0.03205128205 | D13: is required
A15: Scenario #2 | B15: Fixed Cost Impact | D15: Assumptions #2
C16: =$B$7 -> 0.023 | D16: Operating Profit Improvement for each 1% decrease in Fixed Costs
C17: 0.24 | D17: Operating Profit Margin
C18: 0.06 | D18: Price Decrease Needed
B19: A Fixed Cost Decrease of | C19: =IF(AND($C$17<>0,$C$16<>0),$C$18/($C$17*$C$16*100),0) -> 0.1086956522 | D19: is required
A21: Scenario #3 | B21: Unit Volume Impact | D21: Assumptions #3
C22: =$B$6 -> 0.033 | D22: Operating Profit Improvement for each 1% increase in Unit Volume
C23: 0.24 | D23: Operating Profit Margin
C24: 0.06 | D24: Price Decrease Needed
B25: A Unit Volume Increase of | C25: =IF(AND($C$23<>0,$C$22<>0),$C$24/($C$23*$C$22*100),0) -> 0.07575757576 | D25: is required

Sheet PPMacro
E2: Changes Table
B3: Changes in | C3: % Change | D3: % Change | E3: % Change | F3: % Change | G3: % Change
B4: Net Sales Billed | C4: 0 | D4: 0 | E4: 0 | F4: 0 | G4: 0
B5: Variable Costs | C5: 0 | D5: 0 | E5: 0 | F5: 0 | G5: 0
B6: Fixed Costs | C6: 0 | D6: 0 | E6: 0 | F6: 0 | G6: 0
B7: Current Operations | C7: Results in | D7: Results in | E7: Results in | F7: Results in | G7: Results in
A8: Net Sales Billed | B8: 400000 | C8: =IF(OR(ISNUMBER(C4),ISBLANK(C4)),$B$8+C4*$B$8/100,0) -> 400000 | D8: =IF(OR(ISNUMBER(D4),ISBLANK(D4)),$B$8+D4*$B$8/100,0) -> 400000 | E8: =IF(OR(ISNUMBER(E4),ISBLANK(E4)),$B$8+E4*$B$8/100,0) -> 400000 | F8: =IF(OR(ISNUMBER(F4),ISBLANK(F4)),$B$8+F4*$B$8/100,0) -> 400000 | G8: =IF(OR(ISNUMBER(G4),ISBLANK(G4)),$B$8+G4*$B$8/100,0) -> 400000
A9: Variable Costs | B9: 260000 | C9: =IF(OR(ISNUMBER(C5),ISBLANK(C5)),$B$9+C5*$B$9/100,0) -> 260000 | D9: =IF(OR(ISNUMBER(D5),ISBLANK(D5)),$B$9+D5*$B$9/100,0) -> 260000 | E9: =IF(OR(ISNUMBER(E5),ISBLANK(E5)),$B$9+E5*$B$9/100,0) -> 260000 | F9: =IF(OR(ISNUMBER(F5),ISBLANK(F5)),$B$9+F5*$B$9/100,0) -> 260000 | G9: =IF(OR(ISNUMBER(G5),ISBLANK(G5)),$B$9+G5*$B$9/100,0) -> 260000
A10: Contribution Margin | B10: =B8-B9 -> 140000 | C10: 140000 | D10: 140000 | E10: 140000 | F10: 140000 | G10: 140000
A11: Fixed Costs | B11: 10000 | C11: =IF(OR(ISNUMBER(C6),ISBLANK(C6)),$B$11+C6*$B$11/100,0) -> 10000 | D11: =IF(OR(ISNUMBER(D6),ISBLANK(D6)),$B$11+D6*$B$11/100,0) -> 10000 | E11: =IF(OR(ISNUMBER(E6),ISBLANK(E6)),$B$11+E6*$B$11/100,0) -> 10000 | F11: =IF(OR(ISNUMBER(F6),ISBLANK(F6)),$B$11+F6*$B$11/100,0) -> 10000 | G11: =IF(OR(ISNUMBER(G6),ISBLANK(G6)),$B$11+G6*$B$11/100,0) -> 10000
A12: Operating Income | B12: =B10-B11 -> 130000 | C12: 130000 | D12: 130000 | E12: 130000 | F12: 130000 | G12: 130000
A13: Operating Income Changed by | C13: =IF($B$12<>0,(((C12-$B$12)/ABS($B$12))),"OpInc=0") -> 0 | D13: =IF($B$12<>0,(((D12-$B$12)/ABS($B$12))),"OpInc=0") -> 0 | E13: =IF($B$12<>0,(((E12-$B$12)/ABS($B$12))),"OpInc=0") -> 0 | F13: =IF($B$12<>0,(((F12-$B$12)/ABS($B$12))),"OpInc=0") -> 0 | G13: =IF($B$12<>0,(((G12-$B$12)/ABS($B$12))),"OpInc=0") -> 0

Sheet PPMicro
E3: Changes Table
C4: Changes in | D4: % Change | E4: % Change | F4: % Change | G4: % Change | H4: % Change
C5: Net Sales Billed | D5: 0 | E5: 0 | F5: 0 | G5: 0 | H5: 0
C6: Direct Material | D6: 0.8577422577 | E6: 0 | F6: 0 | G6: 0 | H6: 0
C7: =IF(A24>" ",A24,"") -> Steel Scrap | D7: 1 | E7: 0 | F7: 0 | G7: 0 | H7: 0
C8: =IF(A25>" ",A25,"") -> Ferroalloys | D8: 0 | E8: 0 | F8: 0 | G8: 0 | H8: 0
C9: Thermal Energy | D9: 0 | E9: 0 | F9: 0 | G9: 0 | H9: 0
C10: =IF(A27>" ",A27,"") -> Electricity | D10: 0 | E10: 0 | F10: 0 | G10: 0 | H10: 0
C11: =IF(A28>" ",A28,"") -> 
B16: 68.33
C17: Direct Labor | D17: 0 | E17: 0 | F17: 0 | G17: 0 | H17: 0
C18: Variable Overhead | D18: 0 | E18: 0 | F18: 0 | G18: 0 | H18: 0
C19: Fixed Costs | D19: 0 | E19: 0 | F19: 0 | G19: 0 | H19: 0
C20: Current Operations | D20: Results in | E20: Results in | F20: Results in | G20: Results in | H20: Results in
A21: Unit or Annual Cost | C21: 9 | D21: =IF(OR(ISNUMBER(D5),ISBLANK(D5)),$C$21+D5*$C$21/100,0) -> 9 | E21: =IF(OR(ISNUMBER(E5),ISBLANK(E5)),$C$21+E5*$C$21/100,0) -> 9 | F21: =IF(OR(ISNUMBER(F5),ISBLANK(F5)),$C$21+F5*$C$21/100,0) -> 9 | G21: =IF(OR(ISNUMBER(G5),ISBLANK(G5)),$C$21+G5*$C$21/100,0) -> 9 | H21: =IF(OR(ISNUMBER(H5),ISBLANK(H5)),$C$21+H5*$C$21/100,0) -> 9
A22: Variable Costs (must total 100%) | B22: =B23+B34+B35 -> 100 | C22: =C21-C37-C38 -> 7.9671 | D22: =D23+D34+D35 -> 8.014505504 | E22: =E23+E34+E35 -> 7.9671 | F22: =F23+F34+F35 -> 7.9671 | G22: =G23+G34+G35 -> 7.9671 | H22: =H23+H34+H35 -> 7.9671
A23: Direct Material% | B23: 69.37 | C23: =B23*$C$22/100 -> 5.52677727 | D23: =IF(OR(ISNUMBER(D6),ISBLANK(D6)),$C$23+D6*$C$23/100,0) -> 5.574182774 | E23: =IF(OR(ISNUMBER(E6),ISBLANK(E6)),$C$23+E6*$C$23/100,0) -> 5.52677727 | F23: =IF(OR(ISNUMBER(F6),ISBLANK(F6)),$C$23+F6*$C$23/100,0) -> 5.52677727 | G23: =IF(OR(ISNUMBER(G6),ISBLANK(G6)),$C$23+G6*$C$23/100,0) -> 5.52677727 | H23: =IF(OR(ISNUMBER(H6),ISBLANK(H6)),$C$23+H6*$C$23/100,0) -> 5.52677727
A24: Steel Scrap | B24: 85.86 | C24: =C23*B24/100 -> 4.745290964 | D24: =$C$24*(100+D7)/100 -> 4.792743874 | E24: =$C$24*(100+E7)/100 -> 4.745290964 | F24: =$C$24*(100+F7)/100 -> 4.745290964 | G24: =$C$24*(100+G7)/100 -> 4.745290964 | H24: =$C$24*(100+H7)/100 -> 4.745290964
A25: Ferroalloys | B25: 5.31 | C25: =C23*B25/100 -> 0.293471873 | D25: =$C$25*(100+D8)/100 -> 0.293471873 | E25: =$C$25*(100+E8)/100 -> 0.293471873 | F25: =$C$25*(100+F8)/100 -> 0.293471873 | G25: =$C$25*(100+G8)/100 -> 0.293471873 | H25: =$C$25*(100+H8)/100 -> 0.293471873
A26: Thermal Energy | B26: 1.33 | C26: =$C$23*B26/100 -> 0.07350613769 | D26: =$C$26*(100+D9)/100 -> 0.07350613769 | E26: =$C$26*(100+E9)/100 -> 0.07350613769 | F26: =$C$26*(100+F9)/100 -> 0.07350613769 | G26: =$C$26*(100+G9)/100 -> 0.07350613769 | H26: =$C$26*(100+H9)/100 -> 0.07350613769
A27: Electricity | B27: 7.6 | C27: 0.4200350725 | D27: =$C$27*(100+D10)/100 -> 0.4200350725 | E27: =$C$27*(100+E10)/100 -> 0.4200350725 | F27: =$C$27*(100+F10)/100 -> 0.4200350725 | G27: =$C$27*(100+G10)/100 -> 0.4200350725 | H27: =$C$27*(100+H10)/100 -> 0.4200350725
C28: 0 | D28: =$C$28*(100+D11)/100 -> 0 | E28: =$C$28*(100+E11)/100 -> 0 | F28: =$C$28*(100+F11)/100 -> 0 | G28: =$C$28*(100+G11)/100 -> 0 | H28: =$C$28*(100+H11)/100 -> 0
C29: 0 | D29: =$C$29*(100+D12)/100 -> 0 | E29: =$C$29*(100+E12)/100 -> 0 | F29: =$C$29*(100+F12)/100 -> 0 | G29: =$C$29*(100+G12)/100 -> 0 | H29: =$C$29*(100+H12)/100 -> 0
C30: 0 | D30: =$C$30*(100+D13)/100 -> 0 | E30: =$C$30*(100+E13)/100 -> 0 | F30: =$C$30*(100+F13)/100 -> 0 | G30: =$C$30*(100+G13)/100 -> 0 | H30: =$C$30*(100+H13)/100 -> 0
C31: 0 | D31: =$C$31*(100+D14)/100 -> 0 | E31: =$C$31*(100+E14)/100 -> 0 | F31: =$C$31*(100+F14)/100 -> 0 | G31: =$C$31*(100+G14)/100 -> 0 | H31: =$C$31*(100+H14)/100 -> 0
C32: 0 | D32: =$C$32*(100+D15)/100 -> 0 | E32: =$C$32*(100+E15)/100 -> 0 | F32: =$C$32*(100+F15)/100 -> 0 | G32: =$C$32*(100+G15)/100 -> 0 | H32: =$C$32*(100+H15)/100 -> 0
C33: 0 | D33: =$C$33*(100+D16)/100 -> 0 | E33: =$C$33*(100+E16)/100 -> 0 | F33: =$C$33*(100+F16)/100 -> 0 | G33: =$C$33*(100+G16)/100 -> 0 | H33: =$C$33*(100+H16)/100 -> 0
A34: Direct Labor% | B34: 7.99 | C34: =B34*$C$22/100 -> 0.63657129 | D34: =IF(OR(ISNUMBER(D17),ISBLANK(D17)),$C$34+D17*$C$34/100,0) -> 0.63657129 | E34: =IF(OR(ISNUMBER(E17),ISBLANK(E17)),$C$34+E17*$C$34/100,0) -> 0.63657129 | F34: =IF(OR(ISNUMBER(F17),ISBLANK(F17)),$C$34+F17*$C$34/100,0) -> 0.63657129 | G34: =IF(OR(ISNUMBER(G17),ISBLANK(G17)),$C$34+G17*$C$34/100,0) -> 0.63657129 | H34: =IF(OR(ISNUMBER(H17),ISBLANK(H17)),$C$34+H17*$C$34/100,0) -> 0.63657129
A35: Variable Overhead% | B35: 22.64 | C35: =B35*$C$22/100 -> 1.80375144 | D35: =IF(OR(ISNUMBER(D18),ISBLANK(D18)),$C$35+D18*$C$35/100,0) -> 1.80375144 | E35: =IF(OR(ISNUMBER(E18),ISBLANK(E18)),$C$35+E18*$C$35/100,0) -> 1.80375144 | F35: =IF(OR(ISNUMBER(F18),ISBLANK(F18)),$C$35+F18*$C$35/100,0) -> 1.80375144 | G35: =IF(OR(ISNUMBER(G18),ISBLANK(G18)),$C$35+G18*$C$35/100,0) -> 1.80375144 | H35: =IF(OR(ISNUMBER(H18),ISBLANK(H18)),$C$35+H18*$C$35/100,0) -> 1.80375144
B36: Contribution Margin | C36: =C21-C22 -> 1.0329 | D36: 0.9854944959 | E36: 1.0329 | F36: 1.0329 | G36: 1.0329 | H36: 1.0329
B37: Fixed Costs | C37: 0.42 | D37: =IF(OR(ISNUMBER(D19),ISBLANK(D19)),$C$37+D19*$C$37/100,0) -> 0.42 | E37: =IF(OR(ISNUMBER(E19),ISBLANK(E19)),$C$37+E19*$C$37/100,0) -> 0.42 | F37: =IF(OR(ISNUMBER(F19),ISBLANK(F19)),$C$37+F19*$C$37/100,0) -> 0.42 | G37: =IF(OR(ISNUMBER(G19),ISBLANK(G19)),$C$37+G19*$C$37/100,0) -> 0.42 | H37: =IF(OR(ISNUMBER(H19),ISBLANK(H19)),$C$37+H19*$C$37/100,0) -> 0.42
A38: Operating Income as % of sales | B38: 6.81 | C38: =B38*C21/100 -> 0.6129 | D38: =D36-D37 -> 0.5654944959 | E38: =E36-E37 -> 0.6129 | F38: =F36-F37 -> 0.6129 | G38: =G36-G37 -> 0.6129 | H38: =H36-H37 -> 0.6129
A39: Operating Income Changed by | D39: =IF($C$38<>0,(((D38-$C$38)/ABS($C$38))),"OpInc=0") -> -0.07734622962 | E39: =IF($C$38<>0,(((E38-$C$38)/ABS($C$38))),"OpInc=0") -> -3.622852095e-16 | F39: =IF($C$38<>0,(((F38-$C$38)/ABS($C$38))),"OpInc=0") -> -3.622852095e-16 | G39: =IF($C$38<>0,(((G38-$C$38)/ABS($C$38))),"OpInc=0") -> -3.622852095e-16 | H39: =IF($C$38<>0,(((H38-$C$38)/ABS($C$38))),"OpInc=0") -> -3.622852095e-16

Sheet Profitability
A2: Ratios | B2: Method of Calculation | C2: =FinancialData!C4 -> Supplier #1 20xx | D2: =FinancialData!D4 -> Supplier #1 20xx-1 | E2: =FinancialData!E4 -> Supplier #2 20xx | F2: =FinancialData!F4 -> Supplier #2 20xx-1 | G2: =FinancialData!G4 -> Industry Norm 20xx
A3: Return on Sales | C3: =IF(FinancialData!C24<>0,(FinancialData!C26)/(FinancialData!C24),"NotKnown") -> -0.02307497253 | D3: =IF(FinancialData!D24<>0,(FinancialData!D26)/(FinancialData!D24),"NotKnown") -> -0.04575835476 | E3: =IF(FinancialData!E24<>0,(FinancialData!E26)/(FinancialData!E24),"NotKnown") -> 0.03333333333 | F3: =IF(FinancialData!F24<>0,(FinancialData!F26)/(FinancialData!F24),"NotKnown") -> 0.05200064798 | G3: =IF(FinancialData!G24<>0,(FinancialData!G26)/(FinancialData!G24),"NotKnown") -> 0.02329578583
A4: Return on Investment | C4: =IF(FinancialData!C13<>0,FinancialData!C26/FinancialData!C13,"NotKnown") -> -0.02629551146 | D4: =IF(FinancialData!D13<>0,FinancialData!D26/FinancialData!D13,"NotKnown") -> -0.06620176662 | E4: =IF(FinancialData!E13<>0,FinancialData!E26/FinancialData!E13,"NotKnown") -> 0.08759124088 | F4: =IF(FinancialData!F13<>0,FinancialData!F26/FinancialData!F13,"NotKnown") -> 0.05959158416 | G4: =IF(FinancialData!G13<>0,FinancialData!G26/FinancialData!G13,"NotKnown") -> 0.05148525135
A5: Return on Equity | C5: =IF(FinancialData!C22<>0,(FinancialData!C26)/FinancialData!C22,"NotKnown") -> -0.09151860543 | D5: =IF(FinancialData!D22<>0,(FinancialData!D26)/FinancialData!D22,"NotKnown") -> -0.3164444444 | E5: =IF(FinancialData!E22<>0,(FinancialData!E26)/FinancialData!E22,"NotKnown") -> 0.1547588342 | F5: =IF(FinancialData!F22<>0,(FinancialData!F26)/FinancialData!F22,"NotKnown") -> 0.1823173041 | G5: =IF(FinancialData!G22<>0,(FinancialData!G26)/FinancialData!G22,"NotKnown") -> 0.09694263364
A6: Return on Invested Capital | C6: =IF((FinancialData!C22+FinancialData!C19)<>0,(FinancialData!C26)/(FinancialData!C22+FinancialData!C19),"NotKnown") -> -0.0557484174 | D6: =IF((FinancialData!D22+FinancialData!D19)<>0,(FinancialData!D26)/(FinancialData!D22+FinancialData!D19),"NotKnown") -> -0.1768065557 | E6: =IF((FinancialData!E22+FinancialData!E19)<>0,(FinancialData!E26)/(FinancialData!E22+FinancialData!E19),"NotKnown") -> 0.1230264507 | F6: =IF((FinancialData!F22+FinancialData!F19)<>0,(FinancialData!F26)/(FinancialData!F22+FinancialData!F19),"NotKnown") -> 0.1275158898 | G6: =IF((FinancialData!G22+FinancialData!G19)<>0,(FinancialData!G26)/(FinancialData!G22+FinancialData!G19),"NotKnown") -> 0.07726800374

Sheet RangeQtyBrks
A3: 1. Unit ranges (i.e., 1-5 6-10 etc) | B3: 1-49 | C3: 50-99 | D3: 100-149 | E3: 150-199 | F3: 200-250
A4: 2. Price per unit | B4: 8 | C4: 7 | D4: 6.8 | E4: 6.7 | F4: 6
A5: 3. Total price per order | B5: =IF(B4<>0,(LEFT(B3,(SEARCH("-",B3,1)-1))*B4),0) -> 8 | C5: =IF(C4<>0,(LEFT(C3,(SEARCH("-",C3,1)-1))*C4),0) -> 350 | D5: =IF(D4<>0,(LEFT(D3,(SEARCH("-",D3,1)-1))*D4),0) -> 680 | E5: =IF(E4<>0,(LEFT(E3,(SEARCH("-",E3,1)-1))*E4),0) -> 1005 | F5: =IF(F4<>0,(LEFT(F3,(SEARCH("-",F3,1)-1))*F4),0) -> 1200
A6: 4. Max units to order | B6: =IF(B5>0,INT(C5/B4),0) -> 43 | C6: =IF(C5>0,INT(D5/C4),0) -> 97 | D6: =IF(D5>0,INT(E5/D4),0) -> 147 | E6: =IF(E5>0,INT(F5/E4),0) -> 179 | F6: =IF(F5>0,INT(G5/F4),0) -> 0
A7: 6. Price diff between max order | B7: =B4*B6 -> 344 | C7: =C4*C6 -> 679 | D7: =D4*D6 -> 999.6 | E7: =E4*E6 -> 1199.3 | F7: =F4*F6 -> 0
A8: 7. Qty diff between max units to order | B8: =B7 -> 344 | C8: =IF(C7<>0,C7-B7,0) -> 335 | D8: =IF(D7<>0,D7-C7,0) -> 320.6 | E8: =IF(E7<>0,E7-D7,0) -> 199.7 | F8: =IF(F7<>0,F7-E7,0) -> 0
A9: 8. Price per unit per order qty diff | B9: =B6 -> 43 | C9: =IF(C6<>0,C6-B6,0) -> 54 | D9: =IF(D6<>0,D6-C6,0) -> 50 | E9: =IF(E6<>0,E6-D6,0) -> 32 | F9: =IF(F6<>0,F6-E6,0) -> 0
A10: 9. Per unit price diff at breaks | B10: =IF(B9>0,B8/B9,0) -> 8 | C10: =IF(C9>0,C8/C9,0) -> 6.203703704 | D10: =IF(D9>0,D8/D9,0) -> 6.412 | E10: =IF(E9>0,E8/E9,0) -> 6.240625 | F10: =IF(F9>0,F8/F9,0) -> 0
A11: 10. Percentage price reduction | B11: - | C11: =B10-C10 -> 1.796296296 | D11: =C10-D10 -> -0.2082962963 | E11: =D10-E10 -> 0.171375 | F11: =E10-F10 -> 6.240625
B12: - | C12: =IF(B10<>0,(B10-C10)/B10,0) -> 0.224537037 | D12: =IF(C10<>0,(C10-D10)/C10,0) -> -0.0335761194 | E12: =IF(D10<>0,(D10-E10)/D10,0) -> 0.02672723019 | F12: =IF(E10<>0,(E10-F10)/E10,0) -> 1

Sheet SavingWork

Sheet Solvency
A2: Ratios | B2: Method of Calculation | C2: =FinancialData!C4 -> Supplier #1 20xx | D2: =FinancialData!D4 -> Supplier #1 20xx-1 | E2: =FinancialData!E4 -> Supplier #2 20xx | F2: =FinancialData!F4 -> Supplier #2 20xx-1 | G2: =FinancialData!G4 -> Industry Norm 20xx
A3: Quick Ratio | C3: =IF(FinancialData!C18<>0,(FinancialData!C5+FinancialData!C6)/FinancialData!C18,"NotKnown") -> 0.467110741 | D3: =IF(FinancialData!D18<>0,(FinancialData!D5+FinancialData!D6)/FinancialData!D18,"NotKnown") -> 0.7015691869 | E3: =IF(FinancialData!E18<>0,(FinancialData!E5+FinancialData!E6)/FinancialData!E18,"NotKnown") -> 1.30186722 | F3: =IF(FinancialData!F18<>0,(FinancialData!F5+FinancialData!F6)/FinancialData!F18,"NotKnown") -> 1.012857978 | G3: =IF(FinancialData!G18<>0,(FinancialData!G5+FinancialData!G6)/FinancialData!G18,"NotKnown") -> 1.114131563
A4: Current Ratio | C4: =IF(FinancialData!C18<>0,FinancialData!C10/FinancialData!C18,"NotKnown") -> 1.145989453 | D4: =IF(FinancialData!D18<>0,FinancialData!D10/FinancialData!D18,"NotKnown") -> 1.403138374 | E4: =IF(FinancialData!E18<>0,FinancialData!E10/FinancialData!E18,"NotKnown") -> 2.458506224 | F4: =IF(FinancialData!F18<>0,FinancialData!F10/FinancialData!F18,"NotKnown") -> 1.552893045 | G4: =IF(FinancialData!G18<>0,FinancialData!G10/FinancialData!G18,"NotKnown") -> 2.168084665
A5: Current Liabilities to Net Worth | C5: =IF(FinancialData!C22<>0,FinancialData!C18/FinancialData!C22,"NotKnown") -> 1.207844452 | D5: =IF(FinancialData!D22<>0,FinancialData!D18/FinancialData!D22,"NotKnown") -> 1.557777778 | E5: =IF(FinancialData!E22<>0,FinancialData!E18/FinancialData!E22,"NotKnown") -> 0.4972917204 | F5: =IF(FinancialData!F22<>0,FinancialData!F18/FinancialData!F22,"NotKnown") -> 1.619651647 | G5: =IF(FinancialData!G22<>0,FinancialData!G18/FinancialData!G22,"NotKnown") -> 0.6282920469
A6: Current Liabilities to Inventory | C6: =IF(FinancialData!C8<>0,FinancialData!C18/FinancialData!C8,"NotKnown") -> 1.80511022 | D6: =IF(FinancialData!D8<>0,FinancialData!D18/FinancialData!D8,"NotKnown") -> 1.87332977 | E6: =IF(FinancialData!E8<>0,FinancialData!E18/FinancialData!E8,"NotKnown") -> 0.9887179487 | F6: =IF(FinancialData!F8<>0,FinancialData!F18/FinancialData!F8,"NotKnown") -> 2.263227513 | G6: =IF(FinancialData!G8<>0,FinancialData!G18/FinancialData!G8,"NotKnown") -> 1.070888889
A7: Total Liabilities to Net Worth | C7: =IF(FinancialData!C22<>0,(FinancialData!C23-FinancialData!C22)/FinancialData!C22,"NotKnown") -> 2.48038887 | D7: =IF(FinancialData!D22<>0,(FinancialData!D23-FinancialData!D22)/FinancialData!D22,"NotKnown") -> 3.78 | E7: =IF(FinancialData!E22<>0,(FinancialData!E23-FinancialData!E22)/FinancialData!E22,"NotKnown") -> 0.7668300232 | F7: =IF(FinancialData!F22<>0,(FinancialData!F23-FinancialData!F22)/FinancialData!F22,"NotKnown") -> 2.059447179 | G7: =IF(FinancialData!G22<>0,(FinancialData!G23-FinancialData!G22)/FinancialData!G22,"NotKnown") -> 0.8829204694
A8: Fixed Assets to Net Worth | C8: =IF(FinancialData!C22<>0,(FinancialData!C11)/FinancialData!C22,"NotKnown") -> 1.587998659 | D8: =IF(FinancialData!D22<>0,(FinancialData!D11)/FinancialData!D22,"NotKnown") -> 2.197777778 | E8: =IF(FinancialData!E22<>0,(FinancialData!E11)/FinancialData!E22,"NotKnown") -> 0.4359040495 | F8: =IF(FinancialData!F22<>0,(FinancialData!F11)/FinancialData!F22,"NotKnown") -> 0.4117758425 | G8: =IF(FinancialData!G22<>0,(FinancialData!G11)/FinancialData!G22,"NotKnown") -> 0.3358539765
A9: Days' Sales Outstanding | C9: =IF(FinancialData!C24<>0,(FinancialData!C6*365)/FinancialData!C24,"NotKnown") -> 44.57991717 | D9: =IF(FinancialData!D24<>0,(FinancialData!D6*365)/FinancialData!D24,"NotKnown") -> 35.86664524 | E9: =IF(FinancialData!E24<>0,(FinancialData!E6*365)/FinancialData!E24,"NotKnown") -> 45.625 | F9: =IF(FinancialData!F24<>0,(FinancialData!F6*365)/FinancialData!F24,"NotKnown") -> 149.8906528 | G9: =IF(FinancialData!G24<>0,(FinancialData!G6*365)/FinancialData!G24,"NotKnown") -> 45.34226837
A10: Inventory Turnover | C10: =IF(FinancialData!C8<>0,(FinancialData!C24-FinancialData!C25)/FinancialData!C8,"NotKnown") -> 4.965931864 | D10: =IF(FinancialData!D8<>0,(FinancialData!D24-FinancialData!D25)/FinancialData!D8,"NotKnown") -> 7.183858899 | E10: =IF(FinancialData!E8<>0,(FinancialData!E24-FinancialData!E25)/FinancialData!E8,"NotKnown") -> 7.179487179 | F10: =IF(FinancialData!F8<>0,(FinancialData!F24-FinancialData!F25)/FinancialData!F8,"NotKnown") -> 3.488227513 | G10: =IF(FinancialData!G8<>0,(FinancialData!G24-FinancialData!G25)/FinancialData!G8,"NotKnown") -> 4.364175556

Sheet SourcingSavingsBy
A3: Scenario #1 | B3: Sourcing Saving in Earnings Per Share
C4: 10500000 | D4: Cost Savings
C5: 400000000 | D5: Number of Shares
C6: =IF(C5>0,C4/C5, "NA") -> 0.02625 | D6: Cost Savings Stated in Earnings per Share (EPS)
A8: Scenario #2 | B8: Sourcing Savings in Terms of Return on Investment
C9: 4000000 | D9: Cost Savings
C10: 20000000 | D10: Invested Capital
C11: =IF(C10>0,C9/C10,"NA") -> 0.2 | D11: Cost Savings Stated in Return on Investment (ROI)
A13: Scenario #3 | B13: Sourcing Savings in Terms of Increased Sales
C14: 500000 | D14: Cost Savings
C15: 8 | D15: Percent Operating Profit
C16: =IF(C15>0,C14/(C15/100),"NA") -> 6250000 | D16: Additional sales needed to generate the same operating income as the cost savings.

Sheet ExperienceCurve
B2: First Order | C2: Potential Order Data Entry Table
A3: Experience Effect Rate (EER) | B3: 0.9 | C3: # 1 | D3: # 2 | E3: # 3 | F3: # 4
A4: Cumulative Number of Units | B4: 50 | C4: 100 | D4: 150 | E4: 200 | F4: 250
A5: Cumulative Average Unit Price | B5: 8 | C5: =ROUND((($B$5)/(($B$4^(LOG($B$3)/LOG(2)))))*((C4)^(LOG($B$3)/LOG(2))),6) -> 7.2 | D5: 6.769648 | E5: 6.48 | F5: 6.263894
A6: Total Cost | B6: =B4*B5 -> 400 | C6: 720 | D6: 1015.4472 | E6: 1296 | F6: 1565.9735
A7: Total Cost from 1st Quantity | C7: =$B$4*$B$5 -> 400 | D7: 400 | E7: 400 | F7: 400
A8: Total Cost for Next Quantity | C8: =C6-C7 -> 320 | D8: 615.4472 | E8: 896 | F8: 1165.9735
A9: Incremental Quantity | C9: =C4-$B$4 -> 50 | D9: 100 | E9: 150 | F9: 200
A10: Average Price for Next Quantity | C10: =IF(C9>0,ROUND(C8/C9,2),"N.A") -> 6.4 | D10: 6.15 | E10: 5.97 | F10: 5.83

Sheet SpecificQtyBrks
A1: 2
A3: 1. No. units per order | B3: 50 | C3: 100 | D3: 150 | E3: 200 | F3: 250
A4: 2. Price per unit | B4: 8 | C4: 7 | D4: 6.8 | E4: 6.7 | F4: 6.64
A5: 3. Total price per order | B5: =B3*B4 -> 400 | C5: =C3*C4 -> 700 | D5: =D3*D4 -> 1020 | E5: =E3*E4 -> 1340 | F5: =F3*F4 -> 1660
A6: 4. Price diff between orders | B6: =B5 -> 400 | C6: =C5-B5 -> 300 | D6: =D5-C5 -> 320 | E6: =E5-D5 -> 320 | F6: =F5-E5 -> 320
A7: 5. Quantity diff between orders | B7: =B3 -> 50 | C7: =C3-B3 -> 50 | D7: =D3-C3 -> 50 | E7: =E3-D3 -> 50 | F7: =F3-E3 -> 50
A8: 6. Price per unit order qty diff | B8: =IF(B7<>0,B6/B7,0) -> 8 | C8: =IF(C7<>0,C6/C7,0) -> 6 | D8: =IF(D7<>0,D6/D7,0) -> 6.4 | E8: =IF(E7<>0,E6/E7,0) -> 6.4 | F8: =IF(F7<>0,F6/F7,0) -> 6.4
A9: 7. Per unit price diff at breaks | B9: - | C9: =B8-C8 -> 2 | D9: =C8-D8 -> -0.4 | E9: =D8-E8 -> 0 | F9: =E8-F8 -> 0
A10: 8. Percentage price reduction | B10: - | C10: =IF(B8<>0,(C9/B8),0) -> 0.25 | D10: =IF(C8<>0,(D9/C8),0) -> -0.06666666667 | E10: =IF(D8<>0,(E9/D8),0) -> 0 | F10: =IF(E8<>0,(F9/E8),0) -> 0

Sheet SPI
A3: Red Line SPI for this Commodity | D3: 1.25
D4: Suppliers or Measurement Periods 1-7
A5: Perfrmnce Measmnts | C5: $ per event | D5: 1 | E5: 2 | F5: 3 | G5: 4 | H5: 5 | I5: 6 | J5: 7
A6: Quality | B6: Rejections | C6: 1000 | D6: 1 | E6: 2 | F6: 1 | G6: 0 | H6: 2
A7: Delivery | B7: Early | C7: 100 | D7: 30 | E7: 18 | F7: 24 | G7: 26 | H7: 25
B8: Late | C8: 500 | D8: 20 | E8: 20 | F8: 15 | G8: 15 | H8: 8
A9: Quantity | B9: Under | C9: 500 | D9: 5 | E9: 0 | F9: 1 | G9: 1 | H9: 1
B10: Over | C10: 100 | D10: 4 | E10: 2 | F10: 1 | G10: 0 | H10: 2
A11: Total Non-Productive Costs | D11: =$C$6*D6+$C$7*D7+$C$8*D8+$C$9*D9+$C$10*D10 -> 16900 | E11: =$C$6*E6+$C$7*E7+$C$8*E8+$C$9*E9+$C$10*E10 -> 14000 | F11: 11500 | G11: 10600 | H11: 9200 | I11: 0 | J11: 0
A12: All Supplier Commmodity Lot Ave. | D12: 18500 | E12: 19365 | F12: 18697 | G12: 19345 | H12: 16958
A13: Specific Supplier Commodity Lot Ave. | D13: 13750 | E13: 18333 | F13: 19954 | G13: 18975 | H13: 15698
A14: Total Value of Lots This supplier | D14: 45000 | E14: 55000 | F14: 51000 | G14: 48750 | H14: 42800
B15: SPI for This Supplier | D15: =IF(AND(D12>0,D14>0),(D14+D11*(D13/D12))/D14,"N.A.") -> 1.279129129 | E15: 1.240980213 | F15: 1.24064991 | G15: 1.213277134 | H15: 1.198981982 | I15: N.A. | J15: =IF(AND(J12>0,J14>0),(J14+J11*(J13/J12))/J14,"N.A.") -> N.A.
D16: =$D$3 -> 1.25 | E16: 1.25 | F16: 1.25 | G16: 1.25 | H16: 1.25 | I16: 1.25

Sheet StanfordB
B3: Existing Design Data
A4: Learning Curve | B4: 0.83
A5: Number of Units | B5: 50
A6: Fixed Cost/Unit | B6: 0.2
A7: Mat'l Cost/Unit | B7: 3.83
A8: Labor Rate | B8: 20.23
A9: Ov'hd % D.L. | B9: 391.24
A10: Profit % T.C. | B10: 8.18
A11: L.C. Ave Hrs/Unit | B11: 0.03384539113
A12: Unit Price | B12: =B13/B5 -> 7.99826912
A13: Total Price | B13: =(((B5)*(B6+B7)+(B8*B11*B5)*(1+(B9/100))))*(1+(B10/100)) -> 399.913456
B14: 1 | C14: 2 | D14: 3 | E14: 4 | F14: 5 | G14: 6 | H14: 7 | I14: 8 | J14: 9 | K14: 10 | L14: 11
B15: =$B$11/($B$5^(LOG($B$4)/LOG(2))) -> 0.09687487308 | C15: =$B$11/($B$5^(LOG($B$4)/LOG(2)))*(C14^(LOG($B$4)/LOG(2))) -> 0.08040614466 | D15: 0.07210293734 | E15: 0.06673710006 | F15: 0.06285159389 | G15: 0.059845438 | H15: 0.05741622444 | I15: 0.05539179305 | J15: 0.05366544913 | K15: 0.05216682293 | L15: 0.05084723489
A16: Units of New Design | B16: 50
A17: B-Factor | B17: #1 | C17: #2 | D17: #3 | E17: #4 | F17: #5 | G17: #6 | H17: #7 | I17: #8 | J17: #9 | K17: #10
A18: B-Hours | B18: =C15 -> 0.08040614466 | C18: 0.07210293734 | D18: 0.06673710006 | E18: 0.06285159389 | F18: 0.059845438 | G18: 0.05741622444 | H18: 0.05539179305 | I18: 0.05366544913 | J18: 0.05216682293 | K18: 0.05084723489
A19: B-Ave. Hrs/Unit | B19: =B18*($B$16^(LOG($B$4)/LOG(2))) -> 0.02809167464 | C19: 0.02519076452 | D19: 0.02331608995 | E19: 0.02195860196 | F19: 0.02090833455 | G19: 0.02005963478 | H19: 0.01935235466 | I19: 0.01874921802 | J19: 0.01822563963 | K19: 0.0177646122
A20: Fixed Cost/Unit | B20: 0.2 | C20: 0.2 | D20: 0.2 | E20: 0.2 | F20: 0.2 | G20: 0.2 | H20: 0.2 | I20: 0.2 | J20: 0.2 | K20: 0.2
A21: Mat'l Cost/Unit | B21: 3.83 | C21: 3.83 | D21: 3.83 | E21: 3.83 | F21: 3.83 | G21: 3.83 | H21: 3.83 | I21: 3.83 | J21: 3.83 | K21: 3.83
A22: Labor Rate | B22: 20.23 | C22: 20.23 | D22: 20.23 | E22: 20.23 | F22: 20.23 | G22: 20.23 | H22: 20.23 | I22: 20.23 | J22: 20.23 | K22: 20.23
A23: Ov'hd % D.L. | B23: 391.24 | C23: 391.24 | D23: 391.24 | E23: 391.24 | F23: 391.24 | G23: 391.24 | H23: 391.24 | I23: 391.24 | J23: 391.24 | K23: 391.24
A24: Profit % T.C. | B24: 8.18 | C24: 8.18 | D24: 8.18 | E24: 8.18 | F24: 8.18 | G24: 8.18 | H24: 8.18 | I24: 8.18 | J24: 8.18 | K24: 8.18
A25: B-Ave Price/Unit | B25: =B26/$B$16 -> 7.37970455 | C25: 7.067836521 | D25: 6.866295956 | E25: 6.72035655 | F25: 6.607445493 | G25: 6.516204359 | H25: 6.440166824 | I25: 6.375325437 | J25: 6.319037116 | K25: 6.269473459
A26: B-Total Price | B26: =(($B$16*B21)+(B19*B22*$B$16)*(1+(B23/100))+($B$16*B20))*(1+(B24/100)) -> 368.9852275 | C26: 353.3918261 | D26: 343.3147978 | E26: 336.0178275 | F26: 330.3722746 | G26: 325.810218 | H26: 322.0083412 | I26: 318.7662719 | J26: 315.9518558 | K26: 313.4736729

Sheet TheoreticalMinCp
A3: Tag # | B3: #1 | C3: #2 | D3: #3
A4: Price per unit weight (tons, lbs, kg, g,...) | B4: 0.21 | C4: 0.21 | D4: 0.21
A5: Density (mass/volume) | B5: 0.2836 | C5: 0.2836 | D5: 0.2836
A6: Actual Length | B6: 10800 | C6: 10800 | D6: 10800
A7: Actual Weight | B7: 6875.6 | C7: 6985.4 | D7: 6885.2
A8: Ordering Data
A9: Width | B9: 36 | C9: 36 | D9: 36
A10: Thickness | B10: 0.06 | C10: 0.06 | D10: 0.06
A11: Theoretical Weight | B11: =B6*B9*B10*B5 -> 6615.8208 | C11: =C6*C9*C10*C5 -> 6615.8208 | D11: =D6*D9*D10*D5 -> 6615.8208
A12: Theoretical Length | B12: =IF((B5*B9*B10)>0,(B7/(B5*B9*B10)),"NA") -> 11224.07669 | C12: =IF((C5*C9*C10)>0,(C7/(C5*C9*C10)),"NA") -> 11403.31975 | D12: =IF((D5*D9*D10)>0,(D7/(D5*D9*D10)),"NA") -> 11239.74821
A13: Weight Difference (Theoretical - Actual) | B13: =B11-B7 -> -259.7792 | C13: =C11-C7 -> -369.5792 | D13: =D11-D7 -> -269.3792
A14: Savings (Premium) per Coil | B14: =B13*B4 -> -54.553632 | C14: =C13*C4 -> -77.611632 | D14: =D13*D4 -> -56.569632

Sheet TheoreticalMinUWR
A1: 3
A3: Tag # | B3: #1 | C3: #2 | D3: #3
A4: Price per unit weight (tons, lbs, kg, g,...) | B4: 0.265 | C4: 0.265 | D4: 0.265
A5: Density (mass/volume) | B5: 0.2836 | C5: 0.2836 | D5: 0.2836
A6: Wire/Rod Length | B6: 36000 | C6: 36000 | D6: 36000
A7: Wire/Rod Weight | B7: 2158.3 | C7: 2098.4 | D7: 2205.7
A8: Ordering Data
A9: Guage (diameter) | B9: 0.5 | C9: 0.5 | D9: 0.5
A11: Theoretical Weight | B11: =B5*B6*(PI()*((B9/2)^2)) -> 2004.650272 | C11: =C5*C6*(PI()*((C9/2)^2)) -> 2004.650272 | D11: =D5*D6*(PI()*((D9/2)^2)) -> 2004.650272
A12: Weight Difference (Theoretical - Actual) | B12: =B11-B7 -> -153.6497277 | C12: =C11-C7 -> -93.74972774 | D12: =D11-D7 -> -201.0497277
A13: Savings (Premium) per Reel | B13: =B12*B4 -> -40.71717785 | C13: =C12*C4 -> -24.84367785 | D13: =D12*D4 -> -53.27817785

Sheet TheoreticalMinWt
A1: 7
A3: Tag # | B3: # 1 | C3: # 2 | D3: # 3
A4: Price per unit weight (tons, lbs, kg, g,...) | B4: 0.21 | C4: 0.21 | D4: 0.21
A5: Density (mass/volume) | B5: 0.284 | C5: 0.2836 | D5: 0.2836
A6: Number of Sheets per Bundle | B6: 30 | C6: 30 | D6: 30
A7: Actual Weight | B7: 1258.5 | C7: 1196.3 | D7: 1196.3
A8: Ordering Data
A9: Thickness | B9: 0.06 | C9: 0.06 | D9: 0.06
A10: Width | B10: 36 | C10: 36 | D10: 36
A11: Length | B11: 60 | C11: 60 | D11: 60
A12: Theoretical Weight | B12: =B9*B10*B11*B5*B6 -> 1104.192 | C12: =C9*C10*C11*C5*C6 -> 1102.6368 | D12: =D9*D10*D11*D5*D6 -> 1102.6368
A13: Weight Difference (Theoretical- Actual) | B13: =B12-B7 -> -154.308 | C13: =C12-C7 -> -93.6632 | D13: =D12-D7 -> -93.6632
A14: Savings (Premium) per Bundle | B14: =B13*B4 -> -32.40468 | C14: =C13*C4 -> -19.669272 | D14: =D13*D4 -> -19.669272

Sheet TheoreticalMinRebar
A1: 3
A3: Tag # | B3: #1 | C3: #2 | D3: #3
A4: Price per unit weight (tons, lbs, kg, g,...) | B4: 0.4 | C4: 0.4 | D4: 0.4
A5: Density (mass/volume) | B5: 0.2836 | C5: 0.2836 | D5: 0.2836
A6: Bar/Rebar Length | B6: 36000 | C6: 36000 | D6: 36000
A7: Bar/Rebar Weight | B7: 2214 | C7: 2004.5 | D7: 1999.75
A8: Ordering Data
A9: Guage (diameter) | B9: 0.5 | C9: 0.5 | D9: 0.5
A11: Theoretical Weight | B11: =B5*B6*(PI()*((B9/2)^2)) -> 2004.650272 | C11: =C5*C6*(PI()*((C9/2)^2)) -> 2004.650272 | D11: =D5*D6*(PI()*((D9/2)^2)) -> 2004.650272
A12: Weight Difference (Theoretical - Actual) | B12: =B11-B7 -> -209.3497277 | C12: =C11-C7 -> 0.1502722556 | D12: =D11-D7 -> 4.900272256
A13: Savings (Premium) for Rebar Bundles | B13: =B12*B4 -> -83.7398911 | C13: =C12*C4 -> 0.06010890226 | D13: =D12*D4 -> 1.960108902

Sheet ThruPut
B3: #1 | C3: #2 | D3: #3 | E3: #4 | F3: # 5 | G3: # 6 | H3: # 7
A4: SheduledTime | B4: 600 | C4: 600 | D4: 600 | E4: 600 | F4: 600 | G4: 600 | H4: 600
A5: Units Produced | B5: 300 | C5: 325 | D5: 340 | E5: 360 | F5: 360 | G5: 360 | H5: 360
A6: DownTime | B6: 75 | C6: 58 | D6: 49.15 | E6: 32 | F6: 32 | G6: 32 | H6: 32
A7: Number of Defects | B7: 50 | C7: 45 | D7: 35 | E7: 18 | F7: 18 | G7: 18 | H7: 18
A8: Theoretical Cycle Time | B8: 1.5 | C8: 1.5 | D8: 1.5 | E8: 1.5 | F8: 1.5 | G8: 1.5 | H8: 1.5
A9: Availability | B9: =IF(B4<>0,(B4-B6)/B4,"NA") -> 0.875 | C9: 0.9033333333 | D9: 0.9180833333 | E9: 0.9466666667 | F9: 0.9466666667 | G9: 0.9466666667 | H9: 0.9466666667
A10: Performance | B10: =IF((B4-B6)>0,(B8*B5)/(B4-B6),"NA") -> 0.8571428571 | C10: 0.8994464945 | D10: 0.9258418807 | E10: 0.9507042254 | F10: 0.9507042254 | G10: 0.9507042254 | H10: 0.9507042254
A11: Quality | B11: =IF(B5>0,(B5-B7)/B5, "NA") -> 0.8333333333 | C11: 0.8615384615 | D11: 0.8970588235 | E11: 0.95 | F11: 0.95 | G11: 0.95 | H11: 0.95
A12: Overall Effectiveness | B12: =B9*B10*B11 -> 0.625 | C12: 0.7 | D12: 0.7625 | E12: 0.855 | F12: 0.855 | G12: 0.855 | H12: 0.855
A27: Percent

Sheet ValueIndices
B8: Period | C8: 1 | D8: 2 | E8: 3 | F8: 4 | G8: 5 | H8: 6 | I8: 7 | J8: 8 | K8: 9 | L8: 10 | M8: 11 | N8: 12 | O8: 13
B9: Price | C9: 7600 | D9: 6950 | E9: 6950 | F9: 6950 | G9: 6250 | H9: 6250 | I9: 6250 | J9: 6250 | K9: 6250 | L9: 6250 | M9: 6250 | N9: 6250
B10: Quality | C10: 1.66 | D10: 1.66 | E10: 1.66 | F10: 2 | G10: 2 | H10: 2 | I10: 2 | J10: 2 | K10: 2 | L10: 2 | M10: 2 | N10: 2
B11: Cycle Time | C11: 0.9 | D11: 0.9 | E11: 0.9 | F11: 0.9 | G11: 0.9 | H11: 0.9 | I11: 0.9 | J11: 0.9 | K11: 0.9 | L11: 0.9 | M11: 0.9 | N11: 0.9
B12: Value
B13: Value Index | C13: 1 | D13: 1.09352518 | E13: 1.09352518 | F13: 1.317500217 | G13: 1.465060241 | H13: 1.465060241 | I13: 1.465060241 | J13: 1.465060241 | K13: 1.465060241 | L13: 1.465060241 | M13: 1.465060241 | N13: 1.465060241 | O13: 0
C14: =$C$13 -> 1 | D14: 1 | E14: 1 | F14: 1 | G14: 1 | H14: 1 | I14: 1 | J14: 1 | K14: 1 | L14: 1 | M14: 1 | N14: 1

Sheet ValueProductivity
C3: Suppliers or Measurement Periods 1-7
A4: Price Productivity | C4: 1 | D4: 2 | E4: 3 | F4: 4 | G4: 5 | H4: 6 | I4: 7
B5: PriceInitial | C5: 28 | D5: 27 | E5: 26
B6: Deflated Prices | C6: 24 | D6: 23 | E6: 24
B7: Supplier Investment | C7: 0.5 | D7: 0.5 | E7: 10
B8: PriceFinal | C8: =C6-C7 -> 23.5 | D8: =D6-D7 -> 22.5 | E8: 14 | F8: 0 | G8: 0 | H8: 0 | I8: 0
A9: Value Productivity | C9: 1 | D9: 2 | E9: 3 | F9: 4 | G9: 5 | H9: 6 | I9: 7
B10: Quality Improvement | C10: 0.25 | D10: 0.25 | E10: 0.25
B11: Delivery Improvement | C11: 0.1 | D11: 0.1 | E11: 0.1
B12: Resource Shift | C12: 0.05 | D12: 0.05 | E12: 0.05
B13: Supplier Suggestions | C13: 0.25 | D13: 0.25 | E13: 0.25
B14: Material Usage | C14: 1.25 | D14: 1.25 | E14: 0
B15: Total Supplier Productivity ($) | C15: =SUM(C10:C14) -> 1.9 | D15: =SUM(D10:D14) -> 1.9 | E15: 0.65 | F15: 0 | G15: 0 | H15: 0 | I15: 0
B16: Total Supplier Productivity (%) | C16: =IF(C5>0,(1-((C8-C15)/(C5))), 0) -> 0.2285714286 | D16: 0.237037037 | E16: 0.4865384615 | F16: 0 | G16: 0 | H16: 0 | I16: 0

Sheet EnergyCosts
A1: b
A3: Scenario #1 Purchased Fuels Consumed *
A4: Scenario #2 Purchased Electricity
A5: Scenario #3 Purchased Fuels * and Electricity
A6: The highlighted 'yellow' cells are obtained from the SourcingApps data base for NAICS code 3231 Printing and related support activities for 2019 | B6: Scenario #1 Fuels Consumed | C6: Scenario #2 Electricity | D6: Scenario #3 Fuels & Electricity
A7: Current Unit Price ($) | B7: 1 | C7: 1 | D7: 1
A8: New Unit Price ($) Due to Increased Energy Cost | B8: 1.1 | C8: 1.1 | D8: 1.1
A9: Increased Energy Cost contained in the New Unit Price | B9: =IF(B7>0,((B8-B7)/B7),"N.A.") -> 0.1 | C9: =IF(C7>0,((C8-C7)/C7),"N.A.") -> 0.1 | D9: =IF(D7>0,((D8-D7)/D7),"N.A.") -> 0.1
A10: Total Value of Shipments-ASM ($1,000's) or Net Sales Billed | B10: 81224810 | C10: 81224810 | D10: 81224810
A11: Purchased Energy-ASM ($1,000's) or Supplier Provided | B11: 273451 | C11: 880014 | D11: 1153465
A12: Energy Costs as a % of Total Value of Shipments or Net Sales | B12: =IF(AND(ISNUMBER(B10),ISNUMBER(B11),B10>0),B11/B10,"N.A.") -> 0.003366594517 | C12: =IF(AND(ISNUMBER(C10),ISNUMBER(C11),C10>0),C11/C10,"N.A.") -> 0.0108343005 | D12: =IF(AND(ISNUMBER(D10),ISNUMBER(D11),D10>0),D11/D10,"N.A.") -> 0.01420089502
A13: % Energy Surchage Needed to Offset Increased Energy Costs | B13: =IF(AND(ISNUMBER(B9),ISNUMBER(B12)),B9*B12,"N.A.") -> 0.0003366594517 | C13: =IF(AND(ISNUMBER(C9),ISNUMBER(C12)),C9*C12,"N.A.") -> 0.00108343005 | D13: =IF(AND(ISNUMBER(D9),ISNUMBER(D12)),D9*D12,"N.A.") -> 0.001420089502
A14: Unit Price ($) Increase Needed to Offset Increased Energy Cost | B14: =IF(AND(ISNUMBER(B7),ISNUMBER(B13)),B7*B13,"N.A.") -> 0.0003366594517 | C14: =IF(AND(ISNUMBER(C7),ISNUMBER(C13)),C7*C13,"N.A.") -> 0.00108343005 | D14: =IF(AND(ISNUMBER(D7),ISNUMBER(D13)),D7*D13,"N.A.") -> 0.001420089502
A15: Actual Unit Price ($) to cover Increased Energy Cost | B15: =IF(AND(ISNUMBER(B7),ISNUMBER(B14)),B7+B14,"N.A.") -> 1.000336659 | C15: =IF(AND(ISNUMBER(C7),ISNUMBER(C14)),C7+C14,"N.A.") -> 1.00108343 | D15: =IF(AND(ISNUMBER(D7),ISNUMBER(D14)),D7+D14,"N.A.") -> 1.00142009
A16: Cost Avoidance Savings ($) Per Unit “New Price” versus “Actual Price” | B16: =IF(AND(ISNUMBER(B8),ISNUMBER(B15)),B8-B15,"N.A.") -> 0.09966334055 | C16: =IF(AND(ISNUMBER(C8),ISNUMBER(C15)),C8-C15,"N.A.") -> 0.09891656995 | D16: =IF(AND(ISNUMBER(D8),ISNUMBER(D15)),D8-D15,"N.A.") -> 0.0985799105
A17: * The cost of fuels purchased for generation of heat or power. Excludes fuels that may be used as materials for production (e.g., natural gas feedstock for petrochemical production).

Sheet Z-Scores
A2: Ratios | B2: Method of Calculation | C2: =FinancialData!C4 -> Supplier #1 20xx | D2: =FinancialData!D4 -> Supplier #1 20xx-1 | E2: =FinancialData!E4 -> Supplier #2 20xx | F2: =FinancialData!F4 -> Supplier #2 20xx-1 | G2: =FinancialData!G4 -> Industry Norm 20xx
A3: X1 | C3: =IF(FinancialData!C13<>0,(FinancialData!C28)/FinancialData!C13,"NotKnown") -> 0.05066461183 | D3: =IF(FinancialData!D13<>0,(FinancialData!D28)/FinancialData!D13,"NotKnown") -> 0.1313807531 | E3: =IF(FinancialData!E13<>0,(FinancialData!E28)/FinancialData!E13,"NotKnown") -> 0.4105109489 | F3: =IF(FinancialData!F13<>0,(FinancialData!F28)/FinancialData!F13,"NotKnown") -> 0.2926980198 | G3: =IF(FinancialData!G13<>0,(FinancialData!G28)/FinancialData!G13,"NotKnown") -> 0.3897659604
A4: X2 | C4: =IF(FinancialData!C13<>0,FinancialData!C31/FinancialData!C13,"NotKnown") -> 0.07195145444 | D4: =IF(FinancialData!D13<>0,FinancialData!D31/FinancialData!D13,"NotKnown") -> 0.1482101348 | E4: =IF(FinancialData!E13<>0,FinancialData!E31/FinancialData!E13,"NotKnown") -> 0.1296350365 | F4: =IF(FinancialData!F13<>0,FinancialData!F31/FinancialData!F13,"NotKnown") -> 0.4022277228 | G4: =IF(FinancialData!G13<>0,FinancialData!G31/FinancialData!G13,"NotKnown") -> 0.042728154
A5: X3 | C5: =IF(FinancialData!C13<>0,(FinancialData!C25)/FinancialData!C13,"NotKnown") -> 0.1848391447 | D5: =IF(FinancialData!D13<>0,(FinancialData!D25)/FinancialData!D13,"NotKnown") -> 0.1970246397 | E5: =IF(FinancialData!E13<>0,(FinancialData!E25)/FinancialData!E13,"NotKnown") -> 0.5839416058 | F5: =IF(FinancialData!F13<>0,(FinancialData!F25)/FinancialData!F13,"NotKnown") -> 0.3300433168 | G5: =IF(FinancialData!G13<>0,(FinancialData!G25)/FinancialData!G13,"NotKnown") -> 0.8502285002
A6: X4 | C6: =IF((FinancialData!C23-FinancialData!C22)<>0,(FinancialData!C32+FinancialData!C33+FinancialData!C34)/(FinancialData!C23-FinancialData!C22),"NotKnown") -> 0.6636520402 | D6: =IF((FinancialData!D23-FinancialData!D22)<>0,(FinancialData!D32+FinancialData!D33+FinancialData!D34)/(FinancialData!D23-FinancialData!D22),"NotKnown") -> 0.851686283 | E6: =IF((FinancialData!E23-FinancialData!E22)<>0,(FinancialData!E32+FinancialData!E33+FinancialData!E34)/(FinancialData!E23-FinancialData!E22),"NotKnown") -> 1.977800202 | F6: =IF((FinancialData!F23-FinancialData!F22)<>0,(FinancialData!F32+FinancialData!F33+FinancialData!F34)/(FinancialData!F23-FinancialData!F22),"NotKnown") -> 0.0822761537 | G6: =IF((FinancialData!G23-FinancialData!G22)<>0,(FinancialData!G32+FinancialData!G33+FinancialData!G34)/(FinancialData!G23-FinancialData!G22),"NotKnown") -> 0.3219137626
A7: X5 | C7: =IF(FinancialData!C13<>0,(FinancialData!C24)/FinancialData!C13,"NotKnown") -> 1.139568484 | D7: =IF(FinancialData!D13<>0,(FinancialData!D24)/FinancialData!D13,"NotKnown") -> 1.446768945 | E7: =IF(FinancialData!E13<>0,(FinancialData!E24)/FinancialData!E13,"NotKnown") -> 2.627737226 | F7: =IF(FinancialData!F13<>0,(FinancialData!F24)/FinancialData!F13,"NotKnown") -> 1.145977723 | G7: =IF(FinancialData!G13<>0,(FinancialData!G24)/FinancialData!G13,"NotKnown") -> 2.210067165
A8: Z-Score Public | B8: 1.2X1+1.4X2+3.3X3+.6X4+1X5 | C8: =1.2*C3+1.4*C4+3.3*C5+0.6*C6+1*C7 -> 2.309258456 | D8: =1.2*D3+1.4*D4+3.3*D5+0.6*D6+1*D7 -> 2.973113118 | E8: =1.2*E3+1.4*E4+3.3*E5+0.6*E6+1*E7 -> 6.415526836 | F8: =1.2*F3+1.4*F4+3.3*F5+0.6*F6+1*F7 -> 3.198842796 | G8: =1.2*G3+1.4*G4+3.3*G5+0.6*G6+1*G7 -> 5.736508041
A9: Z-Score Private | B9: .717X1+.847X2+3.107X3+.42X4+.998X5 | C9: =6.56*C3+3.26*C4+6.72*C5+1.05*C6 -> 2.50587529 | D9: =0.717*D3+0.847*D4+3.107*D5+0.42*D6+0.998*D7 -> 2.633473185 | E9: =0.717*E3+0.847*E4+3.107*E5+0.42*E6+0.998*E7 -> 5.671601632 | F9: =0.717*F3+0.847*F4+3.107*F5+0.42*F6+0.998*F7 -> 2.754237699 | G9: =0.717*G3+0.847*G4+3.107*G5+0.42*G6+0.998*G7 -> 5.298163701

Sheet MenuItems
A1: SDS_MenuBar | B1: SubMenuOne | C1: SubMenuTwo | D1: Macro | E1: SheetName | F1: Include in Demo
A2: SDS-&Quotation Analysis | B2: &Quanity Discount Analysis | C2: &Specific Quanitities | D2: SpecificQtyBreaks | E2: SpecificQtyBrks | F2: 1
C3: &Range Quantities | D3: RangeQtyBreaks | E3: RangeQtyBrks
B4: &Fixed/Variable Cost Calculator | D4: OpenFixed_Variable | E4: PeqFdivQplusV
B5: &Experience Effect | D5: OpenExperienceCurve | E5: ExperienceCurve | F5: 1
B6: E&conomic Order Quantity | D6: OpenEOQ | E6: EOQ | F6: 1
A7: SDS-&Cost Analysis | B7: &Fixed/Variable Cost Calculator | D7: OpenFixed_Variable | E7: PeqFdivQplusV
B8: &Price Productivity | C8: &Calculator | D8: PPScenario | E8: PPCalculator | F8: 1
C9: &Macro | D9: PrcProdTable | E9: PPMacro
C10: M&icro | D10: OpenPPmicro | E10: PPMicro
B11: &Break-Even Analysis | D11: BreakEven | E11: BreakEven
B12: &Learning Curves | C12: &Typical | D12: Mod_MainControl.LearningCurve | E12: LearningCurve
C13: &Learning Curve Analysis | D13: OpenLearningCurveAnalysis | E13: LearnCurve | F13: 1
C14: &Stanford-B Analysis | D14: OpenStanFordB | E14: StanfordB
B15: &Economic Production Quantity | D15: OpenEPQ | E15: EPQ
B16: &Yield Calculators | C16: &Theoretical Minimum Weight | D16: OpenTheoreticalMinWt | E16: TheoreticalMinWt
C17: T&heoretical Minimum Length (Coils) | D17: OpenTheoreticalMinCp | E17: TheoreticalMinCp
C18: Th&eoretical Minimum Length (Reels) | D18: OpenTheoreticalMinUWR | E18: TheoreticalMinUWR
B19: &Total Cost of Ownership(TOC) | C19: &Cost Build Up Bid Factor for Items | D19: OpenBidFactorCost | E19: BidFactorCost
C20: &Event Based Bid Factor for Items | D20: OpenBidFactorEvent | E20: BidFactorEvent
C21: E&quipment TOC | D21: OpenEquipmentTOC | E21: EquipmentTOC
C22: &International Purchasing TOC | D22: OpenIntlPurchTOC | E22: IntlPurchTOC
A23: SDS-&Performance Analysis | B23: &Supplier Performance Index | D23: OpenSPI | E23: SPI
B24: &Throughput Analysis | D24: OpenThruPut | E24: ThruPut
B25: Value &Indices | D25: OpenValueIndices | E25: ValueIndices
B26: Total Supplier &Productivity | D26: OpenValueProductivity | E26: ValueProductivity
B27: S&ourcing Performance Calculators | C27: &Sourcing Savings by Earnings Per Share | D27: OpenSourcingSavingsByEPS | E27: SourcingSavingsBy
C28: S&ourcing Savings by Return on Invested Capital | D28: OpenSourcingSavingsByROI | E28: SourcingSavingsBy
C29: &Increased Sales to generate same savings | D29: OpenSourcingSavingsBySales | E29: SourcingSavingsBy
B30: &Assessments | C30: &Relationship | D30: OpenAsmntRel | E30: AsmntRel | F30: 1
C31: &Organizational | D31: OpenAsmntOrg | E31: AsmntOrg
C32: &Team | D32: OpenAsmntTeam | E32: AsmntTeam
A33: SDS-Fi&nancial Analysis | B33: &Payment Terms Calculators | C33: &Payment Discount Calculator | D33: OpenPaymentDiscount | E33: PaymentDiscount | F33: 1
C34: &Extended Payment Terms Calculator | D34: OpenExtendedTerms | E34: ExtendedTerms | F34: 1
B35: &Financial Source | D35: FinancialData | E35: FinancialData
B36: S&olvency Ratios | D36: Solvency | E36: Solvency
B37: L&everage Ratios | D37: Leverage | E37: Leverage
B38: &Profitability Ratios | D38: Profitability | E38: Profitability
B39: &Z-Score Analysis | D39: Z_Scores | E39: Z-Scores
A40: SDS-I&nfo | B40: &Support Information | D40: About_SDS
B41: &WorkSheet Conventions | D41: SDSInfoColor
B42: &Saving Your Work | D42: SavingWork
B43: S&DS Agreement | D43: AgreementSummary

Sheet SDS_InfoColor
A1: 2
A3: 1. No. units per order | B3: 1 | C3: 13 | D3: 20 | E3: 50 | F3: 100
A4: 2. Price Per Unit | B4: 5.49 | C4: 5.38 | D4: 5.19 | E4: 5.09 | F4: 4.99
A5: 3. Total Price per Order | B5: =B3*B4 -> 5.49 | C5: =C3*C4 -> 69.94 | D5: =D3*D4 -> 103.8 | E5: =E3*E4 -> 254.5 | F5: =F3*F4 -> 499
A6: 4. Price diff. between orders | B6: =B5 -> 5.49 | C6: =C5-B5 -> 64.45 | D6: =D5-C5 -> 33.86 | E6: =E5-D5 -> 150.7 | F6: =F5-E5 -> 244.5
A7: 5. Quantity diff. between orders | B7: =B3 -> 1 | C7: =C3-B3 -> 12 | D7: =D3-C3 -> 7 | E7: =E3-D3 -> 30 | F7: =F3-E3 -> 50
A8: 6. Price per unit per order qty diff. | B8: =IF(B7<>0,B6/B7,0) -> 5.49 | C8: =IF(C7<>0,C6/C7,0) -> 5.370833333 | D8: =IF(D7<>0,D6/D7,0) -> 4.837142857 | E8: =IF(E7<>0,E6/E7,0) -> 5.023333333 | F8: =IF(F7<>0,F6/F7,0) -> 4.89
A9: 7. Per unit price diff at breaks | C9: =B8-C8 -> 0.1191666667 | D9: =C8-D8 -> 0.5336904762 | E9: =D8-E8 -> -0.1861904762 | F9: =E8-F8 -> 0.1333333333
A10: 8. Percentage Price Reduction | B10: - | C10: =IF(B8<>0,(C9/B8),0) -> 0.02170613236 | D10: =IF(C8<>0,(D9/C8),0) -> 0.09936828106 | E10: =IF(D8<>0,(E9/D8),0) -> -0.0384918291 | F10: =IF(E8<>0,(F9/E8),0) -> 0.02654280027

Sheet LearnCurve
A3: Learning Curve Rate | B3: 0.83
B4: FirstOrder | C4: # 1 | D4: # 2 | E4: # 3 | F4: # 4
A5: Number of Units | B5: 50 | C5: 100 | D5: 150 | E5: 200 | F5: 250
A6: Fixed Costs/Unit | B6: 0.2 | C6: 0.2 | D6: 0.2 | E6: 0.2 | F6: 0.2
A7: Mat'l Cost/Unit | B7: 3.83 | C7: 3.83 | D7: 3.83 | E7: 3.83 | F7: 3.83
A8: Labor Rate | B8: 20.23 | C8: 20.23 | D8: 20.23 | E8: 20.23 | F8: 20.23
A9: Ov'hd % D.L. | B9: 391.24 | C9: 391.24 | D9: 391.24 | E9: 391.24 | F9: 391.24
A10: Profit % T.C. | B10: 8.18 | C10: 8.18 | D10: 8.18 | E10: 8.18 | F10: 8.18
A11: Ave Cum Hrs | B11: 0.03 | C11: =(($B$11)/(($B$5)^(LOG($B$3)/LOG(2))))*(($B$5+C5)^(LOG($B$3)/LOG(2))) -> 0.02232868082 | D11: =(($B$11)/(($B$5)^(LOG($B$3)/LOG(2))))*(($B$5+D5)^(LOG($B$3)/LOG(2))) -> 0.020667 | E11: =(($B$11)/(($B$5)^(LOG($B$3)/LOG(2))))*(($B$5+E5)^(LOG($B$3)/LOG(2))) -> 0.0194637449 | F11: =(($B$11)/(($B$5)^(LOG($B$3)/LOG(2))))*(($B$5+F5)^(LOG($B$3)/LOG(2))) -> 0.01853280508
A12: Ave Hrs this order | B12: =B11 -> 0.03 | C12: =((($B$5+C5)*C11)-($B$5*$B$11))/C5 -> 0.01849302123 | D12: =((($B$5+D5)*D11)-($B$5*$B$11))/D5 -> 0.017556 | E12: =((($B$5+E5)*E11)-($B$5*$B$11))/E5 -> 0.01682968113 | F12: =((($B$5+F5)*F11)-($B$5*$B$11))/F5 -> 0.0162393661
A13: 5
A14: Units Ordered | B14: =B5 -> 50 | C14: 100 | D14: =D5 -> 150 | E14: 200 | F14: 250
A15: Fixed Costs/Unit | B15: 0.2 | C15: 0.2 | D15: 0.2 | E15: 0.2 | F15: 0.2
A16: Unit Mat'l Cost | B16: 3.83 | C16: 3.83 | D16: 3.83 | E16: 3.83 | F16: 3.83
A17: Unit Labor Cost | B17: =IF($A$13=6,B12*B8,B11*B8) -> 0.6069 | C17: =IF($A$13=6,C12*C8,C11*C8) -> 0.451709213 | D17: =IF($A$13=6,D12*D8,D11*D8) -> 0.41809341 | E17: =IF($A$13=6,E12*E8,E11*E8) -> 0.3937515593 | F17: =IF($A$13=6,F12*F8,F11*F8) -> 0.3749186468
A18: Unit Ov'hd Costs | B18: =B9*B17/100 -> 2.37443556 | C18: =C9*C17/100 -> 1.767267125 | D18: =D9*D17/100 -> 1.635748657 | E18: =E9*E17/100 -> 1.540513601 | F18: =F9*F17/100 -> 1.466831714
A19: Total Unit Costs | B19: =(B15+B16+B17+B18) -> 7.01133556 | C19: =(C15+C16+C17+C18) -> 6.248976338 | D19: =(D15+D16+D17+D18) -> 6.083842067 | E19: =(E15+E16+E17+E18) -> 5.96426516 | F19: =(F15+F16+F17+F18) -> 5.87175036
A20: Profit | B20: =B10*B19/100 -> 0.5735272488 | C20: =C10*C19/100 -> 0.5111662644 | D20: =D10*D19/100 -> 0.4976582811 | E20: =E10*E19/100 -> 0.4878768901 | F20: =F10*F19/100 -> 0.4803091795
A21: Purchase Price/Unit | B21: =B19+B20 -> 7.584862809 | C21: =C19+C20 -> 6.760142602 | D21: =D19+D20 -> 6.581500348 | E21: =E19+E20 -> 6.45214205 | F21: =F19+F20 -> 6.35205954

Sheet LearningCurve
A3: Assembly Paced | B3: Machine Paced | C3: Click On Learning Curve Value | D3: Productivity
A4: 95 | B4: 5 | C4: 76 | D4: 24
A5: 90 | B5: 10 | C5: 77 | D5: 23
A6: 85 | B6: 15 | C6: 78 | D6: 22
A7: 80 | B7: 20 | C7: 79 | D7: 21
A8: 75 | B8: 25 | C8: 80 | D8: 20
A9: 70 | B9: 30 | C9: 81 | D9: 19
A10: 65 | B10: 35 | C10: 82 | D10: 18
A11: 60 | B11: 40 | C11: 83 | D11: 17
A12: 55 | B12: 45 | C12: 84 | D12: 16
A13: 50 | B13: 50 | C13: 85 | D13: 15
A14: 45 | B14: 55 | C14: 86 | D14: 14
A15: 40 | B15: 60 | C15: 87 | D15: 13
A16: 35 | B16: 65 | C16: 88 | D16: 12
A17: 30 | B17: 70 | C17: 89 | D17: 11
A18: 25 | B18: 75 | C18: 90 | D18: 10
A19: 20 | B19: 80 | C19: 91 | D19: 9
A20: 15 | B20: 85 | C20: 92 | D20: 8
A21: 10 | B21: 90 | C21: 93 | D21: 7
A22: 5 | B22: 95 | C22: 94 | D22: 6
F27: yx=axb
E28: a | F28: 100
E29: LC | F29: 0.8
E30: b | F30: =LOG(F29)/LOG(2) -> -0.3219280949
D31: y= | E31: 1 | F31: =$F$28*(E31)^$F$30 -> 100
E32: 10 | F32: =$F$28*(E32)^$F$30 -> 47.65098749
E33: 100 | F33: 22.70616609
E34: 1000 | F34: 10.81971236
E35: 10000 | F35: 5.155699784
E36: 100000 | F36: 2.456741859
E37: 1000000 | F37: 1.170661756
E38: 10000000 | F38: 0.5578318868
E39: 256 | F39: 16.777216
A97: Scratch area for generating curves
F99: y=b*exp(ln(lc)*(2*n)/ln(2))
B100: 0.76
A101: CumUnits | B101: AveHrs | C101: 2n | E101: b=
A102: 1 | B102: 100 | C102: =121.95*EXP(LN($B$100)*LN(2*A102)/LN(2)) -> 92.682 | E102: =B102/EXP(LN($B$100)*LN(2*A102)/LN(2)) -> 131.5789474 | F102: =1 -> 1 | G102: =121.95*EXP(LN($B$100)*LN(2*F102)/LN(2)) -> 92.682
A103: =A102*2 -> 2 | B103: =$B$100*B102 -> 76 | C103: =121.95*EXP(LN($B$100)*LN(2*A103)/LN(2)) -> 70.43832 | E103: =B103/EXP(LN($B$100)*LN(2*A103)/LN(2)) -> 131.5789474 | F103: =F102+1 -> 2 | G103: =121.95*EXP(LN($B$100)*LN(2*F103)/LN(2)) -> 70.43832
A104: =A103*2 -> 4 | B104: =$B$100*B103 -> 57.76 | C104: =121.95*EXP(LN($B$100)*LN(2*A104)/LN(2)) -> 53.5331232 | E104: 131.5789474 | F104: =F103+1 -> 3 | G104: 59.99145706
A105: 8 | B105: 43.8976 | C105: =121.95*EXP(LN($B$100)*LN(2*A105)/LN(2)) -> 40.68517363 | E105: 131.5789474 | F105: 4 | G105: 53.5331232
A106: 16 | B106: 33.362176 | C106: 30.92073196 | E106: 131.5789474 | F106: 5 | G106: 49.00643699
A107: 32 | B107: 25.35525376 | C107: 23.49975629 | E107: 131.5789474 | F107: 6 | G107: 45.59350736
A108: 64 | B108: 19.26999286 | C108: 17.85981478 | E108: 131.5789474 | F108: 7 | G108: 42.89402974
A109: 128 | B109: 14.64519457 | C109: 13.57345923 | E109: 131.5789474 | F109: 8 | G109: 40.68517363
A110: 256 | B110: 11.13034787 | C110: 10.31582902 | E110: 131.5789474 | F110: 9 | G110: 38.8314335
A111: 512 | B111: 8.459064385 | C111: 7.840030053 | E111: 131.5789474 | F111: 10 | G111: 37.24489211
A112: 1024 | B112: 6.428888932 | C112: 5.95842284 | E112: 131.5789474 | F112: 11 | G112: 35.86560569
A113: 2048 | B113: 4.885955589 | C113: 4.528401359 | E113: 131.5789474 | F113: 12 | G113: 34.6510656
A114: 4096 | B114: 3.713326247 | C114: 3.441585033 | E114: 131.5789474 | F114: 13 | G114: 33.57014986
A115: 8192 | B115: 2.822127948 | C115: 2.615604625 | E115: 131.5789474 | F115: 14 | G115: 32.5994626
A116: 16384 | B116: 2.14481724 | C116: 1.987859515 | E116: 131.5789474 | F116: 15 | G116: 31.72101983
F117: 16 | G117: 30.92073196
F118: 17 | G118: 30.18737739
F119: 18 | G119: =121.95*EXP(LN($B$100)*LN(2*F119)/LN(2)) -> 29.51188946
F120: 19 | G120: 28.88684934
F121: =F120+1 -> 20 | G121: 28.30611801
F122: 21 | G122: 27.76456424
F123: 22 | G123: 27.25786033
F124: 23 | G124: 26.78232632
F125: 24 | G125: 26.33480985
F126: 25 | G126: 25.91259216
F127: 26 | G127: 25.51331389
F128: 27 | G128: 25.1349159
F129: 28 | G129: 24.77559158

Sheet MenuSheet
A1: Level | B1: Caption | C1: Position/Macro | D1: Divider | E1: FaceID
A2: 1 | B2: SourcingApps_Home | C2: 10
A3: 2 | B3: &Start Worksheet | C3: GoHome
A4: 1 | B4: &Price Analysis | C4: 10
A5: 2 | B5: &Quanity Discount Analysis
A6: 3 | B6: &Specific Quanitities | C6: SpecificQtyBreaks
A7: 3 | B7: &Range Quantities | C7: RangeQtyBreaks
A8: 2 | B8: &Fixed/Variable Cost Analysis | C8: OpenFixed_Variable
A9: 2 | B9: &Experience Effect | C9: OpenExperienceCurve
A10: 2 | B10: E&conomic Order Quantity | C10: OpenEOQ
A11: 1 | B11: &Cost Analysis | C11: 10
A12: 2 | B12: &Cost and Engergy Trend Analysis
A13: 3 | B13: &Cost Trends | C13: OpenNAICStotalcostComparisons
A14: 3 | B14: &Energy Trends | C14: OpenNAICSenergycostComparisons
A15: 2 | B15: &Energy Surcharge Analysis | C15: OpenEnergyCosts
A16: 2 | B16: &Price Productivity
A17: 3 | B17: &Analysis | C17: PPScenario
A18: 3 | B18: &Macro | C18: PrcProdTable
A19: 3 | B19: M&icro | C19: OpenPPmicro
A20: 2 | B20: &Break-Even Analysis | C20: OpenBreakEven
A21: 2 | B21: &Learning Curves
A22: 3 | B22: &Typical | C22: TypicalLearningCurve
A23: 3 | B23: &Learning Curve Analysis | C23: OpenLearningCurveAnalysis
A24: 3 | B24: &Stanford-B Analysis | C24: OpenStanFordB
A25: 2 | B25: &Economic Production Quantity | C25: OpenEPQ
A26: 2 | B26: &Yield Analyses
A27: 3 | B27: &Theoretical Minimum Weight (Sheet/Plate) | C27: OpenTheoreticalMinWt
A28: 3 | B28: T&heoretical Minimum Weight (Coils) | C28: OpenTheoreticalMinCp
A29: 3 | B29: Th&eoretical Minimum Weight ((Wire/Rod) | C29: OpenTheoreticalMinUWR
A30: 3 | B30: The&oretical Minimum Weight (Bar/Rebar) | C30: OpenTheoreticalMinRebar
A31: 2 | B31: &Total Cost of Ownership(TOC)
A32: 3 | B32: &Cost Build Up Bid Factor for Items | C32: OpenBidFactorCost
A33: 3 | B33: &Event Based Bid Factor for Items | C33: OpenBidFactorEvent
A34: 3 | B34: E&quipment TOC | C34: OpenEquipmentTOC
A35: 3 | B35: &International Sourcing TOC | C35: OpenIntlPurchTOC
A36: 1 | B36: &Performance Analysis | C36: 10
A37: 2 | B37: &Supplier Performance Index | C37: OpenSPI
A38: 2 | B38: &Throughput Analysis | C38: OpenThruPut
A39: 2 | B39: Value &Indices | C39: OpenValueIndices
A40: 2 | B40: Total Supplier &Productivity | C40: OpenValueProductivity
A41: 2 | B41: S&ourcing Performance Analyses
A42: 3 | B42: &Sourcing Savings by Earnings Per Share | C42: OpenSourcingSavingsByEPS
A43: 3 | B43: S&ourcing Savings by Return on Invested Capital | C43: OpenSourcingSavingsByROI
A44: 3 | B44: &Increased Sales to generate same savings | C44: OpenSourcingSavingsBySales
A45: 2 | B45: &Assessments
A46: 3 | B46: &Relationship | C46: OpenAsmntRel
A47: 3 | B47: &Organizational | C47: OpenAsmntOrg
A48: 3 | B48: &Team | C48: OpenAsmntTeam
A49: 1 | B49: Fi&nancial Analysis | C49: 10
A50: 2 | B50: &Payment Terms Analyses
A51: 3 | B51: &Payment Discount Analysis | C51: OpenPaymentDiscount
A52: 3 | B52: &Extended Payment Terms Analysis | C52: OpenExtendedTerms
A53: 2 | B53: &Financial Source | C53: FinancialData
A54: 2 | B54: S&olvency Ratios | C54: Solvency
A55: 2 | B55: L&everage Ratios | C55: Leverage
A56: 2 | B56: &Profitability Ratios | C56: Profitability
A57: 2 | B57: &Z-Score Analysis | C57: Z_Scores
A58: 1 | B58: SourcingAppsI&nfo | C58: 10
A59: 2 | B59: &Support Information | C59: About_SDS
A60: 2 | B60: &WorkSheet Conventions | C60: SDSInfoColor
A61: 2 | B61: &Saving Your Work | C61: SavingWork
A62: 2 | B62: &Agreement | C62: AgreementSummary

Sheet SheetProperties
A1: SheetName | B1: Rstrt | C1: Rend | D1: Cstrt
A2: SpecificQtyBrks | B2: 3 | C2: 10 | D2: 2 | E2: Entry | F2: 3 | G2: 4 | H2: Currency | I2: 4 | J2: 5 | K2: 6 | L2: 8 | M2: 9 | N2: Units | O2: 3 | P2: 7 | Q2: EOF
A3: RangeQtyBrks | B3: 3 | C3: 12 | D3: 2 | E3: Entry | F3: 3 | G3: 4 | H3: Currency | I3: 4 | J3: 5 | K3: 7 | L3: 8 | M3: 10 | N3: 11 | O3: Units | P3: 3 | Q3: 6 | R3: 9 | S3: EOF
A4: ExperienceCurve | B4: 3 | C4: 10 | D4: 3 | E4: Entry | F4: 4 | G4: Currency | H4: 5 | I4: 6 | J4: 7 | K4: 8 | L4: 10 | M4: Units | N4: 4 | O4: 9 | P4: EOF
A5: PeqFdivQPlusV | B5: 3 | C5: 16 | D5: 4 | E5: Entry | F5: 4 | G5: 5 | H5: Currency | I5: 5 | J5: ColumnID | K5: 3 | L5: EOF
A6: EOQ | B6: 3 | C6: 12 | D6: 2 | E6: Entry | F6: 4 | G6: 5 | H6: 6 | I6: 7 | J6: 8 | K6: Currency | L6: 5 | M6: 6 | N6: 10 | O6: ColumnID | P6: 3 | Q6: EOF
A7: PPMacro | B7: 3 | C7: 13 | D7: 2 | E7: Entry | F7: 4 | G7: 5 | H7: 6 | I7: Currency | J7: 8 | K7: 9 | L7: 10 | M7: 11 | N7: 12 | O7: ColumnID | P7: EOF
A8: PPCalculator | B8: 3 | C8: 25 | D8: 3 | E8: Entry | F8: 11 | G8: 12 | H8: 17 | I8: 18 | J8: 23 | K8: 24 | L8: Percent | M8: 11 | N8: 12 | O8: 17 | P8: 18 | Q8: 23 | R8: 24 | S8: EOF
A9: PPMicro | B9: 3 | C9: 39 | D9: 3 | E9: Entry | F9: 5 | G9: 6 | H9: 7 | I9: 8 | J9: 9 | K9: 10 | L9: 11 | M9: 12 | N9: 13 | O9: 14 | P9: 15 | Q9: 16 | R9: 17 | S9: 18 | T9: 19 | U9: Currency | V9: 21 | W9: 22 | X9: 23 | Y9: 24 | Z9: 25 | AA9: 26 | AB9: 27 | AC9: 28 | AD9: 29 | AE9: 30 | AF9: 31 | AG9: 32 | AH9: 33 | AI9: 34 | AJ9: 35 | AK9: 36 | AL9: 37 | AM9: 38 | AN9: Percent | AO9: 39 | AP9: EOF
A10: BreakEven | B10: 4 | C10: 9 | D10: 2 | E10: Entry | F10: 4 | G10: 5 | H10: 6 | I10: 7 | J10: Currency | K10: 5 | L10: 6 | M10: 7 | N10: 9 | O10: Units | P10: 4 | Q10: 8 | R10: EOF
A11: LearnCurve | B11: 3 | C11: 21 | D11: 3 | E11: Entry | F11: 5 | G11: 6 | H11: 7 | I11: 8 | J11: 9 | K11: 10 | L11: 11 | M11: Currency | N11: 6 | O11: 7 | P11: 8 | Q11: 15 | R11: 16 | S11: 17 | T11: 18 | U11: 19 | V11: 20 | W11: 21 | X11: Units | Y11: 5 | Z11: 14 | AA11: ColumnID | AB11: 4 | AC11: EOF
A12: LearningCurve | B12: 4 | C12: 22 | D12: 3 | E12: Entry | F12: 4 | G12: EOF
A13: StanfordB | B13: 4 | C13: 26 | D13: 2 | E13: Entry | F13: 20 | G13: 21 | H13: 22 | I13: 23 | J13: 24 | K13: Currency | L13: 20 | M13: 21 | N13: 22 | O13: 25 | P13: 26 | Q13: ColumnID | R13: 17 | S13: EOF
A14: TheoreticalMinWt | B14: 3 | C14: 14 | D14: 2 | E14: Entry | F14: 4 | G14: 5 | H14: 6 | I14: 7 | J14: 9 | K14: 10 | L14: 11 | M14: Currency | N14: 4 | O14: 14 | P14: ColumnID | Q14: 3 | R14: Units | S14: 6 | T14: EOF
A15: TheoreticalMinCp | B15: 3 | C15: 14 | D15: 2 | E15: Entry | F15: 4 | G15: 5 | H15: 6 | I15: 7 | J15: 9 | K15: 10 | L15: Currency | M15: 4 | N15: 14 | O15: ColumnID | P15: 3 | Q15: EOF
A16: TheoreticalMinUWR | B16: 3 | C16: 13 | D16: 2 | E16: Entry | F16: 4 | G16: 5 | H16: 6 | I16: 7 | J16: 9 | K16: 10 | L16: Currency | M16: 4 | N16: 13 | O16: ColumnID | P16: 3 | Q16: EOF
A17: BidFactorCost | B17: 3 | C17: 21 | D17: 2 | E17: Entry | F17: 4 | G17: 7 | H17: 9 | I17: 10 | J17: 11 | K17: 12 | L17: 13 | M17: 14 | N17: 15 | O17: 16 | P17: 17 | Q17: Currency | R17: 4 | S17: 5 | T17: 7 | U17: 9 | V17: 10 | W17: 11 | X17: 12 | Y17: 13 | Z17: 14 | AA17: 15 | AB17: 16 | AC17: 17 | AD17: 18 | AE17: 19 | AF17: 21 | AG17: ColumnID | AH17: 3 | AI17: EOF
A18: EPQ | B18: 3 | C18: 13 | D18: 2 | E18: Entry | F18: 4 | G18: 5 | H18: 6 | I18: 7 | J18: 8 | K18: Currency | L18: 5 | M18: 6 | N18: 10 | O18: ColumnID | P18: 3 | Q18: EOF
A19: BidFactorEvent | B19: 4 | C19: 12 | D19: 4 | E19: Entry | F19: 5 | G19: 6 | H19: 7 | I19: 8 | J19: 11 | K19: Currency | L19: 10 | M19: 11 | N19: ColumnID | O19: 4 | P19: EOF
A20: EquipmentTOC | B20: 3 | C20: 26 | D20: 2 | E20: Entry | F20: 5 | G20: 6 | H20: 7 | I20: 11 | J20: 12 | K20: 13 | L20: 14 | M20: 15 | N20: 18 | O20: 19 | P20: 20 | Q20: 21 | R20: 24 | S20: 25 | T20: Currency | U20: 5 | V20: 6 | W20: 7 | X20: 8 | Y20: 9 | Z20: 11 | AA20: 12 | AB20: 13 | AC20: 14 | AD20: 15 | AE20: 16 | AF20: 18 | AG20: 19 | AH20: 20 | AI20: 2 | AJ20: 22 | AK20: 23 | AL20: 26 | AM20: ColumnID | AN20: 3 | AO20: EOF
A21: IntlPurchTOC | B21: 3 | C21: 36 | D21: 2 | E21: Entry | F21: 3 | G21: 4 | H21: 5 | I21: 6 | J21: 8 | K21: 9 | L21: 10 | M21: 11 | N21: 12 | O21: 13 | P21: 14 | Q21: 15 | R21: 16 | S21: 19 | T21: 20 | U21: 21 | V21: 22 | W21: 23 | X21: 24 | Y21: 25 | Z21: 26 | AA21: 29 | AB21: 30 | AC21: 31 | AD21: 32 | AE21: 33 | AF21: Currency | AG21: 4 | AH21: 8 | AI21: 9 | AJ21: 10 | AK21: 11 | AL21: 12 | AM21: 13 | AN21: 14 | AO21: 15 | AP21: 16 | AQ21: 17 | AR21: 19 | AS21: 20 | AT21: 21 | AU21: 22 | AV21: 23 | AW21: 24 | AX21: 25 | AY21: 26 | AZ21: 27 | BA21: 29 | BB21: 30 | BC21: 31 | BD21: 32 | BE21: 33 | BF21: 34 | BG21: 35 | BH21: 36 | BI21: EOF
A22: SPI | B22: 5 | C22: 15 | D22: 4 | E22: Entry | F22: 6 | G22: 7 | H22: 8 | I22: 9 | J22: 10 | K22: 12 | L22: 13 | M22: 14 | N22: Currency | O22: 11 | P22: 12 | Q22: 13 | R22: 14 | S22: EOF
A23: ThruPut | B23: 3 | C23: 12 | D23: 2 | E23: Entry | F23: 4 | G23: 5 | H23: 6 | I23: 7 | J23: 8 | K23: ColumnID | L23: 3 | M23: EOF
A24: ValueProductivity | B24: 4 | C24: 16 | D24: 3 | E24: Entry | F24: 5 | G24: 6 | H24: 7 | I24: 10 | J24: 11 | K24: 12 | L24: 13 | M24: 14 | N24: Currency | O24: 5 | P24: 6 | Q24: 7 | R24: 8 | S24: 10 | T24: 11 | U24: 12 | V24: 13 | W24: 14 | X24: 15 | Y24: ColumnID | Z24: 4
A25: SourcingSavingsBy | B25: 3 | C25: 16 | D25: 3 | E25: Entry | F25: 4 | G25: 5 | H25: 9 | I25: 10 | J25: 14 | K25: 15 | L25: Currency | M25: 4 | N25: 6 | O25: 9 | P25: 10 | Q25: 14 | R25: 16 | S25: EOF
A26: AsmntRel | B26: 3 | C26: 31 | D26: 4 | E26: Entry | F26: 5 | G26: EOF
A27: AsmntOrg | B27: 3 | C27: 43 | D27: 4 | E27: Entry | F27: 5 | G27: EOF
A28: AsmntTeam | B28: 3 | C28: 90 | D28: 3 | E28: Entry | F28: 11 | G28: EOF
A29: ExtendedTerms | B29: 3 | C29: 10 | D29: 2 | E29: Entry | F29: 4 | G29: 5 | H29: 6 | I29: 7 | J29: Currency | K29: 7 | L29: 8 | M29: 9 | N29: ColumnID | O29: 3 | P29: Percent | Q29: 6 | R29: EOF
A30: PaymentDiscount | B30: 3 | C30: 10 | D30: 2 | E30: Entry | F30: 4 | G30: 5 | H30: 6 | I30: 7 | J30: Currency | K30: 7 | L30: 9 | M30: ColumnID | N30: 3 | O30: PerCent | P30: 8 | Q30: EOF
A31: ValueIndices | B31: 8 | C31: 13 | D31: 3 | E31: Entry | F31: 9 | G31: 10 | H31: 11 | I31: Currency | J31: 9 | K31: ColumnID | L31: 8 | M31: EOF
A32: FinancialData | B32: 3 | C32: 34 | D32: 3 | E32: Entry | F32: 4 | G32: 5 | H32: 6 | I32: 7 | J32: 8 | K32: 9 | L32: 11 | M32: 12 | N32: 14 | O32: 15 | P32: 16 | Q32: 17 | R32: 19 | S32: 20 | T32: 21 | U32: 24 | V32: 25 | W32: 26 | X32: 27 | Y32: 29 | Z32: 30 | AA32: 31 | AB32: 32 | AC32: 33 | AD32: 34 | AE32: Currency | AF32: 5 | AG32: 6 | AH32: 7 | AI32: 8 | AJ32: 9 | AK32: 10 | AL32: 11 | AM32: 12 | AN32: 13 | AO32: 14 | AP32: 15 | AQ32: 16 | AR32: 17 | AS32: 18 | AT32: 19 | AU32: 20 | AV32: 21 | AW32: 22 | AX32: 23 | AY32: 24 | AZ32: 25 | BA32: 26 | BB32: 27 | BC32: 28 | BD32: 29 | BE32: 30 | BF32: 31 | BG32: 32 | BH32: 33 | BI32: 34 | BJ32: EOF
A33: Solvency | B33: 2 | C33: 10 | D33: 1 | E33: Entry | F33: 3 | G33: 5 | H33: 7 | I33: 10 | J33: 8 | K33: Entry | L33: 1 | M33: eof
A34: Leverage | B34: 2 | C34: 10 | D34: 1 | E34: Entry | F34: 3 | G34: 5 | H34: 7 | I34: 10 | J34: 8 | K34: Entry | L34: 1 | M34: eof
A35: Profitability | B35: 2 | C35: 10 | D35: 1 | E35: Entry | F35: 3 | G35: 5 | H35: 7 | I35: 10 | J35: 8 | K35: Entry | L35: 1 | M35: eof
A36: Z-Scores | B36: 2 | C36: 10 | D36: 1 | E36: Entry | F36: 3 | G36: 5 | H36: 7 | I36: 10 | J36: 8 | K36: Entry | L36: 1 | M36: eof
A37: EnergyCosts | B37: 6 | C37: 16 | D37: 2 | E37: Entry | F37: 7 | G37: 8 | H37: 10 | I37: 11 | J37: Currency | K37: 7 | L37: 8 | M37: 10 | N37: 11 | O37: 14 | P37: 15 | Q37: 16 | R37: Percent | S37: 9 | T37: 12 | U37: 13 | V37: ColumnID | W37: 2 | X37: 3 | Y37: 4 | Z37: EOF
A38: NAICScostComparisons | B38: 3 | C38: 9 | D38: 2 | E38: Entry | F38: 4 | G38: 5 | H38: 6 | I38: 7 | J38: 8 | K38: 9 | L38: Percent | M38: 4 | N38: 5 | O38: 6 | P38: 7 | Q38: 8 | R38: 9 | T38: Currency | U38: 10 | V38: EOF
A39: EnergyCostComparisons | B39: 3 | C39: 6 | D39: 2 | E39: Entry | F39: 4 | G39: 5 | H39: 6 | I39: Percent | J39: 4 | K39: 5 | L39: 6 | M39: Currency | N39: 8 | O39: EOF
A40: TheoreticalMinRebar | B40: 3 | C40: 13 | D40: 2 | E40: Entry | F40: 4 | G40: 5 | H40: 6 | I40: 7 | J40: 9 | K40: 10 | L40: Currency | M40: 4 | N40: 13 | O40: ColumnID | P40: 3 | Q40: EOF
A41: EOFSheet
A42: Notes:
B43: 1. The comments for the Sheetnames in Column A contain the Procedure to run when the worksheet has value change that causes a recalculation.
A45: Following is StartEngine Information for Note #1 above
A46: '1Worksheets("SpecificQtyBrks").OnEntry = "EnterQDAQtyBrks"
A47: '2Worksheets("RangeQtyBrks").OnEntry = "EnterQDAQtyBrks"
A48: '3Worksheets("EOQ").OnEntry = "EnterEOQ"
A49: '4Worksheets("EPQ").OnEntry = "EPQFormat"
A50: '5Worksheets("BreakEven").OnEntry = "BreakEvenChanges"
A51: '6Worksheets("PPMacro").OnEntry = "FitPPMacro"
A52: '7Worksheets("PPMicro").OnEntry = "PPMicroDataEntry"
A53: '8Worksheets("PeqFdivQPlusV").OnEntry = "FixedVarChanges"
A54: '9Worksheets("ExperienceCurve").OnEntry = "EnterExperienceCurve"
A55: '10Worksheets("ExperienceCurve").OnCalculate = "GraphExperienceCurve"
A56: '11Worksheets("StanfordB").OnEntry = "FormatStanfordB_Table"
A57: '12Worksheets("AsmntOrg").OnEntry = "AsmntOrgMakeX"
A58: '14Worksheets("AsmntRel").OnEntry = "AsmntRelMakeX"
A59: '15Worksheets("ThruPut").OnEntry = "FormatThruPutCols"
A60: '16Worksheets("ValueIndices").OnEntry = "FormatValueIndices_Table"
A61: '17Worksheets("ValueProductivity").OnEntry = "FormatValueProductivity_Table"
A62: '18Worksheets("AsmntTeam").OnEntry = "AsmntTeamMakeX"
A63: '19Worksheets("SPI").OnEntry = "FormatSPI_Table"
A64: '20Worksheets("LearnCurve").OnEntry = "FormatLearnCurve_Table"
A65: '21Worksheets("ValueIndices").OnEntry = "FormatValueIndices_Table"
A66: '22Worksheets("FinancialData").OnEntry = "FlagToFormatFinancialData_Table"
A67: '23Worksheets("AgreementSummary").Activate
A68: '24Worksheets("PaymentDiscount").OnEntry = "FormatPaymentDiscount"
A69: '25Worksheets("ExtendedTerms").OnEntry = "FormatExtendedTerms"
A70: '26Worksheets("BidFactorEvent").OnEntry = "FormatBidFactorEvent"
A71: '27Worksheets("BidFactorCost").OnEntry = "FormatBidFactorCost"
A72: '28Worksheets("EquipmentTOC").OnEntry = "FormatEquipmentTOC"
A73: '29Worksheets("IntlPurchTOC").OnEntry = "FormatIntlPurchTOC"
A74: '30Worksheets("SourcingSavingsBy").OnEntry = "FormatSourcingSavingsBy"
A75: '31Worksheets("TheoreticalMinWt").OnEntry = "FormatTheoreticalMinWt"
A76: '32Worksheets("TheoreticalMinCp").OnEntry = "FormatTheoreticalMinCp"
A77: '33Worksheets("TheoreticalMinUWR").OnEntry = "FormatTheoreticalMinUWR"
A78: '34Worksheets("EnergyCosts").OnEntry = "FormatEnergyCosts"

Sheet TransferInfo
A1: From/To | B1: SpecificQtyBrks | C1: RangeQtyBrks | D1: PeqFdivQPlusV | E1: ExperienceCurve | F1: EOQ | G1: PPCalculator | H1: PPMacro | I1: PPMicro | J1: BreakEven | K1: LearningCurve | L1: LearnCurve | M1: StanfordB | N1: EPQ | O1: TheoreticalMinWt | P1: TheoreticalMinCp | Q1: TheoreticalMinUWR | R1: BidFactorCost | S1: BidFactorEvent | T1: EquipmentTOC | U1: IntlPurchTOC | V1: SPI | W1: ThruPut | X1: ValueIndices | Y1: ValueProductivity | Z1: SourcingSavingsBy | AA1: SourcingSavingsBy | AB1: SourcingSavingsBy | AC1: AsmntRel | AD1: AsmntOrg | AE1: AsmntTeam | AF1: PaymentDiscount | AG1: ExtendedTerms | AH1: FinancialData | AI1: Solvency | AJ1: Leverage | AK1: Profitability | AL1: Z-Scores | AM1: frmCalcLearningCurve | AN1: frmdiagCalcUnitVarCost | AO1: frmPPMicroCalculator
A2: SpecificQtyBrks | D2: 1 | E2: 1 | F2: 1 | J2: 1 | L2: 1
A3: RangeQtyBrks | D3: 1 | E3: 1 | F3: 1 | J3: 1 | L3: 1
A4: PeqFdivQPlusV | E4: 1 | F4: 1 | J4: 1 | AM4: 1
A5: ExperienceCurve
A6: EOQ
A7: PPCalculator
A8: PPMacro
A9: PPMicro
A10: BreakEven
A11: LearningCurve
A12: LearnCurve | M12: 1 | AM12: 1
A13: StanfordB
A14: EPQ
A15: TheoreticalMinWt
A16: TheoreticalMinCp
A17: TheoreticalMinUWR
A18: BidFactorCost
A19: BidFactorEvent
A20: EquipmentTOC
A21: IntlPurchTOC
A22: SPI
A23: ThruPut
A24: ValueIndices
A25: ValueProductivity
A26: SourcingSavingsBy
A27: SourcingSavingsBy
A28: SourcingSavingsBy
A29: AsmntRel
A30: AsmntOrg
A31: AsmntTeam
A32: PaymentDiscount
A33: ExtendedTerms
A34: FinancialData
A35: Solvency
A36: Leverage
A37: Profitability
A38: Z-Scores
A39: frmCalcLearningCurve | L39: 1 | M39: 1
A40: frmUnitVarCost | J40: 1 | L40: 1 | M40: 1 | AM40: 1
A41: frmPPMicroCalculator | I41: 1 | AM41: 1

Sheet HelpSteps
A1: SheetName | B1: Help Title | C1: ElevatorWords | D1: Step01 | E1: Step02 | F1: Step03 | G1: Step04 | H1: Step05 | I1: Step06 | J1: Step07 | K1: Step08 | L1: Step09 | M1: Step10 | N1: Step11 | O1: Step12 | P1: Step13 | Q1: Step14 | R1: Step15 | S1: Step16 | T1: Step17 | U1: Step18 | V1: Step19 | W1: Step20 | X1: Step21 | Y1: Step22 | Z1: Step23
A2: AgreementSummary | B2: (We are using the Sheet title for this)
A3: Agreement
A4: SpecificQtyBrks | B4: Quantity Discount Analysis: Specific Quantities | C4: Are discounts for larger quantities real or imagined? | D4: (Set Number of Columns) [Use the column spinner to set the number of columns.You will need a column for each specific price/quantity pair you have] {Click the spinner up to increase the number of columns; down to decrease. Maximum is 10…Minimum is 2} <spnColumns> | E4: (How to use Specific Quanties) [Enter the information for each price/quantity pair in the "blue" data entry rows. If you need more or fewer columns, go to step one and click the column spinner up or down again] {Enter the quantity and price data in these cells} <Entry> | F4: (Set Decimal Place for Currency amounts.) [Use the "decimal" spinner up or down to set the precision you wish for currency. Don't use more precision than you need...it clutters things up.] {The "decimal" you select will be used for all currency cells.} <spnDecimal> | G4: (Check Validity of Data) [It is optional,but you may want to check your data for validity or appropriateness. Click the "Check Validity" button to see if data you entered is rational] {Click this button for validity check} <cmdValidate> | H4: (Pass Data to Other Sheets) [You may want to use the same data for other analyses. To avoid reentering the data, click the "Pass Data To…" button to see where you can reuse the data] {Click this button to open up the form to set up transfers to other sheets. This will keep you from having to reenter the data elsewhere} <cmdPassResults> | I4: (Title your Work) [It is generally a good idea to document your work if you're going to communicate results to others. Click the "Project ID" button to give this project a title] {Click this button to update the title sheet} <cmdProjectID> | J4: (How to print your results) [If you have a printer available on your computer, click the "Print Table & Chart" button to print this worksheet. Suppliers are often pleased to get this analysis information to be afforded the opportunity to explain their pricing to you. Print or fax the information to them with a cover letter explaining the analysis.] {This is the button to click to print or fax your analysis results} <cmdPrint> | K4: (Change chart scale) [The Excel default vertical chart scale is often not what you want to see. Click "Show Me" on Step 8 to see the button for changing the chart scale.] {Click this button to adjust the chart vertical scale} <cmdChartVertical>
A5: RangeQtyBrks | B5: Quantity Discount Analysis: Range Quantities | C5: What is the maximum quantity you should buy in each range? Are discounts for larger quantities real or imagined? | D5: (Set the Number of Columns) [Use the column spinner to set the number of columns. You will need a column for each specific price/quantity pair you have.] {Click the spinner up to increase the number of columns down to decrease. Maximum is 10…Minimum is 2} <spnColumns> | E5: (How to use range of Quanties) [Enter the information for each price/quantity pair in the "blue" data entry rows. Separate the range amounts by a dash. If you need more or fewer columns, go to step one and click on the column spinner up or down again] {Enter the quantity and price data in these cells. DO NOT FORGET THE DASH TO SEPARATE Low-High QUANTITIES} <Entry> | F5: (Set Decimal Place for Currency amounts.) [Use the "decimal" spinner up or down to set the precision you wish for currency. Don't use more precision than you need...it clutters things up.] {The "decimal" you select will be used for all currency cells.} <spnDecimal> | G5: (Check Validity of Data) [It is optional,but you may want to check your data for validity or appropriateness. Click the "Check Validity" button to see if data you entered is rational] {Click this button for validity check} <cmdValidate> | H5: (Pass Data to Other Sheets) [You may want to use the same data for other analyses. To avoid reentering the data, click the "Pass Data To…" button to see where you can reuse the data] {Click this button to open up the form to set up transfers to other sheets. This will keep you from having to reenter the data elsewhere} <cmdPassResults> | I5: (Title your Work) [It is generally a good idea to document your work if you're going to communicate results to others. Click the "Project ID" button to give this project a title] {Click this button to update the title sheet} <cmdProjectID> | J5: (How to print your results) [If you have a printer available on your computer, click the "Print Table & Chart" button to print this worksheet. Suppliers are often pleased to get this analysis information to be afforded the opportunity to explain their pricing to you. Print or fax the information to them with a cover letter explaining the analysis.] {This is the button to click to print or fax your analysis results} <cmdPrint> | K5: (Change chart scale) [The Excel default vertical chart scale is often not what you want to see. Click "Show Me" on Step 8 to see the button for changing the chart scale.] {Click this button to adjust the chart vertical scale} <cmdChartVertical>
A6: PeqFdivQPlusV | B6: Estimating Fixed and Variable Costs | C6: Is an item's price more sensitive to changes in unit volume or variable costs? | D6: (Set the Number of Columns) [Use the column spinner to set the number of columns. You will need a column for each price and quantity you have.] {Click the spinner up to increase the number of columns down to decrease. Maximum is 10…Minimum is 2} <spnColumns> | E6: (How to Enter Data) [Enter the information for each unit price and unit quantity pair you have in the "blue" data entry rows. If you have range pricing enter the highest quantity in the range. If you need more or fewer columns, go to step one and click on the column spinner up or down again] {Enter the quantity and price data in these cells} <Entry> | F6: (Ensuring Accurate Unit Prices and Total Fixed Costs) [This analysis requires you to enter unit prices and for unit quantities (each, ton, kilo, liter, gallon). Use the "decimal" spinner up or down to set the precision you wish. Note MS Excel remembers the data as entered, even though is it not displayed. Don't use more than you need...it clutters things up.] {This is the button to spin up for more precise unit prices.} <spnDecimal> | G6: (Estimate the Price for this Quantity) [Use the Fixed and Variable cost estimates to forecast a price for quantity not provided by your supplier.] {Enter the Quantity for which you want a price forecast in this cell} <Cell(6,3)> | H6: (Check Validity of Data) [It is optional,but you may want to check your data for validity or appropriateness. Click the "Check Validity" button to see if data you entered is rational] {Click this button for validity check} <cmdValidate> | I6: (Explain the shaded cells) [The shaded cells in the results rows show the unit price that was used to produce the results shown in RED ] {The first two cells show the prices you entered from your quotation. These prices and quantities were used to calculate all the Red results in this row } <Cell(7,4)> | J6: (The first result you get from two quotes) [A Total Fixed Cost calculation and a Variable Unit Costs (includes profit) Calculation] {This cell shows the calculated results from price pairs 1 & 2. TotalFixedCosts and VarUnitCosts (including profit)} <Cell(7,2)> | L6: (Pass Data to Other Sheets) [You may want to use the same data for other analyses. To avoid reentering the data, click the "Pass Data To…" button to see where you can reuse the data] {Click this button to open up the form to set up transfers to other sheets. This will keep you from having to reenter the data elsewhere} <cmdPassResults> | M6: (Title your Work) [It is generally a good idea to document your work if you're going to communicate results to others. Click the "Project ID" button to give this project a title] {Click this button to update the title sheet} <cmdProjectID> | N6: (How to print your results) [If you have a printer available on your computer, click the "Print Table & Chart" button to print this worksheet. Suppliers are often pleased to get this analysis information to be afforded the opportunity to explain their pricing to you. Print or fax the information to then with a cover letter explaining the analysis.] {This is the button to click to print or fax your analysis results} <cmdPrint> | O6: (Remove Profit from Variable Cost) [To refine cost estimates take out the profit from variable costs. This information can be used for helping suppliers pass other costs savings on to you] {This is the buttonto click for removing profit from variable costs} <cmdVarCost>
A7: ExperienceCurve | B7: Experience Effect | C7: Prices decrease as volume increases because the experience accumulates. Is the "Experience Effect Rate" for this item reasonable? | D7: (Set the Number of Columns) [Use the column spinner to set the number of columns.] {Click the spinner up to increase the number of columns down to decrease. Maximum is 10…Minimum is 2} <spnColumns> | E7: (Set Decimal Place for Currency amounts.) [Use the "decimal" spinner up or down to set the precision you wish for currency. Don't use more precision than you need...it clutters things up.] {The "decimal" you select will be used for all currency cells.} <spnDecimal> | F7: (How to Enter Data) [Enter the information for first order quantity and then the quantity each subsequent order quantities in the "blue" data entry rows. If you need more or fewer columns, go to step one and click on the column spinner up or down again. Then enter the unit price for the first order quantity. ] {Enter the quantity and price data in these cells} <Entry> | G7: (Set Experience Effect Rate) [Enter the Experience Effect Rate (EER) you believe is correct, or estimate the EER by adusting the EER such that the first price/quantity and last price/quantity match your quote. You may also use the Goal Seek feature of Excel to calculate the EER.] {Enter EER here} <Cell(3,2)> | H7: (Enter quantity in first order.) [This will be the base quantity to which the EER will be applied to calculate prices for future orders.] {Enter quantity for first order here.} <Cell(4,2)> | I7: (Enter the Price for your first order.) [This will be the base price for which the EER will be used to calculate prices for additional orders.] {Price for first order here.} <Cell(5,2)> | J7: (Title your Work) [It is generally a good idea to document your work if you're going to communicate results to others. Click the "Project ID" button to give this project a title] {Click this button to update the title sheet} <cmdProjectID> | K7: (Change chart scale) [The Excel default vertical chart scale is often not what you want to see. Click "Show Me" on Step 8 to see the button for changing the chart scale.] {Click this button to adjust the chart vertical scale} <cmdChartVertical>
A8: EOQ | B8: Economic Order Quanity | C8: Minimize the impact of "ordering" and "holding" costs by ordering the right lot size. | D8: (Set the Number of Columns) [Use the column spinner to set the number of columns] {Click the spinner up to increase the number of columns down to decrease. Maximum is 10…Minimum is 2} <spnColumns> | E8: (How to Enter Data) [Enter the information for each column in the "blue" data entry rows. If you need more or fewer columns, go to step one and click on the column spinner up or down again] {Enter the quantity and price data in these cells} <Entry> | F8: (Set Decimal Place for Currency amounts.) [Use the "decimal" spinner up or down to set the precision you wish for currency. Don't use more precision than you need...it clutters things up.] {The "decimal" you select will be used for all currency cells.} <spnDecimal> | G8: (Where do I get "Ordering Cost") [Ordering costs are normally an estimate of the cost to; issue a purchase order, receive the item, inspection and/or testing and issuing payment. Odering costs can vary widely, $60 to $150. ] {Ordering costs for each trial are entered in this row...blue cells} <Cell(5,2)> | H8: (How to I determine "Carrying Cost") [Carrying Costs can be as simple as the cost of money to your company. Some companies include charges (stated in percentages) for storage, insurance, handling and obsolences, plus the cost money into their "Carrying Costs."] {Carrying cost for each trial are entered in this row...blue cells} <Cell(8,2)> | I8: (Title your Work) [It is generally a good idea to document your work if you're going to communicate results to others. Click the "Project ID" button to give this project a title] {Click this button to update the title sheet} <cmdProjectID> | J8: (How to print your results) [If you have a printer available on your computer, click the "Print Table & Chart" button to print this worksheet. Suppliers are often pleased to get this analysis information to be afforded the opportunity to explain their pricing to you. Print or fax the information to then with a cover letter explaining the analysis.] {This is the button to click to print or fax your analysis results} <cmdPrint>
A9: PPCalculator | B9: Price Productivity Calculator | C9: Using established ratios calculate the cost take-out or volume increase needed to reduce selling prices, while maintaining operating income. | D9: (Select the Scenario That fits your situation) [Three opportunites are considered to allow your supplier to maintainin Operating Profits while reducing Variable Costs; Reducing Fixed Costs; or Increasing Unit Volume. Present your supplier with a combination of these opportunities.] {Variable Costs, Fixed Costs, Unit Volume Opportunities } <Cell(11,2),Cell(17,2),Cell(23,2),Cell(11,2)> | E9: (How to Enter Data) [Enter the information for each Operating Profit Margin/Price Decrease Needed in the "blue" data entry rows. ] {"Blue" Operating Profit and Price Decrease data result in "Red" actions your supplier can take.} <Cell(13,3),Cell(19,3),Cell(25,3),Cell(13,3)> | F9: (Title your Work) [It is generally a good idea to document your work if you're going to communicate results to others. Click the "Project ID" button to give this project a title] {Click this button to update the title sheet} <cmdProjectID> | G9: (How to print your results) [If you have a printer available on your computer, click the "Print Table & Chart" button to print this worksheet. Suppliers are often pleased to get this analysis information to be afforded the opportunity to explain their pricing to you. Print or fax the information to them with a cover letter explaining the analysis.] {This is the button to click to print or fax your analysis results} <cmdPrint> | K9: [The Excel default vertical chart scale is often not what you want to see. Click "Show Me" on Step 8 to see the button for changing the chart scale.]
A10: PPMacro | B10: Price Productivity Macro | C10: Calculate the actual impact on operating income from changes to net sales billed, and variable/fixed costs for a specific company's financial data. | D10: (Current Operations Information) [The Current Operations Information provides the basis for calculating the impact of percent changes in Net Sales Billed (Quantity x UnitPrice), Variable Costs, and Fixed Costs. ] {Enter data in "Blue" cells} <Cell(8,2),Cell(9,2),Cell(11,2),Cell(8,2)> | E10: (Enter Data in the "Changes Table") [Make all percent changes to Net Sales Billed , Variable Costs, and Fixed Costs in this table. Use a minus sign to indicate a negative change.] {Percent Changes in this table. } <Entry> | F10: (Set Decimal Place for Currency amounts.) [Use the "decimal" spinner up or down to set the precision you wish for currency. Don't use more precision than you need...it clutters things up.] {The "decimal" you select will be used for all currency cells.} <spnDecimal> | G10: (Operating Income Changes) [The results of change made in the "Changes Table" are immediately displayed as "Operating Income Changed By" at the bottom of Results Table in percentage format. The "Current Operations" data is the basis data used for each change scenario you input.] {Changes in Operating Income} <Cell(13,3),Cell(13,4),Cell(13,5),Cell(13,6),Cell(13,7),Cell(13,3)> | H10: (Title your Work) [It is generally a good idea to document your work if you're going to communicate results to others. Click the "Project ID" button to give this project a title] {Click this button to update the title sheet} <cmdProjectID> | I10: (How to print your results) [If you have a printer available on your computer, click the "Print Table & Chart" button to print this worksheet. Suppliers are often pleased to get this analysis information to be afforded the opportunity to explain their pricing to you. Print or fax the information to them with a cover letter explaining the analysis.] {This is the button to click to print or fax your analysis results} <cmdPrint> | J10: (Finding Financial Data) [Specific company financial information is available from annual reports or from financial data reported to the Security Exchange Commission (www.sec.gov). Industry financial information is available from the Quarterly Financial Report publishing by the US Census Bureau (www.census.gov). If fixed and variable cost data is not available from a supplier a fixed and variable cost analysis may be yeild the information you need (remember to remove profit from the variable cost ).] {Financial Information obtained from customer or publically available sources.} <Cell(8,2),Cell(9,2),Cell(11,2),Cell(8,2)>
A11: PPMicro | B11: Price Productivity Micro | C11: Calculate the impact on operating income from changes in net sales billed, direct material, diect labor, manufacturing overhead and fixed costs for a specific company's financial data. | D11: (Enter Net Sales Billed for Current Operations) [Net Sales Billed Information is one of the inputs needed to calculate Operating Income. This input is usually Quantity x Unit Price] {Net Sales Billed is entered here.} <Cell(21,3)> | E11: (Enter or Calculate Fixed Costs for Current Operations) [Fixed Costs is needed to calculate Operating Income.] {Fixed Costs is entered here.} <Cell(37,3)> | F11: (Enter Operating Income as % of sales for Current Operations) [This Operating Income percentage will be the basis used for comparison as various trial changes are analyized.] {Enter Operating Income as % of sales here.} <Cell(38,2)> | G11: (Enter Variable Cost component percentages for current operations.) [Variable Costs are made up of Direct Material, Direct Labor, and Variable Overhead] {Put Direct Material, Direct Labor, and Variable Overhead Percentages of Variable Costs in these three rows.} <Cell(23,2),Cell(34,2),Cell(35,2)> | H11: (Make Variable Costs component percentages add up to 100%) [Direct Material, Direct Labor, and Variable Overhead percentages must total 100%. If they do not total 100% then a message is displayed.] {Experiement with the "Sum to 100" helper by changing one of these values so the total is NOT 100%.} <Cell(23,2),Cell(34,2),Cell(35,2)> | I11: (Make entries in Changes Table) [The Changes Table allows five scenarios of "Percent Changes" to exising operations. Make desired percent changes to Net Sales Billed , Direct Material Costs, Direct Labor Costs, Variable Overhead Costs, and Fixed Costs.] {Enter the percent changes you wish to see in Net Sales Billed, Direct Material Costs, Direct Labor Costs, Variable Overhead Costs and Fixed Cost in these cells in percentages. A negative number will be displayed in red.} <Cells(5,3),Cells(6,3),Cells(17,3),Cells(18,3), Cells(19,3)> | J11: (Operating Income Changed by results) [The result to any change made in the "Changes Table" are immediately displayed as "Operating Income Changed By" at the bottom of Results Table in percentage format. The "Current Operations" data is the basis for each change scenario you input.] {Operating Income Percentage Change for each scenario.} <Cell(39,4),Cell(39,5),Cell(39,6),Cell(39,7),Cell(39,8), Cell(39,4)> | K11: (Enter Direct Material breakout descriptions.) [Make sure the "Direct Material Breakout Operations" box is checked. Then enter the material break out descriptions.] {Change these material descriptions to be the breakout components you want to analyze.} <Cell(24,1),Cell(25,1),Cell(26,1),Cell(27,1),Cell(28,1),Cell(29,1),Cell(30,1),Cell(31,1),Cell(32,1),Cell(33,1)> | L11: ( Current Operations Basis data for materials breakout.) [Direct Materials may be broken out into ten components. The percentage that each of these components is of total Direct Materials is needed to perform change calculations] {Enter the percentage that each of the Direct Material components is of the total. These entries must add to 100%.} <Cell(24,2),Cell(25,2),Cell(26,2),Cell(27,2),Cell(28,2),Cell(29,2),Cell(30,2),Cell(31,2),Cell(32,2),Cell(33,2)> | M11: (Enter percent changes in the Direct Mataerial breakout components.) [Five scenarios reflecting changes in Direct Material components may be entred.] {Enter Direct Material component changes in these columns} <Cell(9,4),Cell(9,5),Cell(9,6),Cell(9,7),Cell(9,8),Cell(9,4)> | N11: (Accept the changes you have indicated to be made.) [The "Accept" button may be clicked to accept the changes you have entered for Direct Material components.] {Click this button to accept the changes you have made in the direct material breakout components.} <cmdAccept> | O11: (Where to obtain Direct Material, Direct Labor, Variable Overhead as a percent of Variable Costs.) [If supplier’s are unwilling to provide cost/profit information use the DirectMaterial, Labor, VarOvrh’d, Fixed CostCalculator to estimate Costs and Operating Income.] {Use this calculator to get input information to Variable Costs. Click on this button to see the calculator form.} <cmdDMLabVoh> | P11: (Title your Work) [It is generally a good idea to document your work if you're going to communicate results to others. Click the "Project ID" button to give this project a title] {Click this button to update the title sheet} <cmdProjectID> | Q11: (How to print your results) [If you have a printer available on your computer, click the "Print Table & Chart" button to print this worksheet. Suppliers are often pleased to get this analysis information to be afforded the opportunity to explain their pricing to you. Print or fax the information to then with a cover letter explaining the analysis.] {This is the button to click to print or fax your analysis results} <cmdPrint>
A12: BreakEven | B12: Break-Even Analysis | C12: At what unit of production do total cost and total revenue intersect. The earlier in the production run the higher a company's profit margin. | D12: (Set the Number of Columns) [Use the column spinner to set the number of columns. You need to have a column for each break-even calculation you wish to perform.] {Click the spinner up to increase the number of columns down to decrease. Maximum is 10…Minimum is 2} <spnColumns> | E12: (How to Enter Data) [Enter the information for Unit Selling Price, Unit Variable Cost (remember to remove "profit" if you are transferring data from a Fixed & Variable Cost Analysis) in the "blue" data entry rows.] {Enter data in these "Blue" cells} <Entry> | F12: (Set Decimal Place for Currency amounts.) [Use the "decimal" spinner up or down to set the precision you wish for currency. Don't use more precision than you need...it clutters things up.] {The "decimal" you select will be used for all currency cells.} <spnDecimal> | G12: (Displaying Break-Even Chart) [Click the Radio Button above the Trail # you wish to display. This is also the chart that will be printed.] {Select one of these radio buttons to see the chart.} <Cell(3,2)> | H12: (Title your Work) [It is generally a good idea to document your work if you're going to communicate results to others. Click the "Project ID" button to give this project a title] {Click this button to update the title sheet} <cmdProjectID> | I12: (How to print your results) [If you have a printer available on your computer, click the "Print Table & Chart" button to print this worksheet. Suppliers are often pleased to get this analysis information to be afforded the opportunity to explain their pricing to you. Print or fax the information to then with a cover letter explaining the analysis.] {This is the button to click to print or fax your analysis results} <cmdPrint>
A13: LearnCurve | B13: Learning Curve | C13: Determine prices for various quanities based changes in labor paced processing time due to volume changes. | D13: (Set the Number of Columns) [Use the column spinner to set the number of columns. You will need a column for each specific price/quantity pair you have.] {Click the spinner up to increase the number of columns down to decrease. Maximum is 10…Minimum is 2} <spnColumns> | E13: (How to Enter Data) [Enter the information for Unit Selling Price, Fixed Costs/Unit, Mat'l Cost/unit, Labor Rate, Ov'hd Rate % of D.L., Profit % T.C.,and Ave Cum Hrs. ] {Enter the quantity,price, percentage, and hourly data in these cells} <Entry> | F13: (Set Decimal Place for Currency amounts.) [Use the "decimal" spinner up or down to set the precision you wish for currency. Don't use more precision than you need...it clutters things up.] {The "decimal" you select will be used for all currency cells.} <spnDecimal> | G13: (Using the Learning Curve Calculator ) [The Learning Curve Calculator provides assistance in getting FixedCost/Unit, Mat'lCost/Unit, and Ov'hd%DL information. If information is not available from a supplier, it can be generated using the PPMicro Calculator and the Fixed and Varible Cost Analysis worksheet. Data may be transferred from these sheets to the Learning Curve Calculator] {Click on this Button to view/use the Learning Curve Calculator} <cmdLrnCalc> | H13: (Title your Work) [It is generally a good idea to document your work if you're going to communicate results to others. Click the "Project ID" button to give this project a title] {Click this button to update the title sheet} <cmdProjectID> | I13: (How to print your results) [If you have a printer available on your computer, click the "Print Table & Chart" button to print this worksheet. Suppliers are often pleased to get this analysis information to be afforded the opportunity to explain their pricing to you. Print or fax the information to them with a cover letter explaining the analysis.] {This is the button to click to print or fax your analysis results} <cmdPrint> | K13: <cmdChartVertical>
A14: LearningCurve | B14: Typical Learning Cuve Information | C14: Observe the nature of various learning curve rates and the impact of learning curve theory on productivity for machine based and assembly based work processes. | D14: (How is work done?) [Work is accomplished with a combination of Assembly Paced…many labor hours…or Machine Paced...fewer labor hours.] {A process that is 95% Assembly Paced} <Cell(4,1)> | E14: (View a typical Learning Curve Rate) [Click on one of the of the learning curve rates in the Learning Curve column] {For example, click this 80% rate} <Cell(8,3)> | F14: (What does a learning curve plot look like?) [Learning Curves have a straight line chart when plotted on a log-log scale; "exponential" when plotted on a linear scale.] {Click one then the other of these buttons} <cmdLinear>
A15: StanfordB | B15: Stanford-B Analysis | C15: Apply the learning acquired from making a similar part to a "new" part. | D15: (How to Enter StanfordB Data) [StanfordB analysis uses data from an existing design and applies it to a similar design. ] {Enter data in these "Blue" cells} <Cell(4,2),Cell(5,2),Cell(6,2),Cell(7,2),Cell(8,2),Cell(9,2),Cell(10,2),Cell(11,2),Cell(4,2)> | E15: (Units of New Design) [The B-Factors will be applied to the number of Units in the New Design] {Enter Units of New Design here} <Cell(16,2)> | F15: (Cost Data for the new design) [StandordB theory provides the Hrs/Unit information. You need to provide the new design cost data.] {Enter Cost Data here} <Entry> | G15: (Set Decimal Place for Currency amounts.) [Use the "decimal" spinner up or down to set the precision you wish for currency. Don't use more precision than you need...it clutters things up.] {The "decimal" you select will be used for all currency cells.} <spnDecimal> | H15: (Title your Work) [It is generally a good idea to document your work if you're going to communicate results to others. Click the "Project ID" button to give this project a title] {Click this button to update the title sheet} <cmdProjectID> | I15: (How to print your results) [If you have a printer available on your computer, click the "Print Table & Chart" button to print this worksheet. Suppliers are often pleased to get this analysis information to be afforded the opportunity to explain their pricing to you. Print or fax the information to them with a cover letter explaining the analysis.] {This is the button to click to print or fax your analysis results} <cmdPrint>
A16: EPQ | B16: Economic Production Quantity | C16: Determine the optimum production quantity, balancing setup and carrying inventory costs. | D16: (Set the Number of Columns) [Use the column spinner to set the number of columns. You will need a column for each specific price/quantity pair you have.] {Click the spinner up to increase the number of columns down to decrease. Maximum is 10…Minimum is 2} <spnColumns> | E16: (How to Enter Data) [Enter the information for each item in the first column in the "blue" data entry rows.] {Enter data in these cells} <Entry> | F16: (Set Decimal Place for Currency amounts.) [Use the "decimal" spinner up or down to set the precision you wish for currency. Don't use more precision than you need...it clutters things up.] {The "decimal" you select will be used for all currency cells.} <spnDecimal> | G16: (Where do I get this production data?) [Your supplier has the information. If your supplier is unable to provide you with it, estimate it from your company's experience or industry standards.] {Ask supplier for this information.} <Entry> | H16: (Title your Work) [It is generally a good idea to document your work if you're going to communicate results to others. Click the "Project ID" button to give this project a title] {Click this button to update the title sheet} <cmdProjectID> | I16: (How to print your results) [If you have a printer available on your computer, click the "Print Table & Chart" button to print this worksheet. Suppliers are often pleased to get this analysis information to be afforded the opportunity to explain their pricing to you. Print or fax the information to then with a cover letter explaining the analysis.] {This is the button to click to print or fax your analysis results} <cmdPrint>
A17: TheoreticalMinWt | B17: Theoretical Minimum Weight - Sheets | C17: Are you paying more than you should because the sheet is thicker, wider or longer than your specification? | D17: (Set the Number of Columns) [Use the column spinner to set the number of columns. You will need a column for each reel you wish to calculate the Theoretical Minimum Weight.] {Click the spinner up to increase the number of columns down to decrease. Maximum is 10…Minimum is 2} <spnColumns> | E17: (How to Enter Data) [Enter the information for each item in the first column in the "blue" data entry rows. If you need more or fewer columns, go to step one and click on the column spinner up or down again] {Enter the quantity and price data in these cells} <Entry> | F17: (Set Decimal Place for Currency and other variables.) [Use the "decimal" spinner up or down to set the precision you wish. Don't use more precision than you need...it clutters things up.] {The "decimal" you select will be used for all cells except unit values.} <spnDecimal> | G17: (Title your Work) [It is generally a good idea to document your work if you're going to communicate results to others. Click the "Project ID" button to give this project a title] {Click this button to update the title sheet} <cmdProjectID> | H17: (How to print your results) [If you have a printer available on your computer, click the "Print Table & Chart" button to print this worksheet. Suppliers are often pleased to get this analysis information to be afforded the opportunity to explain their pricing to you. Print or fax the information to them with a cover letter explaining the analysis.] {This is the button to click to print or fax your analysis results} <cmdPrint>
A18: TheoreticalMinCp | B18: Theoretical Minimum Weight - Coils | C18: Are you paying more than you should because the coil is thicker or wider than your specification? | D18: (Set the Number of Columns) [Use the column spinner to set the number of columns. You will need a column for each reel you wish to calculate the Theoretical Minimum Weight.] {Click the spinner up to increase the number of columns down to decrease. Maximum is 10…Minimum is 2} <spnColumns> | E18: {(How to Enter Data) [Enter the information for each item in the first column in the "blue" data entry rows. If you need more or fewer columns, go to step one and click on the column spinner up or down again] {Enter the quantity and price data in these cells} <Entry> | F18: (Set Decimal Place for Currency and other variables.) [Use the "decimal" spinner up or down to set the precision you wish. Don't use more precision than you need...it clutters things up.] {The "decimal" you select will be used for all cells.} <spnDecimal> | G18: (Title your Work) [It is generally a good idea to document your work if you're going to communicate results to others. Click the "Project ID" button to give this project a title] {Click this button to update the title sheet} <cmdProjectID> | H18: (How to print your results) [If you have a printer available on your computer, click the "Print Table & Chart" button to print this worksheet. Suppliers are often pleased to get this analysis information to be afforded the opportunity to explain their pricing to you. Print or fax the information to them with a cover letter explaining the analysis.] {This is the button to click to print or fax your analysis results} <cmdPrint>
A19: TheoreticalMinUWR | B19: Theoretical Minimum Weight - Reels | C19: Are you paying more than you should because the diameter of the wire is larger than your specification? | D19: (Set the Number of Columns) [Use the column spinner to set the number of columns. You will need a column for each reel you wish to calculate the Theoretical Minimum Weight.] {Click the spinner up to increase the number of columns down to decrease. Maximum is 10…Minimum is 2} <spnColumns> | E19: (How to Enter Data) [Enter the information for each item in the first column in the "blue" data entry rows. If you need more or fewer columns, go to step one and click on the column spinner up or down again] {Enter the quantity and price data in these cells} <Entry> | F19: (Set Decimal Place for Currency and other variables.) [Use the "decimal" spinner up or down to set the precision you wish. Don't use more precision than you need...it clutters things up.] {The "decimal" you select will be used for all cells.} <spnDecimal> | G19: (Title your Work) [It is generally a good idea to document your work if you're going to communicate results to others. Click the "Project ID" button to give this project a title] {Click this button to update the title sheet} <cmdProjectID> | H19: (How to print your results) [If you have a printer available on your computer, click the "Print Table & Chart" button to print this worksheet. Suppliers are often pleased to get this analysis information to be afforded the opportunity to explain their pricing to you. Print or fax the information to then with a cover letter explaining the analysis.] {This is the button to click to print or fax your analysis results} <cmdPrint>
A20: BidFactorCost | B20: Bid Factor - Classical Build Up Method | C20: What is the "real" total cost of buying from a company? | D20: (Set the Number of Columns) [Use the column spinner to set the number of columns. You will need a column for each specific price/quantity pair you have.] {Click the spinner up to increase the number of columns down to decrease. Maximum is 10…Minimum is 2} <spnColumns> | E20: (How to Enter Data) [For each item in Blue enter the financial data.] {Entr all data you have in the "Blue" cells.} <Entry> | F20: (Set Decimal Place for Currency amounts.) [Use the "decimal" spinner up or down to set the precision you wish for currency. Don't use more precision than you need...it clutters things up.] {The "decimal" you select will be used for all currency cells.} <spnDecimal> | G20: (Title your Work) [It is generally a good idea to document your work if you're going to communicate results to others. Click the "Project ID" button to give this project a title] {Click this button to update the title sheet} <cmdProjectID> | H20: (How to print your results) [If you have a printer available on your computer, click the "Print Table & Chart" button to print this worksheet. Suppliers are often pleased to get this analysis information to be afforded the opportunity to explain their pricing to you. Print or fax the information to them with a cover letter explaining the analysis.] {This is the button to click to print or fax your analysis results} <cmdPrint>
A21: BidFactorEvent | B21: Bid Factor - Event Based Method | C21: What is the "real" total cost of buying from a company? | D21: (Set the Number of Columns) [Use the column spinner to set the number of columns. You will need a column for each specific price/quantity pair you have.] {Click the spinner up to increase the number of columns down to decrease. Maximum is 10…Minimum is 2} <spnColumns> | E21: (Cost associated with supplier events.) [Enter information you have for each of the supplier events in the" $ per event" column.] {"$ per event" information goes here.} <Cell(5,3),Cell(6,3),Cell(7,3),Cell(8,3),Cell(9,3)> | F21: (Number of events & purchases from this supplier.) [Enter the number of times each event has occurred in each period for this supplier.] {Enter event and purchase data here.} <Entry> | G21: (Title your Work) [It is generally a good idea to document your work if you're going to communicate results to others. Click the "Project ID" button to give this project a title] {Click this button to update the title sheet} <cmdProjectID> | H21: (How to print your results) [If you have a printer available on your computer, click the "Print Table & Chart" button to print this worksheet. Suppliers are often pleased to get this analysis information to be afforded the opportunity to explain their pricing to you. Print or fax the information to them with a cover letter explaining the analysis.] {This is the button to click to print or fax your analysis results} <cmdPrint>
A22: EquipmentTOC | B22: Equipment - Total Cost of Ownership | C22: What is the Total Cost of Ownership? | D22: (Set the Number of Columns) [Use the column spinner to set the number of columns. You will need a column for each specific price/quantity pair you have.] {Click the spinner up to increase the number of columns down to decrease. Maximum is 10…Minimum is 2} <spnColumns> | E22: (How to Enter Data) [For each supplier enter the financial data requested.] {Enter data in "Blue" cells.} <Entry> | F22: (Set Decimal Place for Currency amounts.) [Use the "decimal" spinner up or down to set the precision you wish for currency. Don't use more precision than you need...it clutters things up.] {The "decimal" you select will be used for all currency cells.} <spnDecimal> | G22: (Title your Work) [It is generally a good idea to document your work if you're going to communicate results to others. Click the "Project ID" button to give this project a title] {Click this button to update the title sheet} <cmdProjectID> | H22: (How to print your results) [If you have a printer available on your computer, click the "Print Table & Chart" button to print this worksheet. Suppliers are often pleased to get this analysis information to be afforded the opportunity to explain their pricing to you. Print or fax the information to them with a cover letter explaining the analysis.] {This is the button to click to print or fax your analysis results} <cmdPrint>
A23: IntlPurchTOC | B23: International Sourcing - Total Cost | C23: Document the "real" total cost of global sourcing. | D23: (Set the Number of Columns) [Use the column spinner to set the number of columns. You will need a column for each specific price/quantity pair you have.] {Click the spinner up to increase the number of columns down to decrease. Maximum is 10…Minimum is 2} <spnColumns> | E23: (How to Enter Data for International Purchasing. ) [For each item in "Blue" enter the financial data and number of shipments per year. You may not have all the information you need, but the items listed are intended to suggest the costs you may need to consider.] {Enter qunatities and price data in the "Blue" cells in these columns.} <Entry> | F23: (Set Decimal Place for Currency amounts.) [Use the "decimal" spinner up or down to set the precision you wish for currency. Don't use more precision than you need...it clutters things up.] {The "decimal" you select will be used for all currency cells.} <spnDecimal> | G23: (Title your Work) [It is generally a good idea to document your work if you're going to communicate results to others. Click the "Project ID" button to give this project a title] {Click this button to update the title sheet} <cmdProjectID> | H23: (How to print your results) [If you have a printer available on your computer, click the "Print Table & Chart" button to print this worksheet. Suppliers are often pleased to get this analysis information to be afforded the opportunity to explain their pricing to you. Print or fax the information to them with a cover letter explaining the analysis.] {This is the button to click to print or fax your analysis results} <cmdPrint>
A24: SPI | B24: Supplier Performance Index | C24: Capture the cost of waste created by a supplier. | D24: (Prepare the Measurement Periods for Data) [Use the "periods 2-7 left by one" button to clear the existing data in column #1. When you shift the columns left by one period the information in column 1 is deleted and all of the other information is moved one position to the left. This has the effect of creating a six month rolling average after six months of data has been collected.] {Each Click Shifts the Data Left one period. CAUTION: you cannot undo this shift!} <cmdShiftLeft> | E24: (Cost associated with supplier events.) [Enter information you have for each of the supplier events in the" $ per event" column.] {"$ per event" information goes here.} <Cell(6,3),Cell(7,3),Cell(8,3),Cell(9,3),Cell(10,3)> | F24: (Enter the number of events for the period or periods of interest) [In a steady state you will be entering this data in Column #7, then shift all the columns left by one period in order to maintain a 6-period rolling average.] {Enter the number of event occurrences in these "Blue" cells.} <Cell(10,4),Cell(10,5),Cell(10,6),Cell(10,7),Cell(10,8),Cell(10,9), Cell(10,10)> | G24: (Enter Supplier Commodity Lot Ave, Specific Supplier Commodity Lot Ave, and Total Value of Lots This supplier) [In a steady state you will be entering this data in Column #7. In order to utilize Supplier Performance Index methodology you will have to organize work processes to have this data easily available.] {Enter the Lot Value information in these "Blue" cells} <Cell(14,4),Cell(14,5),Cell(14,6),Cell(14,7),Cell(14,8),Cell(14,9),Cell(14,10)> | H24: (Set your Supplier Performance Index for this Commondity.) [You need establish acceptable supplier performance indices for the commodities you are purchasing in order that you may track supplier performance.] {Your SPI for this Commodity goes here.} <Cell(3,4)> | I24: (Set Decimal Place for Currency amounts.) [Use the "decimal" spinner up or down to set the precision you wish for currency. Don't use more precision than you need...it clutters things up.] {The "decimal" you select will be used for all currency cells.} <spnDecimal> | J24: (Title your Work) [It is generally a good idea to document your work if you're going to communicate results to others. Click the "Project ID" button to give this project a title] {Click this button to update the title sheet} <cmdProjectID> | K24: (How to print your results) [If you have a printer available on your computer, click the "Print Table & Chart" button to print this worksheet. Suppliers are often pleased to get this analysis information to be afforded the opportunity to explain their pricing to you. Print or fax the information to them with a cover letter explaining the analysis.] {This is the button to click to print or fax your analysis results} <cmdPrint>
A25: ThruPut | B25: Throughput Analysis | C25: Find the hidden factory by "Measuring System Performance" versus "Work Station Efficiency." | D25: (Set the Number of Columns) [Use the column spinner to set the number of columns. Use a column for each "factory" situation where you have data.] {Click the spinner up to increase the number of columns down to decrease. Maximum is 10…Minimum is 2} <spnColumns> | E25: (Enter Throughput Analysis data.) [You will need to organize your work processes such that Throughput data is avaialble to you.] {Enter Throughput date in these "Blue" cells.} <Entry> | F25: (Displaying Throughput Chart) [Click the Radio Button below the Analysis # you wish to display. This is also the chart that will be printed.] {Click one of the radio buttons in this row to view the chart for the associated Throughput information.} <opt01> | G25: (Title your Work) [It is generally a good idea to document your work if you're going to communicate results to others. Click the "Project ID" button to give this project a title] {Click this button to update the title sheet} <cmdProjectID> | H25: (How to print your results) [If you have a printer available on your computer, click the "Print Table & Chart" button to print this worksheet. Suppliers are often pleased to get this analysis information to be afforded the opportunity to explain their pricing to you. Print or fax the information to them with a cover letter explaining the analysis.] {This is the button to click to print or fax your analysis results} <cmdPrint>
A26: ValueIndices | B26: Value Indices | C26: Keep the tension for generating productivity improvements high by tracking the rate and direction of improvements. | D26: (Prepare the Measurement Periods for Data) [Use the "Click to shift columns 2-13 one column to the left" button clear the existing data. When you shift the columns left by one period, the information in column one is deleted and all of the other information is moved one position to the left. This has the effect of creating a 12-period rolling average...a year's worth of data] {For every click the information shifts to the left by one column} <cmdShift> | E26: (Price, Quality, and Cycle Time data) [In a steady state, you will be entering data in column 13, and maintain a 12-period (usually a year) of Value Indices data] {Enter Value Indices information in "Blue" cells.} <Entry> | F26: (Set Decimal Place for Currency amounts.) [Use the "decimal" spinner up or down to set the precision you wish for currency. Don't use more precision than you need...it clutters things up.] {The "decimal" you select will be used for all currency cells.} <spnDecimal> | G26: (Title your Work) [It is generally a good idea to document your work if you're going to communicate results to others. Click the "Project ID" button to give this project a title] {Click this button to update the title sheet} <cmdProjectID> | H26: (How to print your results) [If you have a printer available on your computer, click the "Print Table & Chart" button to print this worksheet. Suppliers are often pleased to get this analysis information to be afforded the opportunity to explain their pricing to you. Print or fax the information to them with a cover letter explaining the analysis.] {This is the button to click to print or fax your analysis results} <cmdPrint>
A27: ValueProductivity | B27: Total Supplier Productivity | C27: Reveal a supplier's total price and value (quality, delivery, technical) contributions. | D27: (Price Producivity Information needed.) [Enter the Initial Price, deflated Price, and Supplir investment information. This data can be period data for a specific supplier or you may wish to compare suppliers for a given quotation.] {Enter Price Productvity Information in the "Blue" Cells.} <Cell(7,3),Cell(7,4),Cell(7,5),Cell(7,6),Cell(7,7),Cell(7,8),Cell(7,9),Cell(7,3)> | E27: (Value Producivity Information needed.) [Enter the five factors for Value Productivity. This data can be period data for a specific supplier or you may wish to compare suppliers for a given quotation.] {Enter Value Productvity Information for five rows in the "Blue" Cells.} <Cell(10,2),Cell(11,2),Cell(12,2),Cell(13,2),Cell(14,2)Cell(14,3),Cell(14,4),Cell(14,5),Cell(14,6),Cell(14,7),Cell(14,8),Cell(14,9),Cell(14,3)> | F27: (Set Decimal Place for Currency amounts.) [Use the "decimal" spinner up or down to set the precision you wish for currency. Don't use more precision than you need...it clutters things up.] {The "decimal" you select will be used for all currency cells.} <spnDecimal> | G27: (Title your Work) [It is generally a good idea to document your work if you're going to communicate results to others. Click the "Project ID" button to give this project a title] {Click this button to update the title sheet} <cmdProjectID> | H27: (How to print your results) [If you have a printer available on your computer, click the "Print Table & Chart" button to print this worksheet. Suppliers are often pleased to get this analysis information to be afforded the opportunity to explain their pricing to you. Print or fax the information to them with a cover letter explaining the analysis.] {This is the button to click to print or fax your analysis results} <cmdPrint>
A28: SourcingSavingsBy | B28: Sourcing Savings - Earnings per Share | C28: Earnings per share is a universial measure of function's contribution to the company's well being. | D28: (Savings...Earnings Per Share) [Enter the "Cost Savings" and the "Number of Shares" information in the "blue" data entry rows. ] {Cost Savings & Number of Shares} <Cell(4,3),Cell(5,3)> | E28: (Savings…Return on Investment) [Enter the "Cost Savings" and the "Invested Capital" information in the "blue" data entry rows. ] {Cost Savings & Invested Capital} <Cell(9,3),Cell(10,3)> | F28: (Savings…Increased Sales) [Enter the "Cost Savings" and the "Percent Operating Profit" information in the "blue" data entry rows.] {Cost Savings & Percent Operating Profit} <Cell(14,3),Cell(15,3)> | G28: (Set Decimal Place for Currency amounts.) [Use the "decimal" spinner up or down to set the precision you wish for currency. Don't use more precision than you need...it clutters things up.] {The "decimal" you select will be used for all currency cells.} <spnDecimal> | H28: (Title your Work) [It is generally a good idea to document your work if you're going to communicate results to others. Click the "Project ID" button to give this project a title] {Click this button to update the title sheet} <cmdProjectID> | I28: (How to print your results) [If you have a printer available on your computer, click the "Print Table & Chart" button to print this worksheet.] {This is the button to click to print or fax your analysis results} <cmdPrint>
A29: AsmntRel | B29: Relationship Assessment | C29: Correctly identifing the type of relationship you have with another individual or business is critical to negotiating successful outcomes. | D29: (Name of Oranization) [Enter the name of the organization to which this Relationship Assessment applies.] {Click to Enter Name} <cmdEnterName> | E29: (Entering Relationship Assessment Data) [If this is an ongoing assessment, then you want to update this worksheet. If it's a new assessment, then clear the data from the existing worksheet.] {Click ONLY IF YOU WANT TO CLEAR ALL DATA} <cmdClear> | F29: (Current or Desired Data Entry) [Select the type of assessment you are doing, "current" or "desired" behavior.] {Select one of these} <optDesiredBehavior> | G29: (Select rating for each behavior.) [Work your way down the column rating the observable habitual behavior using the continuum. A double click in the cell you want to check followed by a return will enter a C or D depending on which behavior you've checked. ] { "C" or "D" for all rows} <Cell(5,4),Cell(6,4),Cell(7,4), Cell(8,4),Cell(5,3)> | H29: (Calculate the Score) [When finished with entry for all behaviors, calculate the score Relationship score] {Click to calculate score.} <btnRelBehaviorScore> | I29: (Title your Work) [It is generally a good idea to document your work if you're going to communicate results to others. Click the "Project ID" button to give this project a title] {Click this button to update the title sheet} <cmdProjectID> | J29: (How to print your results) [If you have a printer available on your computer, click the "Print Table & Chart" button to print this worksheet.] {This is the button to click to print or fax your analysis results} <cmdPrint>
A30: AsmntOrg | B30: Organizational Assessment | C30: Accurately identifying the type of organization you are working with increases the opportunity for successful outcomes. | D30: (Name of Organization) [Enter the name of the organization to which this Organizational Behavior Assessment applies.] {Click to Enter Name} <cmdEnterName> | E30: (Entering Organizational Assessment Data) [If this is an ongoing assessment, then you want to update this worksheet. If it's a new assessment, then clear the data from the existing worksheet.] {Click ONLY IF YOU WANT TO CLEAR ALL DATA} <cmdClear> | F30: (Current or Desired Data Entry) [Select the type of assessment you are doing, "current" or "desired" behavior.] {Select one of these} <optDesiredBehavior> | G30: (Select rating for each behavior.) [Work your way down the column rating the observable habitual behavior using the continuum. A double click in the cell you want to check followed by a return will enter a C or D depending on which behavior you've checked. ] { "C" or "D" for all rows} <Cell(5,4),Cell(6,4),Cell(7,4), Cell(8,4),Cell(5,3)> | H30: (Calculate the Score) [When finished with entry for all behaviors, calculate the score Relationship score] {Click to calculate score.} <btnOrgBehaviorScore> | I30: (Title your Work) [It is generally a good idea to document your work if you're going to communicate results to others. Click the "Project ID" button to give this project a title] {Click this button to update the title sheet} <cmdProjectID> | J30: (How to print your results) [If you have a printer available on your computer, click the "Print Table & Chart" button to print this worksheet.] {This is the button to click to print or fax your analysis results} <cmdPrint>
A31: AsmntTeam | B31: Team Assessment | C31: Are you part of a Pseudo, Dysfunctional or Effective Team? | D31: (Name of Team) [Enter the name of the team to which this Team Assessment applies.] {Click to Enter Name} <cmdEnterName> | E31: (Entering Team Assessment Data) [If this is an ongoing assessment, then you want to update this worksheet. If it's a new assessment, then clear the data from the existing worksheet.] {Click ONLY IF YOU WANT TO CLEAR ALL DATA} <cmdClear> | F31: (Team Assessment for 9 Maxims.) [Each Maxim has a 0-10 scale. Decide what score you want to enter, then double click on the desired cell and hit the enter key…or navigate to the cell you want to enter by using the tab key and type an X.] {Work your way through each Maxim} <Cell(11,3), Cell(12,3),Cell(13,3),Cell(14,3),Cell(15,3),Cell(16,3)> | G31: (Calculate the Score) [When finished with entry for all behaviors, calculate the score Relationship score] {Click to calculate score.} <cmdTeamBehaviorScore> | H31: (Title your Work) [It is generally a good idea to document your work if you're going to communicate results to others. Click the "Project ID" button to give this project a title] {Click this button to update the title sheet} <cmdProjectID> | I31: (How to print your results) [If you have a printer available on your computer, click the "Print Table & Chart" button to print this worksheet.] {This is the button to click to print or fax your analysis results} <cmdPrint>
A32: PaymentDiscount | B32: Payment Discount | C32: Is an early payment discount worth taking? | D32: (Set the Number of Columns) [Use the column spinner to set the number of columns. You will need a column for all Payment Terms you wish to analyze.] {Click the spinner up to increase the number of columns down to decrease. Maximum is 10…Minimum is 2} <spnColumns> | E32: (How to use Payment Discount Calculator) [Enter the information for each payment term in the "blue" data entry rows. If you need more or fewer columns, go to step one and click the column spinner up or down again] {Enter the quantity and price data in these cells} <Entry> | F32: (Set Decimal Place for Currency amounts.) [Use the "decimal" spinner up or down to set the precision you wish for currency. Don't use more precision than you need...it clutters things up.] {The "decimal" you select will be used for all currency cells.} <spnDecimal> | G32: (Title your Work) [It is generally a good idea to document your work if you're going to communicate results to others. Click the "Project ID" button to give this project a title] {Click this button to update the title sheet} <cmdProjectID> | H32: (How to print your results) [If you have a printer available on your computer, click the "Print Table & Chart" button to print this worksheet.] {This is the button to click to print or fax your analysis results} <cmdPrint>
A33: ExtendedTerms | B33: Extended Payment Terms | C33: What is the financial benefit of extending payment terms? | D33: (Set the Number of Columns) [Use the column spinner to set the number of columns. You will need a column for all Payment Terms you wish to analyze.] {Click the spinner up to increase the number of columns down to decrease. Maximum is 10…Minimum is 2} <spnColumns> | E33: (How to use Extened Payment Terms Calculator) [Enter the information for each payment term in the "blue" data entry rows. If you need more or fewer columns, go to step one and click the column spinner up or down again] {Enter the quantity and price data in these cells} <Entry> | F33: (Set Decimal Place for Currency amounts.) [Use the "decimal" spinner up or down to set the precision you wish for currency. Don't use more precision than you need...it clutters things up.] {The "decimal" you select will be used for all currency cells.} <spnDecimal> | G33: (Title your Work) [It is generally a good idea to document your work if you're going to communicate results to others. Click the "Project ID" button to give this project a title] {Click this button to update the title sheet} <cmdProjectID> | H33: (How to print your results) [If you have a printer available on your computer, click the "Print Table & Chart" button to print this worksheet.] {This is the button to click to print or fax your analysis results} <cmdPrint>
A34: FinancialData | B34: Financial Data for Ratios and Z-Scores | C34: This is the data input document for all financial ratio and Z-score calculations. | D34: (Description of Financial Terms) [ Data used here comes from a company's annual reports. A description for most financial terms is provided to help with compiling the correct information from balance sheets and income statements.] {Place mouse over cells with the red mark in the upper right corner} <Cells(5,2),Cells(6,2),Cells(7,2),Cells(8,2),Cells(9,2),Cells(11,2),Cells(12,2),Cells(14,2),Cells(15,2,),Cells(16,2),Cells(17,2),Cells(19,2,),Cells(20,2),Cells(21,2),Cells(22,2),Cells(24,2),Cells(25,2),Cells(26,2),Cells(27,2),Cells(29,2),Cells(30,2,),Cells(31,2),Cells(32,2),Cells(33,2),Cells(34,2),Cells(5,2)> | E34: (Caution information for using financial Apps) [Three Financial Measurements using ratios and Z-Score Analysis are calculated from data conatined on this input template. ] {Click here to review cautionary information in using these Apps.} <cmdCaution> | F34: (How to Clear all input data) [If this is a "fresh" start, clear the data from the existing worksheet. Otherwise, update the existing information in the blue cells] {Click here and this will clear all input data. Be careful, there is no undo for this operation.} <cmdClear> | G34: (Adjust the number of decimal places) [Use the Decimals Spinner to set the number of decimal places you want to use.] {Spin up or down for number of decimal places.} <spnDecimal> | H34: (Title the source data columns.) [The column titles may be whatever you wish. A good start is to compare supplier financial history to industry norms.] {These five cells can be changed to identify the business entity you are analyzing. } <Cell(4,3),Cell(4,4),Cell(4,5),Cell(4,6),Cell(4,7),Cell(4,3)> | I34: (Input all the Financial Data) [The Financial Data input sheet is styled after a "typical" Balance Sheet and Income Statement. Enter all the data in the "Blue" cells.] {Enter all financial data for each row all the way to the bottom of this entry sheet.} <Cell(5,3),Cell(6,3),Cell(7,3),Cell(8,3), Cell(9,3), Cell(11,3), Cell(12,3)> | J34: (Subtotals calculated from inputs.) [ Items in "black" are subtotals and not available to user's for change. Subtotals only change as user's make changes to the "blue" inputs.] {These rows are subtotals} <Cell(10,2),Cell(13,2),Cell(18,2),Cell(23,2),Cell(28,2),Cell(10,2)> | K34: (Selecting Input Variables to Chart for this Worksheet) [There are about 30 variables available to chart. They can be charted six at a time. Check the ones you wish to see charted below.] {Using the check box on the left select no more than six of these to chart.} <Cell(5,2),Cell(6,2),Cell(7,2),Cell(8,2),Cell(34,2),Cell(33,2),Cell(32,2),Cell(5,2)> | L34: (Selecting Columns to "Pass On" to the Solvency, Leverage, Profitability, and Z-Score Ratios) [All five input columns may be passed on to the Ratio Sheets. Check the ones you want to see.] {Check as many as these as you wish to pass on to the Ratio Sheets that follow.} <Cell(3,3),Cell(3,4),Cell(3,5),Cell(3,6),Cell(3,7),Cell(3,3)> | M34: (Viewing the Ratio Results calculated from this Financial Input Data) [Solvency, Leverage, Profitability, and Z-Score Ratios are calculated using this input sheet. Go to the Financial Analysis menu entry on the Excel menu bar to view these ratios.] | N34: (Title your Work) [It is generally a good idea to document your work if you're going to communicate results to others. Click the "Project ID" button to give this project a title] {Click this button to update the title sheet} <cmdProjectID> | O34: (How to print your results) [If you have a printer available on your computer, click the "Print Table & Chart" button to print this worksheet.] {This is the button to click to print or fax your analysis results} <cmdPrint>
A35: Solvency | B35: Solvency Ratios | C35: Can a company meet its financial obligations as they come due? | D35: (Selecting Variables to Chart) [Select up to six variables to chart (MS Excel limitation). When the you click to update financial tables and charts the charts at the bottom of each financial worksheets will be created/updated.] {} <> | E35: (Chart Options) [Selected "Variables" are charted at the bottom of each financial worksheet. The default chart is a line chart. Click on "Column" or "Bar" to change the type of chart. Note when "Bar is selected the axis description does not become horizontal, this an MS Excel anomaly which we can not change.] {} <> | F35: (How to print your results) [If you have a printer available on your computer, click the "Print Table & Chart" button to print this worksheet.] {This is the button to click to print or fax your analysis results} <cmdPrint> | J35: (Title your Work)
A36: Leverage | B36: Leverage Ratios | C36: How efficienctly does a company manage its resources? | D36: (Selecting Variables to Chart) [Select up to six variables to chart (MS Excel limitation). When the you click to update financial tables and charts the charts at the bottom of each financial worksheets will be created/updated.] {} <> | E36: (Chart Options) [Selected "Variables" are charted at the bottom of each financial worksheet. The default chart is a line chart. Click on "Column" or "Bar" to change the type of chart. Note when "Bar is selected the axis description does not become horizontal, this an MS Excel anomaly which we can not change.] {} <> | F36: (How to print your results) [If you have a printer available on your computer, click the "Print Table & Chart" button to print this worksheet.] {This is the button to click to print or fax your analysis results} <cmdPrint>
A37: Profitability | B37: Profitability Ratios | C37: How efficienctly does a company manage its resources to generate profit? | D37: (Selecting Variables to Chart) [Select up to six variables to chart (MS Excel limitation). When the you click to update financial tables and charts the charts at the bottom of each financial worksheets will be created/updated.] {} <> | E37: (Chart Options) [Selected "Variables" are charted at the bottom of each financial worksheet. The default chart is a line chart. Click on "Column" or "Bar" to change the type of chart. Note when "Bar is selected the axis description does not become horizontal, this an MS Excel anomaly which we can not change.] {} <> | F37: (How to print your results) [If you have a printer available on your computer, click the "Print Table & Chart" button to print this worksheet.] {This is the button to click to print or fax your analysis results} <cmdPrint> | J37: [It is generally a good idea to document your work if you're going to communicate results to others. Click the "Project ID" button to give this project a title]
A38: Z-Scores | B38: Z-Score Analysis | C38: What is the financial health of a company (heading towards bankruptcy, uncertain, or financial strong)? | D38: (Selecting Variables to Chart) [Select up to six variables to chart (MS Excel limitation). When the you click to update financial tables and charts the charts at the bottom of each financial worksheets will be created/updated.] {} <> | E38: (Chart Options) [Selected "Variables" are charted at the bottom of each financial worksheet. The default chart is a line chart. Click on "Column" or "Bar" to change the type of chart. Note when "Bar is selected the axis description does not become horizontal, this an MS Excel anomaly which we can not change.] {} <> | F38: (How to print your results) [If you have a printer available on your computer, click the "Print Table & Chart" button to print this worksheet.] {This is the button to click to print or fax your analysis results} <cmdPrint>
A39: EnergyCosts | B39: Calculating Energy Surcharges | C39: How large of an increase do suppliers need to recover lost profits due to increased energy costs? | D39: (There are three scenarios that need to be analyzed when considering energy cost increases: Fuels Consumed, Purchased Electricity and their combination.) [The current price from the supplier is needed and, the new unit price due to increased energy cost.] {Enter the information in these 'blue' cells. It is usually the same for all three scenarios.} <Cell(7,2),Cell(8,2),Cell(7,3),Cell(8,3),Cell(7,4),Cell(8,4)> | E39: (Net sales billed and the purchased energy consumed by a supplier is all the information that is required to calculate the ACTUAL energy surcharge that is needed to restore lost profits.) [If this information is available from the supplier, then enter it in 'blue' cells shown for this data. If not available from supplier, go to Step 3 to use industry data.] {Enter Value of Shipments and Purchased Energy data} <Cell(10,2),Cell(11,2),Cell(10,3),Cell(11,3),Cell(10,4),Cell(11,4)> | F39: (If the supplier is unable or unwilling to provide their net sales billed and various energy costs, use the industry data contained in the SourcingApps data base. ) [To use industry data, click on the command button labelled: "Click to Get Annual Survey of Manufacturers Engegy Data"] {Find ASM data for hundreds of NAICS codes} <cmdEnergyAnalysis> | G39: (The SourcingApps data base contains data necessary to calculate energy surcharges for hundres of NAICS codes.) [Follow the instructions in the NAICS codes and Descriptions form to get information for your supplier's industry.] {Click here to see the codes.} <cmdEnergyAnalysis> | H39: (ASM description of the data used for this surcharge calculation.) [The specific industry information used to perform the surcharge calculation for the three scenarios is automatically updated.] {Automatically provided from ASM data base} <Cell(6,1)> | I39: (Title your Work) [It is generally a good idea to document your work if you're going to communicate results to others. Click the "Project ID" button to give this project a title] {Click this button to update the title sheet} <cmdProjectID> | J39: (How to print your results) [If you have a printer available on your computer, click the "Print Table & Chart" button to print this worksheet. Suppliers are often pleased to get this analysis information to be afforded the opportunity to explain their pricing to you. Print or fax the information to them with a cover letter explaining the analysis.] {This is the button to click to print or fax your analysis results} <cmdPrint>
A40: NAICScostComparisons | B40: Annual Cost Comaprisons by NAICS Industry codes | C40: This analysis tracks the changes in operating income, variable and fixed costs based on industry data published by the U. S. Census Bureau. Any significant changes in cost elements year to year needs to researched and explained. | D40: (Click on “GetInfo from the SourcingApps Data Base.” Then enter either a NAICS number or a description to search for data. ) {Click here to see a list of the NAICS codes} <cmdNAICScost>
A41: EnergyCostComparisons | B41: Annual Energy Cost Comaprisons by NAICS Industry codes | C41: This analysis tracks the changes in energy costs based on industry data published by the U. S. Census Bureau. Any significant changes in energy year to year needs to researched and explained. | D41: (Find the energy costs by industry) [Retrieve list of North American Industry Classification System (NAICS) codes. ] {Click here to see a list of the NAICS codes} <cmdNAICSenergyCosts>
A42: TheoreticalMinRebar | B42: Theoretical Minimum Weight - Rebar | C42: Are you paying more than you should because the rebars have a larger diameter or are longer than your specification? | D42: (Set the Number of Columns) [Use the column spinner to set the number of columns. You will need a column for each reel you wish to calculate the Theoretical Minimum Weight.] {Click the spinner up to increase the number of columns down to decrease. Maximum is 10…Minimum is 2} <spnColumns> | E42: (How to Enter Data) [Enter the information for each item in the first column in the "blue" data entry rows. If you need more or fewer columns, go to step one and click on the column spinner up or down again] {Enter the quantity and price data in these cells} <Entry> | F42: (Set Decimal Place for Currency and other variables.) [Use the "decimal" spinner up or down to set the precision you wish. Don't use more precision than you need...it clutters things up.] {The "decimal" you select will be used for all cells except unit values.} <spnDecimal> | G42: (Title your Work) [It is generally a good idea to document your work if you're going to communicate results to others. Click the "Project ID" button to give this project a title] {Click this button to update the title sheet} <cmdProjectID> | H42: (How to print your results) [If you have a printer available on your computer, click the "Print Table & Chart" button to print this worksheet. Suppliers are often pleased to get this analysis information to be afforded the opportunity to explain their pricing to you. Print or fax the information to them with a cover letter explaining the analysis.] {This is the button to click to print or fax your analysis results} <cmdPrint>
A47: Assessments

Sheet NAICS
A1: Data in the SourcingApps data base is from the Annual Manufacturers Survey (codes 31-33), or Economic Census (published in years ending in 2 or 7) and the Quarterly Financial Report (average of four quarters, for the year selected) published by the U. S. Census Bureau.
A2: NAICS-based code | B2: Meaning of NAICS-based code | C2: Prod workers hours (1,000) | D2: Prod workers wages ($1,000) | E2: Tot cost of materials ($1,000) | F2: Purch fuels consumed ($1,000) | G2: Purchased electricity ($1,000) | H2: Total value of shps ($1,000) | I2: Fixed Cost as % of Net Sales Billed | J2: Operating Income | K2: Year
A3: 31-33 | B3: Manufacturing | C3: 18786191 | D3: 344285109 | E3: 2737565131 | F3: 53964326 | G3: 49727388 | H3: 5019963474 | I3: 2.76 | J3: 7.08 | K3: 2006
A4: 31-33 | B4: Manufacturing | C4: 19055800 | D4: 337980878 | E4: 2557600945 | F4: 52876642 | G4: 46357791 | H4: 4742076879 | I4: 2.9 | J4: 6.5 | K4: 2005
A5: 311 | B5: Food mfg | C5: 2198396 | D5: 32798575 | E5: 304750119 | F5: 5257876 | G5: 4662690 | H5: 537787007 | I5: 2.18 | J5: 5.99 | K5: 2006
A6: 311 | B6: Food mfg | C6: 2242558 | D6: 32090481 | E6: 298397145 | F6: 4850091 | G6: 4261832 | H6: 532402120 | I6: 2.3 | J6: 6.2 | K6: 2005
A7: 3111 | B7: Animal food mfg | C7: 60822 | D7: 1115897 | E7: 19517061 | F7: 275820 | G7: 246061 | H7: 33987757 | I7: 2.18 | J7: 5.99 | K7: 2006
A8: 3111 | B8: Animal food mfg | C8: 61346 | D8: 1089432 | E8: 19299507 | F8: 295296 | G8: 222629 | H8: 33233522 | I8: 2.3 | J8: 6.2 | K8: 2005
A9: 31111 | B9: Animal food manufacturing | C9: 60822 | D9: 1115897 | E9: 19517061 | F9: 275820 | G9: 246061 | H9: 33987757 | I9: 2.18 | J9: 5.99 | K9: 2006
A10: 31111 | B10: Animal food manufacturing | C10: 61346 | D10: 1089432 | E10: 19299507 | F10: 295296 | G10: 222629 | H10: 33233522 | I10: 2.3 | J10: 6.2 | K10: 2005
A11: 311111 | B11: Dog and cat food manufacturing | C11: 24743 | D11: 499716 | E11: 5805259 | F11: 112251 | G11: 74474 | H11: 13596647 | I11: 2.18 | J11: 5.99 | K11: 2006
A12: 311111 | B12: Dog and cat food manufacturing | C12: 24337 | D12: 482517 | E12: 5810560 | F12: 105842 | G12: 69310 | H12: 13141967 | I12: 2.3 | J12: 6.2 | K12: 2005
A13: 311119 | B13: Other animal food manufacturing | C13: 36079 | D13: 616181 | E13: 13711802 | F13: 163570 | G13: 171587 | H13: 20391111 | I13: 2.18 | J13: 5.99 | K13: 2006
A14: 311119 | B14: Other animal food manufacturing | C14: 37010 | D14: 606914 | E14: 13488947 | F14: 189454 | G14: 153318 | H14: 20091555 | I14: 2.3 | J14: 6.2 | K14: 2005
A15: 3112 | B15: Grain & oilseed milling | C15: 86869 | D15: 1818515 | E15: 37828252 | F15: 1385832 | G15: 812508 | H15: 57666847 | I15: 2.18 | J15: 5.99 | K15: 2006
A16: 3112 | B16: Grain & oilseed milling | C16: 86538 | D16: 1797757 | E16: 36567297 | F16: 1220496 | G16: 766546 | H16: 57525933 | I16: 2.3 | J16: 6.2 | K16: 2005
A17: 31121 | B17: Flour milling and malt manufacturing | C17: 24398 | D17: 411940 | E17: 7812868 | F17: 110657 | G17: 202139 | H17: 10692383 | I17: 2.18 | J17: 5.99 | K17: 2006
A18: 31121 | B18: Flour milling and malt manufacturing | C18: 25205 | D18: 416410 | E18: 7250366 | F18: 106047 | G18: 188406 | H18: 10366097 | I18: 2.3 | J18: 6.2 | K18: 2005
A19: 31121M | B19: Flour milling and malt manufacturing | C19: 24398 | D19: 411940 | E19: 7812868 | F19: 110657 | G19: 202139 | H19: 10692383 | I19: 2.18 | J19: 5.99 | K19: 2006
A20: 31121M | B20: Flour milling and malt manufacturing | C20: 25205 | D20: 416410 | E20: 7250366 | F20: 106047 | G20: 188406 | H20: 10366097 | I20: 2.3 | J20: 6.2 | K20: 2005
A21: 31122 | B21: Starch and vegetable fats and oils manufacturing | C21: 37696 | D21: 787500 | E21: 27202146 | F21: 1185703 | G21: 528798 | H21: 37548306 | I21: 2.18 | J21: 5.99 | K21: 2006
A22: 31122 | B22: Starch and vegetable fats and oils manufacturing | C22: 37824 | D22: 759039 | E22: 26719966 | F22: 1039750 | G22: 508534 | H22: 37039077 | I22: 2.3 | J22: 6.2 | K22: 2005
A23: 311221 | B23: Wet corn milling | C23: 12485 | D23: 316608 | E23: 5895329 | F23: 778846 | G23: 342019 | H23: 9939087 | I23: 2.18 | J23: 5.99 | K23: 2006
A24: 311221 | B24: Wet corn milling | C24: 12753 | D24: 300010 | E24: 5390183 | F24: 622310 | G24: 326828 | H24: 9290872 | I24: 2.3 | J24: 6.2 | K24: 2005
A25: 311225 | B25: Fats and oils refining and blending | C25: 11497 | D25: 213108 | E25: 7006739 | F25: 95273 | G25: 50711 | H25: 9066699 | I25: 2.18 | J25: 5.99 | K25: 2006
A26: 311225 | B26: Fats and oils refining and blending | C26: 12278 | D26: 225266 | E26: 7540779 | F26: 91127 | G26: 56711 | H26: 9453251 | I26: 2.3 | J26: 6.2 | K26: 2005
A27: 31122N | B27: Soybean and other oilseed processing | C27: 13715 | D27: 257784 | E27: 14300078 | F27: 311584 | G27: 136068 | H27: 18542520 | I27: 2.18 | J27: 5.99 | K27: 2006
A28: 31122N | B28: Soybean and other oilseed processing | C28: 12794 | D28: 233763 | E28: 13789005 | F28: 326313 | G28: 124994 | H28: 18294954 | I28: 2.3 | J28: 6.2 | K28: 2005
A29: 31123 | B29: Breakfast cereal manufacturing | C29: 24775 | D29: 619074 | E29: 2813239 | F29: 89471 | G29: 81572 | H29: 9426158 | I29: 2.18 | J29: 5.99 | K29: 2006
A30: 31123 | B30: Breakfast cereal manufacturing | C30: 23508 | D30: 622308 | E30: 2596964 | F30: 74699 | G30: 69606 | H30: 10120758 | I30: 2.3 | J30: 6.2 | K30: 2005
A31: 311230 | B31: Breakfast cereal manufacturing | C31: 24775 | D31: 619074 | E31: 2813239 | F31: 89471 | G31: 81572 | H31: 9426158 | I31: 2.18 | J31: 5.99 | K31: 2006
A32: 311230 | B32: Breakfast cereal manufacturing | C32: 23508 | D32: 622308 | E32: 2596964 | F32: 74699 | G32: 69606 | H32: 10120758 | I32: 2.3 | J32: 6.2 | K32: 2005
A33: 3113 | B33: Sugar & confectionery product mfg | C33: 104741 | D33: 1934050 | E33: 12631236 | F33: 365982 | G33: 210643 | H33: 28225160 | I33: 2.18 | J33: 5.99 | K33: 2006
A34: 3113 | B34: Sugar & confectionery product mfg | C34: 109888 | D34: 1904968 | E34: 12706135 | F34: 329836 | G34: 202470 | H34: 28489295 | I34: 2.3 | J34: 6.2 | K34: 2005
A35: 31131 | B35: Sugar manufacturing | C35: 23231 | D35: 434441 | E35: 4390006 | F35: 254726 | G35: 57503 | H35: 7072301 | I35: 2.18 | J35: 5.99 | K35: 2006
A36: 31131 | B36: Sugar manufacturing | C36: 24661 | D36: 446512 | E36: 4510370 | F36: 225728 | G36: 55981 | H36: 7088306 | I36: 2.3 | J36: 6.2 | K36: 2005
A37: 311313 | B37: Beet sugar manufacturing | C37: 11822 | D37: 216840 | E37: 1683485 | F37: 162026 | G37: 30698 | H37: 2920992 | I37: 2.18 | J37: 5.99 | K37: 2006
A38: 311313 | B38: Beet sugar manufacturing | C38: 11839 | D38: 211987 | E38: 1533865 | F38: 139719 | G38: 28453 | H38: 2745249 | I38: 2.3 | J38: 6.2 | K38: 2005
A39: 31131N | B39: Sugar cane mills and refining | C39: 11409 | D39: 217601 | E39: 2706520 | F39: 92700 | G39: 26804 | H39: 4151309 | I39: 2.18 | J39: 5.99 | K39: 2006
A40: 31131N | B40: Sugar cane mills and refining | C40: 12822 | D40: 234524 | E40: 2976505 | F40: 86009 | G40: 27529 | H40: 4343057 | I40: 2.3 | J40: 6.2 | K40: 2005
A41: 31132 | B41: Chocolate and confectionery manufacturing from cacao beans | C41: 12010 | D41: 263574 | E41: 2344844 | F41: 22364 | G41: 32596 | H41: 4342693 | I41: 2.18 | J41: 5.99 | K41: 2006
A42: 31132 | B42: Chocolate and confectionery manufacturing from cacao beans | C42: 12319 | D42: 247089 | E42: 2346167 | F42: 21273 | G42: 31690 | H42: 4250980 | I42: 2.3 | J42: 6.2 | K42: 2005
A43: 311320 | B43: Chocolate and confectionery manufacturing from cacao beans | C43: 12010 | D43: 263574 | E43: 2344844 | F43: 22364 | G43: 32596 | H43: 4342693 | I43: 2.18 | J43: 5.99 | K43: 2006
A44: 311320 | B44: Chocolate and confectionery manufacturing from cacao beans | C44: 12319 | D44: 247089 | E44: 2346167 | F44: 21273 | G44: 31690 | H44: 4250980 | I44: 2.3 | J44: 6.2 | K44: 2005
A45: 31133 | B45: Confectionery manufacturing from purchased chocolate | C45: 40888 | D45: 733665 | E45: 3571173 | F45: 49659 | G45: 75614 | H45: 10577965 | I45: 2.18 | J45: 5.99 | K45: 2006
A46: 31133 | B46: Confectionery manufacturing from purchased chocolate | C46: 41685 | D46: 691846 | E46: 3387746 | F46: 44655 | G46: 66908 | H46: 10360578 | I46: 2.3 | J46: 6.2 | K46: 2005
A47: 311330 | B47: Confectionery manufacturing from purchased chocolate | C47: 40888 | D47: 733665 | E47: 3571173 | F47: 49659 | G47: 75614 | H47: 10577965 | I47: 2.18 | J47: 5.99 | K47: 2006
A48: 311330 | B48: Confectionery manufacturing from purchased chocolate | C48: 41685 | D48: 691846 | E48: 3387746 | F48: 44655 | G48: 66908 | H48: 10360578 | I48: 2.3 | J48: 6.2 | K48: 2005
A49: 31134 | B49: Nonchocolate confectionery manufacturing | C49: 28612 | D49: 502370 | E49: 2325214 | F49: 39234 | G49: 44931 | H49: 6232201 | I49: 2.18 | J49: 5.99 | K49: 2006
A50: 31134 | B50: Nonchocolate confectionery manufacturing | C50: 31223 | D50: 519522 | E50: 2461852 | F50: 38179 | G50: 47890 | H50: 6789431 | I50: 2.3 | J50: 6.2 | K50: 2005
A51: 311340 | B51: Nonchocolate confectionery manufacturing | C51: 28612 | D51: 502370 | E51: 2325214 | F51: 39234 | G51: 44931 | H51: 6232201 | I51: 2.18 | J51: 5.99 | K51: 2006
A52: 311340 | B52: Nonchocolate confectionery manufacturing | C52: 31223 | D52: 519522 | E52: 2461852 | F52: 38179 | G52: 47890 | H52: 6789431 | I52: 2.3 | J52: 6.2 | K52: 2005
A53: 3114 | B53: Fruit & vegetable preserving & specialty food mfg | C53: 278445 | D53: 4192009 | E53: 28468662 | F53: 725622 | G53: 576835 | H53: 56278716 | I53: 2.18 | J53: 5.99 | K53: 2006
A54: 3114 | B54: Fruit & vegetable preserving & specialty food mfg | C54: 287546 | D54: 4079873 | E54: 27583333 | F54: 723948 | G54: 536749 | H54: 54862687 | I54: 2.3 | J54: 6.2 | K54: 2005
A55: 31141 | B55: Frozen food manufacturing | C55: 148121 | D55: 2116683 | E55: 12105711 | F55: 252911 | G55: 314435 | H55: 24340369 | I55: 2.18 | J55: 5.99 | K55: 2006
A56: 31141 | B56: Frozen food manufacturing | C56: 150024 | D56: 2011565 | E56: 11928756 | F56: 244037 | G56: 294516 | H56: 23710880 | I56: 2.3 | J56: 6.2 | K56: 2005
A57: 31141M | B57: Frozen food manufacturing | C57: 148121 | D57: 2116683 | E57: 12105711 | F57: 252911 | G57: 314435 | H57: 24340369 | I57: 2.18 | J57: 5.99 | K57: 2006
A58: 31141M | B58: Frozen food manufacturing | C58: 150024 | D58: 2011565 | E58: 11928756 | F58: 244037 | G58: 294516 | H58: 23710880 | I58: 2.3 | J58: 6.2 | K58: 2005
A59: 31142 | B59: Fruit and vegetable canning, pickling, and drying | C59: 130323 | D59: 2075326 | E59: 16362951 | F59: 472711 | G59: 262400 | H59: 31938346 | I59: 2.18 | J59: 5.99 | K59: 2006
A60: 31142 | B60: Fruit and vegetable canning, pickling, and drying | C60: 137523 | D60: 2068308 | E60: 15654577 | F60: 479911 | G60: 242233 | H60: 31151807 | I60: 2.3 | J60: 6.2 | K60: 2005
A61: 31142M | B61: Fruit and vegetable canning, pickling, and drying | C61: 130323 | D61: 2075326 | E61: 16362951 | F61: 472711 | G61: 262400 | H61: 31938346 | I61: 2.18 | J61: 5.99 | K61: 2006
A62: 31142M | B62: Fruit and vegetable canning, pickling, and drying | C62: 137523 | D62: 2068308 | E62: 15654577 | F62: 479911 | G62: 242233 | H62: 31151807 | I62: 2.3 | J62: 6.2 | K62: 2005
A63: 3115 | B63: Dairy product mfg | C63: 178762 | D63: 3367686 | E63: 51261345 | F63: 563242 | G63: 620279 | H63: 75427809 | I63: 2.18 | J63: 5.99 | K63: 2006
A64: 3115 | B64: Dairy product mfg | C64: 184499 | D64: 3337919 | E64: 51778110 | F64: 480835 | G64: 575591 | H64: 76941026 | I64: 2.3 | J64: 6.2 | K64: 2005
A65: 31151 | B65: Dairy product (except frozen) manufacturing | C65: 150586 | D65: 2832838 | E65: 47008221 | F65: 538539 | G65: 512885 | H65: 66476533 | I65: 2.18 | J65: 5.99 | K65: 2006
A66: 31151 | B66: Dairy product (except frozen) manufacturing | C66: 155312 | D66: 2806471 | E66: 47612288 | F66: 460252 | G66: 476346 | H66: 67927660 | I66: 2.3 | J66: 6.2 | K66: 2005
A67: 311513 | B67: Cheese manufacturing | C67: 61706 | D67: 1077939 | E67: 20471726 | F67: 209758 | G67: 164379 | H67: 25518043 | I67: 2.18 | J67: 5.99 | K67: 2006
A68: 311513 | B68: Cheese manufacturing | C68: 64794 | D68: 1092468 | E68: 21359728 | F68: 189227 | G68: 161610 | H68: 27116279 | I68: 2.3 | J68: 6.2 | K68: 2005
A69: 311514 | B69: Dry, condensed, and evaporated dairy product manufacturing | C69: 20550 | D69: 454353 | E69: 5411225 | F69: 150058 | G69: 80817 | H69: 9897626 | I69: 2.18 | J69: 5.99 | K69: 2006
A70: 311514 | B70: Dry, condensed, and evaporated dairy product manufacturing | C70: 19224 | D70: 396223 | E70: 5344877 | F70: 110903 | G70: 69410 | H70: 9594481 | I70: 2.3 | J70: 6.2 | K70: 2005
A71: 31151N | B71: Fluid milk and butter manufacturing | C71: 68330 | D71: 1300546 | E71: 21125269 | F71: 178722 | G71: 267688 | H71: 31060864 | I71: 2.18 | J71: 5.99 | K71: 2006
A72: 31151N | B72: Fluid milk and butter manufacturing | C72: 71295 | D72: 1317780 | E72: 20907684 | F72: 160123 | G72: 245326 | H72: 31216899 | I72: 2.3 | J72: 6.2 | K72: 2005
A73: 31152 | B73: Ice cream and frozen dessert manufacturing | C73: 28177 | D73: 534849 | E73: 4253124 | F73: 24703 | G73: 107394 | H73: 8951276 | I73: 2.18 | J73: 5.99 | K73: 2006
A74: 31152 | B74: Ice cream and frozen dessert manufacturing | C74: 29187 | D74: 531448 | E74: 4165822 | F74: 20583 | G74: 99245 | H74: 9013366 | I74: 2.3 | J74: 6.2 | K74: 2005
A75: 311520 | B75: Ice cream and frozen dessert manufacturing | C75: 28177 | D75: 534849 | E75: 4253124 | F75: 24703 | G75: 107394 | H75: 8951276 | I75: 2.18 | J75: 5.99 | K75: 2006
A76: 311520 | B76: Ice cream and frozen dessert manufacturing | C76: 29187 | D76: 531448 | E76: 4165822 | F76: 20583 | G76: 99245 | H76: 9013366 | I76: 2.3 | J76: 6.2 | K76: 2005
A77: 3116 | B77: Animal slaughtering & processing | C77: 870347 | D77: 10635377 | E77: 96862515 | F77: 958395 | G77: 1096535 | H77: 149576741 | I77: 2.18 | J77: 5.99 | K77: 2006
A78: 3116 | B78: Animal slaughtering & processing | C78: 894041 | D78: 10394901 | E78: 96378863 | F78: 889741 | G78: 995465 | H78: 149819532 | I78: 2.3 | J78: 6.2 | K78: 2005
A79: 31161 | B79: Animal slaughtering and processing | C79: 870347 | D79: 10635377 | E79: 96862515 | F79: 958395 | G79: 1096535 | H79: 149576741 | I79: 2.18 | J79: 5.99 | K79: 2006
A80: 31161 | B80: Animal slaughtering and processing | C80: 894041 | D80: 10394901 | E80: 96378863 | F80: 889741 | G80: 995465 | H80: 149819532 | I80: 2.3 | J80: 6.2 | K80: 2005
A81: 311615 | B81: Poultry processing | C81: 412522 | D81: 4561860 | E81: 20329632 | F81: 265669 | G81: 436539 | H81: 46163487 | I81: 2.18 | J81: 5.99 | K81: 2006
A82: 311615 | B82: Poultry processing | C82: 428927 | D82: 4428127 | E82: 20751043 | F82: 229607 | G82: 403849 | H82: 47876583 | I82: 2.3 | J82: 6.2 | K82: 2005
A83: 31161N | B83: Animal (except poultry) slaughtering and processing | C83: 457825 | D83: 6073517 | E83: 76532883 | F83: 692726 | G83: 659996 | H83: 103413254 | I83: 2.18 | J83: 5.99 | K83: 2006
A84: 31161N | B84: Animal (except poultry) slaughtering and processing | C84: 465115 | D84: 5966774 | E84: 75627821 | F84: 660134 | G84: 591615 | H84: 101942949 | I84: 2.3 | J84: 6.2 | K84: 2005
A85: 3117 | B85: Seafood product preparation & packaging | C85: 60044 | D85: 788365 | E85: 6530224 | F85: 134529 | G85: 111665 | H85: 10849078 | I85: 2.18 | J85: 5.99 | K85: 2006
A86: 3117 | B86: Seafood product preparation & packaging | C86: 62954 | D86: 804287 | E86: 6195151 | F86: 115170 | G86: 106486 | H86: 10138025 | I86: 2.3 | J86: 6.2 | K86: 2005
A87: 31171 | B87: Seafood product preparation and packaging | C87: 60044 | D87: 788365 | E87: 6530224 | F87: 134529 | G87: 111665 | H87: 10849078 | I87: 2.18 | J87: 5.99 | K87: 2006
A88: 31171 | B88: Seafood product preparation and packaging | C88: 62954 | D88: 804287 | E88: 6195151 | F88: 115170 | G88: 106486 | H88: 10138025 | I88: 2.3 | J88: 6.2 | K88: 2005
A89: 31171M | B89: Seafood product preparation and packaging | C89: 60044 | D89: 788365 | E89: 6530224 | F89: 134529 | G89: 111665 | H89: 10849078 | I89: 2.18 | J89: 5.99 | K89: 2006
A90: 31171M | B90: Seafood product preparation and packaging | C90: 62954 | D90: 804287 | E90: 6195151 | F90: 115170 | G90: 106486 | H90: 10138025 | I90: 2.3 | J90: 6.2 | K90: 2005
A91: 3118 | B91: Bakeries & tortilla mfg | C91: 315076 | D91: 5058085 | E91: 19814852 | F91: 412782 | G91: 498260 | H91: 54173014 | I91: 2.18 | J91: 5.99 | K91: 2006
A92: 3118 | B92: Bakeries & tortilla mfg | C92: 318524 | D92: 4958233 | E92: 18799564 | F92: 372047 | G92: 454424 | H92: 53662828 | I92: 2.3 | J92: 6.2 | K92: 2005
A93: 31181 | B93: Bread and bakery product manufacturing | C93: 224135 | D93: 3531705 | E93: 12154258 | F93: 282497 | G93: 337394 | H93: 34778931 | I93: 2.18 | J93: 5.99 | K93: 2006
A94: 31181 | B94: Bread and bakery product manufacturing | C94: 227077 | D94: 3469657 | E94: 11437371 | F94: 255181 | G94: 308211 | H94: 34280452 | I94: 2.3 | J94: 6.2 | K94: 2005
A95: 31181M | B95: Bread and bakery product manufacturing | C95: 224135 | D95: 3531705 | E95: 12154258 | F95: 282497 | G95: 337394 | H95: 34778931 | I95: 2.18 | J95: 5.99 | K95: 2006
A96: 31181M | B96: Bread and bakery product manufacturing | C96: 227077 | D96: 3469657 | E96: 11437371 | F96: 255181 | G96: 308211 | H96: 34280452 | I96: 2.3 | J96: 6.2 | K96: 2005
A97: 31182 | B97: Cookie, cracker, and pasta manufacturing | C97: 73104 | D97: 1280548 | E97: 6785415 | F97: 101040 | G97: 134138 | H97: 17177123 | I97: 2.18 | J97: 5.99 | K97: 2006
A98: 31182 | B98: Cookie, cracker, and pasta manufacturing | C98: 73160 | D98: 1247008 | E98: 6547865 | F98: 91146 | G98: 123255 | H98: 17287363 | I98: 2.3 | J98: 6.2 | K98: 2005
A99: 31182M | B99: Cookie, cracker, and pasta manufacturing | C99: 73104 | D99: 1280548 | E99: 6785415 | F99: 101040 | G99: 134138 | H99: 17177123 | I99: 2.18 | J99: 5.99 | K99: 2006
A100: 31182M | B100: Cookie, cracker, and pasta manufacturing | C100: 73160 | D100: 1247008 | E100: 6547865 | F100: 91146 | G100: 123255 | H100: 17287363 | I100: 2.3 | J100: 6.2 | K100: 2005
A101: 31183 | B101: Tortilla manufacturing | C101: 17837 | D101: 245832 | E101: 875178 | F101: 29246 | G101: 26728 | H101: 2216960 | I101: 2.18 | J101: 5.99 | K101: 2006
A102: 31183 | B102: Tortilla manufacturing | C102: 18287 | D102: 241568 | E102: 814329 | F102: 25720 | G102: 22958 | H102: 2095013 | I102: 2.3 | J102: 6.2 | K102: 2005
A103: 311830 | B103: Tortilla manufacturing | C103: 17837 | D103: 245832 | E103: 875178 | F103: 29246 | G103: 26728 | H103: 2216960 | I103: 2.18 | J103: 5.99 | K103: 2006
A104: 311830 | B104: Tortilla manufacturing | C104: 18287 | D104: 241568 | E104: 814329 | F104: 25720 | G104: 22958 | H104: 2095013 | I104: 2.3 | J104: 6.2 | K104: 2005
A105: 3119 | B105: Other food mfg | C105: 243291 | D105: 3888590 | E105: 31835972 | F105: 435670 | G105: 489905 | H105: 71601885 | I105: 2.18 | J105: 5.99 | K105: 2006
A106: 3119 | B106: Other food mfg | C106: 237221 | D106: 3723111 | E106: 29089185 | F106: 422723 | G106: 401473 | H106: 67729273 | I106: 2.3 | J106: 6.2 | K106: 2005
A107: 31191 | B107: Snack food manufacturing | C107: 52499 | D107: 805048 | E107: 8748305 | F107: 189065 | G107: 104316 | H107: 22779175 | I107: 2.18 | J107: 5.99 | K107: 2006
A108: 31191 | B108: Snack food manufacturing | C108: 52143 | D108: 807467 | E108: 7830011 | F108: 198189 | G108: 92407 | H108: 21330616 | I108: 2.3 | J108: 6.2 | K108: 2005
A109: 31191M | B109: Snack food manufacturing | C109: 52499 | D109: 805048 | E109: 8748305 | F109: 189065 | G109: 104316 | H109: 22779175 | I109: 2.18 | J109: 5.99 | K109: 2006
A110: 31191M | B110: Snack food manufacturing | C110: 52143 | D110: 807467 | E110: 7830011 | F110: 198189 | G110: 92407 | H110: 21330616 | I110: 2.3 | J110: 6.2 | K110: 2005
A111: 31192 | B111: Coffee and tea manufacturing | C111: 15075 | D111: 308827 | E111: 3640619 | F111: 50487 | G111: 44289 | H111: 6993416 | I111: 2.18 | J111: 5.99 | K111: 2006
A112: 31192 | B112: Coffee and tea manufacturing | C112: 14320 | D112: 289397 | E112: 2876599 | F112: 43954 | G112: 37162 | H112: 6257632 | I112: 2.3 | J112: 6.2 | K112: 2005
A113: 311920 | B113: Coffee and tea manufacturing | C113: 15075 | D113: 308827 | E113: 3640619 | F113: 50487 | G113: 44289 | H113: 6993416 | I113: 2.18 | J113: 5.99 | K113: 2006
A114: 311920 | B114: Coffee and tea manufacturing | C114: 14320 | D114: 289397 | E114: 2876599 | F114: 43954 | G114: 37162 | H114: 6257632 | I114: 2.3 | J114: 6.2 | K114: 2005
A115: 31193 | B115: Flavoring syrup and concentrate manufacturing | C115: 7270 | D115: 156812 | E115: 1328856 | F115: 15445 | G115: 14793 | H115: 7962477 | I115: 2.18 | J115: 5.99 | K115: 2006
A116: 31193 | B116: Flavoring syrup and concentrate manufacturing | C116: 7479 | D116: 155653 | E116: 1395454 | F116: 15336 | G116: 14854 | H116: 7672140 | I116: 2.3 | J116: 6.2 | K116: 2005
A117: 311930 | B117: Flavoring syrup and concentrate manufacturing | C117: 7270 | D117: 156812 | E117: 1328856 | F117: 15445 | G117: 14793 | H117: 7962477 | I117: 2.18 | J117: 5.99 | K117: 2006
A118: 311930 | B118: Flavoring syrup and concentrate manufacturing | C118: 7479 | D118: 155653 | E118: 1395454 | F118: 15336 | G118: 14854 | H118: 7672140 | I118: 2.3 | J118: 6.2 | K118: 2005
A119: 31194 | B119: Seasoning and dressing manufacturing | C119: 41583 | D119: 734922 | E119: 6671060 | F119: 44738 | G119: 76368 | H119: 13023637 | I119: 2.18 | J119: 5.99 | K119: 2006
A120: 31194 | B120: Seasoning and dressing manufacturing | C120: 42387 | D120: 723983 | E120: 6528650 | F120: 41800 | G120: 70872 | H120: 12760624 | I120: 2.3 | J120: 6.2 | K120: 2005
A121: 31194M | B121: Seasoning and dressing manufacturing | C121: 41583 | D121: 734922 | E121: 6671060 | F121: 44738 | G121: 76368 | H121: 13023637 | I121: 2.18 | J121: 5.99 | K121: 2006
A122: 31194M | B122: Seasoning and dressing manufacturing | C122: 42387 | D122: 723983 | E122: 6528650 | F122: 41800 | G122: 70872 | H122: 12760624 | I122: 2.3 | J122: 6.2 | K122: 2005
A123: 31199 | B123: All other food manufacturing | C123: 126864 | D123: 1882981 | E123: 11447133 | F123: 135935 | G123: 250138 | H123: 20843180 | I123: 2.18 | J123: 5.99 | K123: 2006
A124: 31199 | B124: All other food manufacturing | C124: 120893 | D124: 1746611 | E124: 10458471 | F124: 123445 | G124: 186179 | H124: 19708261 | I124: 2.3 | J124: 6.2 | K124: 2005
A125: 31199M | B125: All other food manufacturing | C125: 126864 | D125: 1882981 | E125: 11447133 | F125: 135935 | G125: 250138 | H125: 20843180 | I125: 2.18 | J125: 5.99 | K125: 2006
A126: 31199M | B126: All other food manufacturing | C126: 120893 | D126: 1746611 | E126: 10458471 | F126: 123445 | G126: 186179 | H126: 19708261 | I126: 2.3 | J126: 6.2 | K126: 2005
A127: 312 | B127: Beverage & tobacco product mfg | C127: 167652 | D127: 3522190 | E127: 45228396 | F127: 494529 | G127: 651942 | H127: 124693109 | I127: 3.16 | J127: 14.73 | K127: 2006
A128: 312 | B128: Beverage & tobacco product mfg | C128: 167560 | D128: 3524226 | E128: 43414418 | F128: 424514 | G128: 561930 | H128: 124085595 | I128: 3.1 | J128: 16.1 | K128: 2005
A129: 3121 | B129: Beverage mfg | C129: 138515 | D129: 2753631 | E129: 39907843 | F129: 440525 | G129: 581932 | H129: 83095717 | I129: 3.16 | J129: 14.73 | K129: 2006
A130: 3121 | B130: Beverage mfg | C130: 135870 | D130: 2712362 | E130: 37979808 | F130: 370190 | G130: 486666 | H130: 81382349 | I130: 3.1 | J130: 16.1 | K130: 2005
A131: 31211 | B131: Soft drink and ice manufacturing | C131: 76686 | D131: 1250106 | E131: 24985237 | F131: 185288 | G131: 299476 | H131: 43442140 | I131: 3.16 | J131: 14.73 | K131: 2006
A132: 31211 | B132: Soft drink and ice manufacturing | C132: 72842 | D132: 1246504 | E132: 23962360 | F132: 156819 | G132: 255973 | H132: 44636443 | I132: 3.1 | J132: 16.1 | K132: 2005
A133: 31211M | B133: Soft drink and ice manufacturing | C133: 76686 | D133: 1250106 | E133: 24985237 | F133: 185288 | G133: 299476 | H133: 43442140 | I133: 3.16 | J133: 14.73 | K133: 2006
A134: 31211M | B134: Soft drink and ice manufacturing | C134: 72842 | D134: 1246504 | E134: 23962360 | F134: 156819 | G134: 255973 | H134: 44636443 | I134: 3.1 | J134: 16.1 | K134: 2005
A135: 31212 | B135: Breweries | C135: 31178 | D135: 885507 | E135: 7863336 | F135: 193644 | G135: 165917 | H135: 21690599 | I135: 3.16 | J135: 14.73 | K135: 2006
A136: 31212 | B136: Breweries | C136: 32101 | D136: 864615 | E136: 7390449 | F136: 168229 | G136: 149372 | H136: 20794605 | I136: 3.1 | J136: 16.1 | K136: 2005
A137: 312120 | B137: Breweries | C137: 31178 | D137: 885507 | E137: 7863336 | F137: 193644 | G137: 165917 | H137: 21690599 | I137: 3.16 | J137: 14.73 | K137: 2006
A138: 312120 | B138: Breweries | C138: 32101 | D138: 864615 | E138: 7390449 | F138: 168229 | G138: 149372 | H138: 20794605 | I138: 3.1 | J138: 16.1 | K138: 2005
A139: 31213 | B139: Wineries | C139: 23470 | D139: 463685 | E139: 4884586 | F139: 39930 | G139: 100607 | H139: 11790251 | I139: 3.16 | J139: 14.73 | K139: 2006
A140: 31213 | B140: Wineries | C140: 23642 | D140: 452617 | E140: 4432979 | F140: 22826 | G140: 66898 | H140: 10444632 | I140: 3.1 | J140: 16.1 | K140: 2005
A141: 312130 | B141: Wineries | C141: 23470 | D141: 463685 | E141: 4884586 | F141: 39930 | G141: 100607 | H141: 11790251 | I141: 3.16 | J141: 14.73 | K141: 2006
A142: 312130 | B142: Wineries | C142: 23642 | D142: 452617 | E142: 4432979 | F142: 22826 | G142: 66898 | H142: 10444632 | I142: 3.1 | J142: 16.1 | K142: 2005
A143: 31214 | B143: Distilleries | C143: 7182 | D143: 154333 | E143: 2174684 | F143: 21664 | G143: 15932 | H143: 6172728 | I143: 3.16 | J143: 14.73 | K143: 2006
A144: 31214 | B144: Distilleries | C144: 7285 | D144: 148626 | E144: 2194020 | F144: 22316 | G144: 14423 | H144: 5506669 | I144: 3.1 | J144: 16.1 | K144: 2005
A145: 312140 | B145: Distilleries | C145: 7182 | D145: 154333 | E145: 2174684 | F145: 21664 | G145: 15932 | H145: 6172728 | I145: 3.16 | J145: 14.73 | K145: 2006
A146: 312140 | B146: Distilleries | C146: 7285 | D146: 148626 | E146: 2194020 | F146: 22316 | G146: 14423 | H146: 5506669 | I146: 3.1 | J146: 16.1 | K146: 2005
A147: 3122 | B147: Tobacco mfg | C147: 29137 | D147: 768559 | E147: 5320554 | F147: 54004 | G147: 70010 | H147: 41597392 | I147: 3.16 | J147: 14.73 | K147: 2006
A148: 3122 | B148: Tobacco mfg | C148: 31690 | D148: 811864 | E148: 5434610 | F148: 54324 | G148: 75264 | H148: 42703246 | I148: 3.1 | J148: 16.1 | K148: 2005
A149: 31221 | B149: Tobacco stemming and redrying | C149: 2949 | D149: 30217 | E149: 647568 | F149: 6262 | G149: 5997 | H149: 873121 | I149: 3.16 | J149: 14.73 | K149: 2006
A150: 31221 | B150: Tobacco stemming and redrying | C150: 2995 | D150: 29790 | E150: 556933 | F150: D | G150: 6511 | H150: 773870 | I150: 3.1 | J150: 16.1 | K150: 2005
A151: 312210 | B151: Tobacco stemming and redrying | C151: 2949 | D151: 30217 | E151: 647568 | F151: 6262 | G151: 5997 | H151: 873121 | I151: 3.16 | J151: 14.73 | K151: 2006
A152: 312210 | B152: Tobacco stemming and redrying | C152: 2995 | D152: 29790 | E152: 556933 | F152: D | G152: 6511 | H152: 773870 | I152: 3.1 | J152: 16.1 | K152: 2005
A153: 31222 | B153: Tobacco product manufacturing | C153: 26188 | D153: 738342 | E153: 4672986 | F153: 47742 | G153: 64013 | H153: 40724271 | I153: 3.16 | J153: 14.73 | K153: 2006
A154: 31222 | B154: Tobacco product manufacturing | C154: 28695 | D154: 782074 | E154: 4877677 | F154: D | G154: 68753 | H154: 41929376 | I154: 3.1 | J154: 16.1 | K154: 2005
A155: 31222M | B155: Tobacco product manufacturing | C155: 26188 | D155: 738342 | E155: 4672986 | F155: 47742 | G155: 64013 | H155: 40724271 | I155: 3.16 | J155: 14.73 | K155: 2006
A156: 31222M | B156: Tobacco product manufacturing | C156: 28695 | D156: 782074 | E156: 4877677 | F156: D | G156: 68753 | H156: 41929376 | I156: 3.1 | J156: 16.1 | K156: 2005
A157: 313 | B157: Textile mills | C157: 298969 | D157: 4223048 | E157: 21470415 | F157: 583037 | G157: 958543 | H157: 38794866 | I157: 3.16 | J157: 5.84 | K157: 2006
A158: 313 | B158: Textile mills | C158: 336584 | D158: 4617897 | E158: 23773487 | F158: 653948 | G158: 991347 | H158: 42327960 | I158: 3.1 | J158: 5.5 | K158: 2005
A159: 3131 | B159: Fiber, yarn, & thread mills | C159: 81105 | D159: 1000779 | E159: 6343965 | F159: 64997 | G159: 334836 | H159: 9726920 | I159: 3.16 | J159: 5.84 | K159: 2006
A160: 3131 | B160: Fiber, yarn, & thread mills | C160: 88828 | D160: 1103429 | E160: 6884770 | F160: 85212 | G160: 347027 | H160: 10414230 | I160: 3.1 | J160: 5.5 | K160: 2005
A161: 31311 | B161: Fiber, yarn, and thread mills | C161: 81105 | D161: 1000779 | E161: 6343965 | F161: 64997 | G161: 334836 | H161: 9726920 | I161: 3.16 | J161: 5.84 | K161: 2006
A162: 31311 | B162: Fiber, yarn, and thread mills | C162: 88828 | D162: 1103429 | E162: 6884770 | F162: 85212 | G162: 347027 | H162: 10414230 | I162: 3.1 | J162: 5.5 | K162: 2005
A163: 31311M | B163: Fiber, yarn, and thread mills | C163: 81105 | D163: 1000779 | E163: 6343965 | F163: 64997 | G163: 334836 | H163: 9726920 | I163: 3.16 | J163: 5.84 | K163: 2006
A164: 31311M | B164: Fiber, yarn, and thread mills | C164: 88828 | D164: 1103429 | E164: 6884770 | F164: 85212 | G164: 347027 | H164: 10414230 | I164: 3.1 | J164: 5.5 | K164: 2005
A165: 3132 | B165: Fabric mills | C165: 147314 | D165: 2240200 | E165: 9566640 | F165: 279106 | G165: 445483 | H165: 19350820 | I165: 3.16 | J165: 5.84 | K165: 2006
A166: 3132 | B166: Fabric mills | C166: 170014 | D166: 2469236 | E166: 10301280 | F166: 286950 | G166: 460921 | H166: 20679206 | I166: 3.1 | J166: 5.5 | K166: 2005
A167: 31321 | B167: Broadwoven fabric mills | C167: 77564 | D167: 1080711 | E167: 4490088 | F167: 110677 | G167: 235135 | H167: 8031216 | I167: 3.16 | J167: 5.84 | K167: 2006
A168: 31321 | B168: Broadwoven fabric mills | C168: 91348 | D168: 1246046 | E168: 5098562 | F168: 119781 | G168: 242244 | H168: 9350193 | I168: 3.1 | J168: 5.5 | K168: 2005
A169: 313210 | B169: Broadwoven fabric mills | C169: 77564 | D169: 1080711 | E169: 4490088 | F169: 110677 | G169: 235135 | H169: 8031216 | I169: 3.16 | J169: 5.84 | K169: 2006
A170: 313210 | B170: Broadwoven fabric mills | C170: 91348 | D170: 1246046 | E170: 5098562 | F170: 119781 | G170: 242244 | H170: 9350193 | I170: 3.1 | J170: 5.5 | K170: 2005
A171: 31322 | B171: Narrow fabric mills and schiffli machine embroidery | C171: 14585 | D171: 192239 | E171: 565347 | F171: 16738 | G171: D | H171: 1226505 | I171: 3.16 | J171: 5.84 | K171: 2006
A172: 31322 | B172: Narrow fabric mills and schiffli machine embroidery | C172: 16479 | D172: 203518 | E172: 599027 | F172: 15999 | G172: 21206 | H172: 1330924 | I172: 3.1 | J172: 5.5 | K172: 2005
A173: 31322M | B173: Narrow fabric mills and schiffli machine embroidery | C173: 14585 | D173: 192239 | E173: 565347 | F173: 16738 | G173: D | H173: 1226505 | I173: 3.16 | J173: 5.84 | K173: 2006
A174: 31322M | B174: Narrow fabric mills and schiffli machine embroidery | C174: 16479 | D174: 203518 | E174: 599027 | F174: 15999 | G174: 21206 | H174: 1330924 | I174: 3.1 | J174: 5.5 | K174: 2005
A175: 31323 | B175: Nonwoven fabric mills | C175: 29419 | D175: 654105 | E175: 3082111 | F175: 88628 | G175: 143402 | H175: 7638815 | I175: 3.16 | J175: 5.84 | K175: 2006
A176: 31323 | B176: Nonwoven fabric mills | C176: 30992 | D176: 648975 | E176: 2941479 | F176: 82203 | G176: 134169 | H176: 7131880 | I176: 3.1 | J176: 5.5 | K176: 2005
A177: 313230 | B177: Nonwoven fabric mills | C177: 29419 | D177: 654105 | E177: 3082111 | F177: 88628 | G177: 143402 | H177: 7638815 | I177: 3.16 | J177: 5.84 | K177: 2006
A178: 313230 | B178: Nonwoven fabric mills | C178: 30992 | D178: 648975 | E178: 2941479 | F178: 82203 | G178: 134169 | H178: 7131880 | I178: 3.1 | J178: 5.5 | K178: 2005
A179: 31324 | B179: Knit fabric mills | C179: 25746 | D179: 313145 | E179: 1429095 | F179: 63063 | G179: D | H179: 2454284 | I179: 3.16 | J179: 5.84 | K179: 2006
A180: 31324 | B180: Knit fabric mills | C180: 31195 | D180: 370698 | E180: 1662213 | F180: 68968 | G180: 63301 | H180: 2866209 | I180: 3.1 | J180: 5.5 | K180: 2005
A181: 31324M | B181: Knit fabric mills | C181: 25746 | D181: 313145 | E181: 1429095 | F181: 63063 | G181: D | H181: 2454284 | I181: 3.16 | J181: 5.84 | K181: 2006
A182: 31324M | B182: Knit fabric mills | C182: 31195 | D182: 370698 | E182: 1662213 | F182: 68968 | G182: 63301 | H182: 2866209 | I182: 3.1 | J182: 5.5 | K182: 2005
A183: 3133 | B183: Textile & fabric finishing & fabric coating mills | C183: 70550 | D183: 982069 | E183: 5559810 | F183: 238934 | G183: 178224 | H183: 9717125 | I183: 3.16 | J183: 5.84 | K183: 2006
A184: 3133 | B184: Textile & fabric finishing & fabric coating mills | C184: 77741 | D184: 1045233 | E184: 6587437 | F184: 281786 | G184: 183400 | H184: 11234524 | I184: 3.1 | J184: 5.5 | K184: 2005
A185: 31331 | B185: Textile and fabric finishing mills | C185: 56662 | D185: 761921 | E185: 3826564 | F185: 207596 | G185: 150489 | H185: 7145888 | I185: 3.16 | J185: 5.84 | K185: 2006
A186: 31331 | B186: Textile and fabric finishing mills | C186: 63485 | D186: 821676 | E186: 4856077 | F186: 252442 | G186: 158206 | H186: 8612421 | I186: 3.1 | J186: 5.5 | K186: 2005
A187: 31331M | B187: Textile and fabric finishing mills | C187: 56662 | D187: 761921 | E187: 3826564 | F187: 207596 | G187: 150489 | H187: 7145888 | I187: 3.16 | J187: 5.84 | K187: 2006
A188: 31331M | B188: Textile and fabric finishing mills | C188: 63485 | D188: 821676 | E188: 4856077 | F188: 252442 | G188: 158206 | H188: 8612421 | I188: 3.1 | J188: 5.5 | K188: 2005
A189: 31332 | B189: Fabric coating mills | C189: 13888 | D189: 220148 | E189: 1733246 | F189: 31338 | G189: 27735 | H189: 2571238 | I189: 3.16 | J189: 5.84 | K189: 2006
A190: 31332 | B190: Fabric coating mills | C190: 14257 | D190: 223557 | E190: 1731359 | F190: 29344 | G190: 25194 | H190: 2622103 | I190: 3.1 | J190: 5.5 | K190: 2005
A191: 313320 | B191: Fabric coating mills | C191: 13888 | D191: 220148 | E191: 1733246 | F191: 31338 | G191: 27735 | H191: 2571238 | I191: 3.16 | J191: 5.84 | K191: 2006
A192: 313320 | B192: Fabric coating mills | C192: 14257 | D192: 223557 | E192: 1731359 | F192: 29344 | G192: 25194 | H192: 2622103 | I192: 3.1 | J192: 5.5 | K192: 2005
A193: 314 | B193: Textile product mills | C193: 231410 | D193: 2878468 | E193: 18171617 | F193: 234269 | G193: 257934 | H193: 33219884 | I193: 3.16 | J193: 5.84 | K193: 2006
A194: 314 | B194: Textile product mills | C194: 248343 | D194: 3021251 | E194: 19244870 | F194: 242726 | G194: 260795 | H194: 35021877 | I194: 3.1 | J194: 5.5 | K194: 2005
A195: 3141 | B195: Textile furnishings mills | C195: 128413 | D195: 1545749 | E195: 12633288 | F195: 183437 | G195: 138739 | H195: 21888097 | I195: 3.16 | J195: 5.84 | K195: 2006
A196: 3141 | B196: Textile furnishings mills | C196: 136163 | D196: 1628821 | E196: 13483206 | F196: 188968 | G196: 145846 | H196: 23621729 | I196: 3.1 | J196: 5.5 | K196: 2005
A197: 31411 | B197: Carpet and rug mills | C197: 69881 | D197: 902820 | E197: 8540774 | F197: 163733 | G197: 99081 | H197: 15210270 | I197: 3.16 | J197: 5.84 | K197: 2006
A198: 31411 | B198: Carpet and rug mills | C198: 68846 | D198: 920846 | E198: 8734353 | F198: 158212 | G198: 98896 | H198: 15701190 | I198: 3.1 | J198: 5.5 | K198: 2005
A199: 314110 | B199: Carpet and rug mills | C199: 69881 | D199: 902820 | E199: 8540774 | F199: 163733 | G199: 99081 | H199: 15210270 | I199: 3.16 | J199: 5.84 | K199: 2006
A200: 314110 | B200: Carpet and rug mills | C200: 68846 | D200: 920846 | E200: 8734353 | F200: 158212 | G200: 98896 | H200: 15701190 | I200: 3.1 | J200: 5.5 | K200: 2005
... 1030 more rows

Sheet 2007 Econ Census Data
A1: Data in the SourcingApps data base and is from the Annual Manufacturers Survey (codes 31-33), or Economic Census (published in years ending in 2 or 7) and the Quarterly Financial Report (average of four quarters, for the year selected) published by the U. S. Census Bureau.
A2: 2007 NAICS code | B2: Meaning of 2007 NAICS code | C2: Production workers hours (1,000) | D2: Production workers, nonleased employees wages ($1,000) | E2: Total cost of materials ($1,000) | F2: Cost of purchased fuels ($1,000) | G2: Purchased electricity ($1,000) | H2: Total value of shipments ($1,000) | I2: Fixed Cost as % of Net Sales Billed | J2: QFR 2007 Average Operating Income | K2: Year
A3: 311111 | B3: Dog and cat food manufacturing | C3: 28321 | D3: 553034 | E3: 6917411 | F3: 118202 | G3: 78043 | H3: 14390209 | I3: 2.06 | J3: 5.94 | K3: 2007
A4: 311119 | B4: Other animal food manufacturing | C4: 36406 | D4: 614801 | E4: 17968210 | F4: 175859 | G4: 180414 | H4: 24220527 | I4: 2.06 | J4: 5.94 | K4: 2007
A5: 311211 | B5: Flour milling | C5: 17356 | D5: 302184 | E5: 7179622 | F5: 49151 | G5: 149819 | H5: 9733865 | I5: 2.06 | J5: 5.94 | K5: 2007
A6: 311212 | B6: Rice milling | C6: 6541 | D6: 108120 | E6: 2156045 | F6: 26153 | G6: 34463 | H6: 2827302 | I6: 2.06 | J6: 5.94 | K6: 2007
A7: 311213 | B7: Malt manufacturing | C7: 1395 | D7: 31779 | E7: 591109 | F7: 48977 | G7: 23617 | H7: 786571 | I7: 2.06 | J7: 5.94 | K7: 2007
A8: 311221 | B8: Wet corn milling | C8: 11760 | D8: 307938 | E8: 6908766 | F8: 756797 | G8: 344807 | H8: 12117145 | I8: 2.06 | J8: 5.94 | K8: 2007
A9: 311222 | B9: Soybean processing | C9: 9617 | D9: 197931 | E9: 15312922 | F9: 283164 | G9: 110125 | H9: 19367001 | I9: 2.06 | J9: 5.94 | K9: 2007
A10: 311223 | B10: Other oilseed processing | C10: 2103 | D10: 31701 | E10: 1078545 | F10: 22612 | G10: 21659 | H10: 1506405 | I10: 2.06 | J10: 5.94 | K10: 2007
A11: 311225 | B11: Fats and oils refining and blending | C11: 13951 | D11: 260380 | E11: 10418695 | F11: 112199 | G11: 78713 | H11: 12831703 | I11: 2.06 | J11: 5.94 | K11: 2007
A12: 311230 | B12: Breakfast cereal manufacturing | C12: 22959 | D12: 583104 | E12: 3048364 | F12: 84736 | G12: 77305 | H12: 9684167 | I12: 2.06 | J12: 5.94 | K12: 2007
A13: 311311 | B13: Sugarcane mills | C13: 7198 | D13: 149524 | E13: 1082785 | F13: D | G13: 16523 | H13: 1872157 | I13: 2.06 | J13: 5.94 | K13: 2007
A14: 311312 | B14: Cane sugar refining | C14: 4475 | D14: 77885 | E14: 1726413 | F14: D | G14: 14357 | H14: 2304141 | I14: 2.06 | J14: 5.94 | K14: 2007
A15: 311313 | B15: Beet sugar manufacturing | C15: 11757 | D15: 208756 | E15: 1948943 | F15: 175614 | G15: 34416 | H15: 3264943 | I15: 2.06 | J15: 5.94 | K15: 2007
A16: 311320 | B16: Chocolate and confectionery manufacturing from cacao beans | C16: 11543 | D16: 255169 | E16: 2437989 | F16: 19501 | G16: 32748 | H16: 4383548 | I16: 2.06 | J16: 5.94 | K16: 2007
A17: 311330 | B17: Confectionery manufacturing from purchased chocolate | C17: 43968 | D17: 781035 | E17: 3581519 | F17: 52556 | G17: 81424 | H17: 10030008 | I17: 2.06 | J17: 5.94 | K17: 2007
A18: 311340 | B18: Nonchocolate confectionery manufacturing | C18: 27783 | D18: 486017 | E18: 2257972 | F18: 29562 | G18: 42118 | H18: 5590690 | I18: 2.06 | J18: 5.94 | K18: 2007
A19: 311411 | B19: Frozen fruit, juice, and vegetable manufacturing | C19: 61735 | D19: 848144 | E19: 5160434 | F19: 189730 | G19: 151744 | H19: 10618793 | I19: 2.06 | J19: 5.94 | K19: 2007
A20: 311412 | B20: Frozen specialty food manufacturing | C20: 87906 | D20: 1272061 | E20: 7678876 | F20: 83089 | G20: 174559 | H20: 14191386 | I20: 2.06 | J20: 5.94 | K20: 2007
A21: 311421 | B21: Fruit and vegetable canning | C21: 95009 | D21: 1452565 | E21: 11838787 | F21: 284945 | G21: 177358 | H21: 21358654 | I21: 2.06 | J21: 5.94 | K21: 2007
A22: 311422 | B22: Specialty canning | C22: 24133 | D22: 452732 | E22: 4228531 | F22: 96306 | G22: 51642 | H22: 9213117 | I22: 2.06 | J22: 5.94 | K22: 2007
A23: 311423 | B23: Dried and dehydrated food manufacturing | C23: 24051 | D23: 359965 | E23: 3055410 | F23: 109786 | G23: 51934 | H23: 5503984 | I23: 2.06 | J23: 5.94 | K23: 2007
A24: 311511 | B24: Fluid milk manufacturing | C24: 77934 | D24: 1604870 | E24: 22714500 | F24: 220466 | G24: 265676 | H24: 32976504 | I24: 2.06 | J24: 5.94 | K24: 2007
A25: 311512 | B25: Creamery butter manufacturing | C25: 2784 | D25: 50345 | E25: 1854830 | F25: 7711 | G25: 7321 | H25: 2176349 | I25: 2.06 | J25: 5.94 | K25: 2007
A26: 311513 | B26: Cheese manufacturing | C26: 71033 | D26: 1242011 | E26: 27125465 | F26: 233291 | G26: 216691 | H26: 33112152 | I26: 2.06 | J26: 5.94 | K26: 2007
A27: 311514 | B27: Dry, condensed, and evaporated dairy product manufacturing | C27: 23835 | D27: 523799 | E27: 8293141 | F27: 188003 | G27: 110588 | H27: 13199897 | I27: 2.06 | J27: 5.94 | K27: 2007
A28: 311520 | B28: Ice cream and frozen dessert manufacturing | C28: 28206 | D28: 541438 | E28: 4029791 | F28: 26357 | G28: 93125 | H28: 8853126 | I28: 2.06 | J28: 5.94 | K28: 2007
A29: 311611 | B29: Animal (except poultry) slaughtering | C29: 275516 | D29: 3676518 | E29: 57849068 | F29: 298071 | G29: 301664 | H29: 67780226 | I29: 2.06 | J29: 5.94 | K29: 2007
A30: 311612 | B30: Meat processed from carcasses | C30: 185619 | D30: 2564589 | E30: 24319736 | F30: 201776 | G30: 317488 | H30: 38392941 | I30: 2.06 | J30: 5.94 | K30: 2007
A31: 311613 | B31: Rendering and meat byproduct processing | C31: 11360 | D31: 184523 | E31: 1452802 | F31: 224658 | G31: 65806 | H31: 3563862 | I31: 2.06 | J31: 5.94 | K31: 2007
A32: 311615 | B32: Poultry processing | C32: 431317 | D32: 5054130 | E32: 24632754 | F32: 295113 | G32: 461843 | H32: 49827709 | I32: 2.06 | J32: 5.94 | K32: 2007
A33: 311711 | B33: Seafood canning | C33: 4825 | D33: 54666 | E33: 618059 | F33: 6493 | G33: 5119 | H33: 978004 | I33: 2.06 | J33: 5.94 | K33: 2007
A34: 311712 | B34: Fresh and frozen seafood processing | C34: 62194 | D34: 766065 | E34: 5872614 | F34: 123144 | G34: 75994 | H34: 10456412 | I34: 2.06 | J34: 5.94 | K34: 2007
A35: 311811 | B35: Retail bakeries | C35: 46212 | D35: 585289 | E35: 1054069 | F35: 16448 | G35: 41983 | H35: 3378034 | I35: 2.06 | J35: 5.94 | K35: 2007
A36: 311812 | B36: Commercial bakeries | C36: 153327 | D36: 2734692 | E36: 8288945 | F36: 214154 | G36: 254440 | H36: 25642661 | I36: 2.06 | J36: 5.94 | K36: 2007
A37: 311813 | B37: Frozen cakes, pies, and other pastries manufacturing | C37: 32193 | D37: 431722 | E37: 2565964 | F37: 21197 | G37: 54657 | H37: 4844779 | I37: 2.06 | J37: 5.94 | K37: 2007
A38: 311821 | B38: Cookie and cracker manufacturing | C38: 48267 | D38: 829070 | E38: 3711679 | F38: 72259 | G38: 73698 | H38: 10755858 | I38: 2.06 | J38: 5.94 | K38: 2007
A39: 311822 | B39: Flour mixes and dough manufacturing from purchased flour | C39: 26747 | D39: 406762 | E39: 3317529 | F39: 22462 | G39: 60164 | H39: 6394137 | I39: 2.06 | J39: 5.94 | K39: 2007
A40: 311823 | B40: Dry pasta manufacturing | C40: 5929 | D40: 103256 | E40: 874238 | F40: 11179 | G40: 18605 | H40: 1595608 | I40: 2.06 | J40: 5.94 | K40: 2007
A41: 311830 | B41: Tortilla manufacturing | C41: 21744 | D41: 312784 | E41: 1076895 | F41: 34248 | G41: 30299 | H41: 2584054 | I41: 2.06 | J41: 5.94 | K41: 2007
A42: 311911 | B42: Roasted nuts and peanut butter manufacturing | C42: 22570 | D42: 326552 | E42: 4590933 | F42: 26772 | G42: 39617 | H42: 6795044 | I42: 2.06 | J42: 5.94 | K42: 2007
A43: 311919 | B43: Other snack food manufacturing | C43: 34045 | D43: 583676 | E43: 4422644 | F43: 171204 | G43: 75051 | H43: 17191516 | I43: 2.06 | J43: 5.94 | K43: 2007
A44: 311920 | B44: Coffee and tea manufacturing | C44: 16258 | D44: 314611 | E44: 4409304 | F44: 48046 | G44: 48255 | H44: 7944571 | I44: 2.06 | J44: 5.94 | K44: 2007
A45: 311930 | B45: Flavoring syrup and concentrate manufacturing | C45: 8711 | D45: 172485 | E45: 1890527 | F45: 22294 | G45: 20036 | H45: 9054377 | I45: 2.06 | J45: 5.94 | K45: 2007
A46: 311941 | B46: Mayonnaise, dressing, and other prepared sauce manufacturing | C46: 22542 | D46: 380243 | E46: 3742950 | F46: 23063 | G46: 42514 | H46: 6818167 | I46: 2.06 | J46: 5.94 | K46: 2007
A47: 311942 | B47: Spice and extract manufacturing | C47: 21515 | D47: 389885 | E47: 3672027 | F47: 25846 | G47: 47560 | H47: 7523596 | I47: 2.06 | J47: 5.94 | K47: 2007
A48: 311991 | B48: Perishable prepared food manufacturing | C48: 51774 | D48: 688068 | E48: 4560025 | F48: 37584 | G48: 84123 | H48: 8548383 | I48: 2.06 | J48: 5.94 | K48: 2007
A49: 311999 | B49: All other miscellaneous food manufacturing | C49: 50926 | D49: 782143 | E49: 5916981 | F49: 92986 | G49: 102569 | H49: 10855791 | I49: 2.06 | J49: 5.94 | K49: 2007
A50: 312111 | B50: Soft drink manufacturing | C50: 63923 | D50: 1209780 | E50: 25232886 | F50: 189225 | G50: 216094 | H50: 41675671 | I50: 3.04 | J50: 17.26 | K50: 2007
A51: 312112 | B51: Bottled water manufacturing | C51: 13086 | D51: 257508 | E51: 1719812 | F51: 14225 | G51: 86539 | H51: 4483594 | I51: 3.04 | J51: 17.26 | K51: 2007
A52: 312113 | B52: Ice manufacturing | C52: 4452 | D52: 55648 | E52: 165607 | F52: 1777 | G52: 50680 | H52: 842757 | I52: 3.04 | J52: 17.26 | K52: 2007
A53: 312120 | B53: Breweries | C53: 28473 | D53: 804266 | E53: 7795945 | F53: 184165 | G53: 159677 | H53: 21193061 | I53: 3.04 | J53: 17.26 | K53: 2007
A54: 312130 | B54: Wineries | C54: 27080 | D54: 531476 | E54: 4927700 | F54: 38417 | G54: 86596 | H54: 12266106 | I54: 3.04 | J54: 17.26 | K54: 2007
A55: 312140 | B55: Distilleries | C55: 10158 | D55: 199756 | E55: 2586137 | F55: 32028 | G55: 17584 | H55: 7077894 | I55: 3.04 | J55: 17.26 | K55: 2007
A56: 312210 | B56: Tobacco stemming and redrying | C56: 3474 | D56: 26458 | E56: 679295 | F56: 4531 | G56: 4665 | H56: 1030963 | I56: 3.04 | J56: 17.26 | K56: 2007
A57: 312221 | B57: Cigarette manufacturing | C57: 14590 | D57: 480030 | E57: 4045732 | F57: D | G57: D | H57: 34766372 | I57: 3.04 | J57: 17.26 | K57: 2007
A58: 312229 | B58: Other tobacco product manufacturing | C58: 9125 | D58: 182032 | E58: 805849 | F58: D | G58: D | H58: 4288764 | I58: 3.04 | J58: 17.26 | K58: 2007
A59: 313111 | B59: Yarn spinning mills | C59: 46288 | D59: 579004 | E59: 3185785 | F59: 27822 | G59: 226190 | H59: 5011244 | I59: 3.5 | J59: 4.67 | K59: 2007
A60: 313112 | B60: Yarn texturizing, throwing, and twisting mills | C60: 29288 | D60: 378756 | E60: 2848504 | F60: 29437 | G60: 107526 | H60: 4253858 | I60: 3.5 | J60: 4.67 | K60: 2007
A61: 313113 | B61: Thread mills | C61: 2250 | D61: (r)24,956 | E61: 125786 | F61: 2340 | G61: 4330 | H61: 210861 | I61: 3.5 | J61: 4.67 | K61: 2007
A62: 313210 | B62: Broadwoven fabric mills | C62: 53063 | D62: 767142 | E62: 3522170 | F62: 54527 | G62: 173656 | H62: 6876717 | I62: 3.5 | J62: 4.67 | K62: 2007
A63: 313221 | B63: Narrow fabric mills | C63: 13078 | D63: 165460 | E63: 523450 | F63: 13681 | G63: 19030 | H63: 1104774 | I63: 3.5 | J63: 4.67 | K63: 2007
A64: 313222 | B64: Schiffli machine embroidery | C64: 1847 | D64: 20507 | E64: 23480 | F64: 422 | G64: 677 | H64: 90249 | I64: 3.5 | J64: 4.67 | K64: 2007
A65: 313230 | B65: Nonwoven fabric mills | C65: 29958 | D65: 655035 | E65: 3519239 | F65: 90258 | G65: 154342 | H65: 7308210 | I65: 3.5 | J65: 4.67 | K65: 2007
A66: 313241 | B66: Weft knit fabric mills | C66: 8653 | D66: 108432 | E66: 531279 | F66: 22267 | G66: 12989 | H66: 871132 | I66: 3.5 | J66: 4.67 | K66: 2007
A67: 313249 | B67: Other knit fabric and lace mills | C67: 9728 | D67: 125999 | E67: 605819 | F67: 19562 | G67: 18096 | H67: 1066773 | I67: 3.5 | J67: 4.67 | K67: 2007
A68: 313311 | B68: Broadwoven fabric finishing mills | C68: 27711 | D68: 384348 | E68: 2038182 | F68: 122248 | G68: 58037 | H68: 3869481 | I68: 3.5 | J68: 4.67 | K68: 2007
A69: 313312 | B69: Textile and fabric finishing (except broadwoven fabric) mills | C69: 26106 | D69: 331833 | E69: 1388384 | F69: 52648 | G69: 47240 | H69: 2699677 | I69: 3.5 | J69: 4.67 | K69: 2007
A70: 313320 | B70: Fabric coating mills | C70: 12867 | D70: 217937 | E70: 1544008 | F70: 33008 | G70: 26840 | H70: 2453244 | I70: 3.5 | J70: 4.67 | K70: 2007
A71: 314110 | B71: Carpet and rug mills | C71: 67487 | D71: 848869 | E71: 7148810 | F71: 128971 | G71: 91395 | H71: 13126146 | I71: 3.5 | J71: 4.67 | K71: 2007
A72: 314121 | B72: Curtain and drapery mills | C72: 17540 | D72: 187337 | E72: 475464 | F72: 3826 | G72: 5315 | H72: 1079877 | I72: 3.5 | J72: 4.67 | K72: 2007
A73: 314129 | B73: Other household textile product mills | C73: 36718 | D73: 397263 | E73: 2734000 | F73: 17711 | G73: 24155 | H73: 4521421 | I73: 3.5 | J73: 4.67 | K73: 2007
A74: 314911 | B74: Textile bag mills | C74: 8494 | D74: 91455 | E74: 336193 | F74: 1487 | G74: 3589 | H74: 660848 | I74: 3.5 | J74: 4.67 | K74: 2007
A75: 314912 | B75: Canvas and related product mills | C75: 26893 | D75: 344187 | E75: 1166028 | F75: 7200 | G75: 11959 | H75: 2674307 | I75: 3.5 | J75: 4.67 | K75: 2007
A76: 314991 | B76: Rope, cordage, and twine mills | C76: 5872 | D76: 81631 | E76: 439487 | F76: 2528 | G76: 8645 | H76: 841946 | I76: 3.5 | J76: 4.67 | K76: 2007
A77: 314992 | B77: Tire cord and tire fabric mills | C77: 5977 | D77: 104318 | E77: 724798 | F77: 18402 | G77: 37690 | H77: 1069765 | I77: 3.5 | J77: 4.67 | K77: 2007
A78: 314999 | B78: All other miscellaneous textile product mills | C78: 56588 | D78: 673852 | E78: 1981425 | F78: 21655 | G78: 38660 | H78: 4710661 | I78: 3.5 | J78: 4.67 | K78: 2007
A79: 315111 | B79: Sheer hosiery mills | C79: 7972 | D79: 88479 | E79: 330022 | F79: 6543 | G79: 13852 | H79: 620089 | I79: 2.08 | J79: 10.65 | K79: 2007
A80: 315119 | B80: Other hosiery and sock mills | C80: 18558 | D80: 221016 | E80: 714058 | F80: 10566 | G80: 21211 | H80: 1397579 | I80: 2.08 | J80: 10.65 | K80: 2007
A81: 315191 | B81: Outerwear knitting mills | C81: 8525 | D81: 89858 | E81: 494916 | F81: 5006 | G81: 8025 | H81: 901244 | I81: 2.08 | J81: 10.65 | K81: 2007
A82: 315192 | B82: Underwear and nightwear knitting mills | C82: 1283 | D82: 15684 | E82: 177256 | F82: 6967 | G82: 3977 | H82: 294518 | I82: 2.08 | J82: 10.65 | K82: 2007
A83: 315211 | B83: Men's and boys' cut and sew apparel contractors | C83: 26570 | D83: 252300 | E83: 284723 | F83: 3948 | G83: 6696 | H83: 995414 | I83: 2.08 | J83: 10.65 | K83: 2007
A84: 315212 | B84: Women's, girls', and infants' cut and sew apparel contractors | C84: 67330 | D84: 631753 | E84: 1812037 | F84: 17583 | G84: 21273 | H84: 4185671 | I84: 2.08 | J84: 10.65 | K84: 2007
A85: 315221 | B85: Men's and boys' underwear and nightwear mfg. | C85: 769 | D85: 7475 | E85: 25484 | F85: 44 | G85: 172 | H85: 56914 | I85: 2.08 | J85: 10.65 | K85: 2007
A86: 315222 | B86: Men's and boys' suit, coat, and overcoat mfg. | C86: 10555 | D86: 113334 | E86: 405256 | F86: 2320 | G86: 4444 | H86: 896827 | I86: 2.08 | J86: 10.65 | K86: 2007
A87: 315223 | B87: Men's and boys' shirt, except work shirt, mfg. | C87: 9368 | D87: 106389 | E87: 458859 | F87: 812 | G87: 2442 | H87: 754092 | I87: 2.08 | J87: 10.65 | K87: 2007
A88: 315224 | B88: Men's and boys' pants, except work pants, mfg. | C88: 4140 | D88: 33645 | E88: 149644 | F88: 1278 | G88: 1486 | H88: 351730 | I88: 2.08 | J88: 10.65 | K88: 2007
A89: 315225 | B89: Men's and boys' cut and sew work clothing manufacturing | C89: 10858 | D89: 112291 | E89: 411876 | F89: 2394 | G89: 5848 | H89: 795506 | I89: 2.08 | J89: 10.65 | K89: 2007
A90: 315228 | B90: Men's and boys' cut and sew other outerwear manufacturing | C90: 5330 | D90: 52384 | E90: 215443 | F90: 747 | G90: 2251 | H90: 406421 | I90: 2.08 | J90: 10.65 | K90: 2007
A91: 315231 | B91: Women's and girls' lingerie and nightwear mfg. | C91: 2286 | D91: 29587 | E91: 314408 | F91: 756 | G91: 1582 | H91: 628582 | I91: 2.08 | J91: 10.65 | K91: 2007
A92: 315232 | B92: Women's and girls' cut and sew blouse and shirt manufacturing | C92: 8575 | D92: 114387 | E92: 1997576 | F92: 3657 | G92: 4782 | H92: 3239312 | I92: 2.08 | J92: 10.65 | K92: 2007
A93: 315233 | B93: Women's and girls' cut and sew dress manufacturing | C93: 9773 | D93: 138418 | E93: 1331469 | F93: 3776 | G93: 8311 | H93: 2241498 | I93: 2.08 | J93: 10.65 | K93: 2007
A94: 315234 | B94: Women's and girls' suit, coat, and skirt mfg. | C94: 2216 | D94: 27984 | E94: 266195 | F94: 511 | G94: 1175 | H94: 490587 | I94: 2.08 | J94: 10.65 | K94: 2007
A95: 315239 | B95: Women's and girls' cut and sew other outerwear manufacturing | C95: 10911 | D95: 134145 | E95: 1701502 | F95: 6255 | G95: 9640 | H95: 3251871 | I95: 2.08 | J95: 10.65 | K95: 2007
A96: 315291 | B96: Infants' cut and sew apparel manufacturing | C96: 330 | D96: 3238 | E96: 17743 | F96: 69 | G96: 131 | H96: 40480 | I96: 2.08 | J96: 10.65 | K96: 2007
A97: 315292 | B97: Fur and leather apparel manufacturing | C97: 993 | D97: 13731 | E97: 57549 | F97: 309 | G97: 484 | H97: 108414 | I97: 2.08 | J97: 10.65 | K97: 2007
A98: 315299 | B98: All other cut and sew apparel manufacturing | C98: 14358 | D98: 154823 | E98: 525671 | F98: 2618 | G98: 5782 | H98: 1191106 | I98: 2.08 | J98: 10.65 | K98: 2007
A99: 315991 | B99: Hat, cap, and millinery manufacturing | C99: 5954 | D99: 75173 | E99: 162145 | F99: 1146 | G99: 2874 | H99: 359275 | I99: 2.08 | J99: 10.65 | K99: 2007
A100: 315992 | B100: Glove and mitten manufacturing | C100: 2285 | D100: 21122 | E100: 66915 | F100: 209 | G100: 691 | H100: 124983 | I100: 2.08 | J100: 10.65 | K100: 2007
A101: 315993 | B101: Men's and boys' neckwear manufacturing | C101: 2494 | D101: 28302 | E101: 153780 | F101: 146 | G101: 795 | H101: 299857 | I101: 2.08 | J101: 10.65 | K101: 2007
A102: 315999 | B102: Other apparel accessories and other apparel manufacturing | C102: 7423 | D102: 78865 | E102: 351536 | F102: 1280 | G102: 3492 | H102: 667662 | I102: 2.08 | J102: 10.65 | K102: 2007
A103: 316110 | B103: Leather and hide tanning and finishing | C103: 6830 | D103: 111531 | E103: 1139398 | F103: 14801 | G103: 16793 | H103: 1530816 | I103: 2.08 | J103: 10.65 | K103: 2007
A104: 316211 | B104: Rubber and plastics footwear manufacturing | C104: 3422 | D104: 54075 | E104: 223493 | F104: 1287 | G104: 3734 | H104: 483865 | I104: 2.08 | J104: 10.65 | K104: 2007
A105: 316213 | B105: Men's footwear (except athletic) manufacturing | C105: 9280 | D105: 112549 | E105: 431996 | F105: 1182 | G105: 3978 | H105: 799200 | I105: 2.08 | J105: 10.65 | K105: 2007
A106: 316214 | B106: Women's footwear (except athletic) manufacturing | C106: 5684 | D106: 65660 | E106: 149539 | F106: 710 | G106: 2104 | H106: 352699 | I106: 2.08 | J106: 10.65 | K106: 2007
A107: 316219 | B107: Other footwear manufacturing | C107: 1364 | D107: 16522 | E107: 30932 | F107: 292 | G107: 627 | H107: 77375 | I107: 2.08 | J107: 10.65 | K107: 2007
A108: 316991 | B108: Luggage manufacturing | C108: 6863 | D108: 71982 | E108: 197740 | F108: 823 | G108: 2328 | H108: 527629 | I108: 2.08 | J108: 10.65 | K108: 2007
A109: 316992 | B109: Women's handbag and purse manufacturing | C109: 2353 | D109: 28456 | E109: 255517 | F109: 326 | G109: 1072 | H109: 726850 | I109: 2.08 | J109: 10.65 | K109: 2007
A110: 316993 | B110: Other personal leather good mfg. | C110: 3064 | D110: 37396 | E110: 193212 | F110: 505 | G110: 1309 | H110: 460179 | I110: 2.08 | J110: 10.65 | K110: 2007
A111: 316999 | B111: All other leather good and allied product manufacturing | C111: 11102 | D111: 112725 | E111: 327107 | F111: 2103 | G111: 4305 | H111: 739665 | I111: 2.08 | J111: 10.65 | K111: 2007
A112: 321113 | B112: Sawmills | C112: 158095 | D112: 2452474 | E112: 14716399 | F112: 235766 | G112: 421269 | H112: 22040005 | I112: 3.57 | J112: 3.76 | K112: 2007
A113: 321114 | B113: Wood preservation | C113: 23231 | D113: 325429 | E113: 4359265 | F113: 41291 | G113: 37180 | H113: 5826364 | I113: 3.57 | J113: 3.76 | K113: 2007
A114: 321211 | B114: Hardwood veneer and plywood manufacturing | C114: 32256 | D114: 429977 | E114: 2205161 | F114: 21840 | G114: 41905 | H114: 3425676 | I114: 3.57 | J114: 3.76 | K114: 2007
A115: 321212 | B115: Softwood veneer and plywood manufacturing | C115: 36446 | D115: 607513 | E115: 2838251 | F115: 46638 | G115: 110068 | H115: 4181585 | I115: 3.57 | J115: 3.76 | K115: 2007
A116: 321213 | B116: Engineered wood member (except truss) manufacturing | C116: 12392 | D116: 214053 | E116: 1454945 | F116: 13142 | G116: 30401 | H116: 2374559 | I116: 3.57 | J116: 3.76 | K116: 2007
A117: 321214 | B117: Truss manufacturing | C117: 59588 | D117: 753516 | E117: 2709494 | F117: 15077 | G117: 27903 | H117: 5380541 | I117: 3.57 | J117: 3.76 | K117: 2007
A118: 321219 | B118: Reconstituted wood product manufacturing | C118: 34615 | D118: 625963 | E118: 4445566 | F118: 249498 | G118: 328965 | H118: 6896468 | I118: 3.57 | J118: 3.76 | K118: 2007
A119: 321911 | B119: Wood window and door manufacturing | C119: 116209 | D119: 1856233 | E119: 7453938 | F119: 48423 | G119: 114176 | H119: 14398176 | I119: 3.57 | J119: 3.76 | K119: 2007
A120: 321912 | B120: Cut stock, resawing lumber, and planing | C120: 51196 | D120: 710963 | E120: 4069811 | F120: 38323 | G120: 74977 | H120: 6467021 | I120: 3.57 | J120: 3.76 | K120: 2007
A121: 321918 | B121: Other millwork (including flooring) | C121: 68475 | D121: 967127 | E121: 4060826 | F121: 24476 | G121: 75849 | H121: 7435665 | I121: 3.57 | J121: 3.76 | K121: 2007
A122: 321920 | B122: Wood container and pallet manufacturing | C122: 96721 | D122: 1082430 | E122: 3790258 | F122: 50975 | G122: 58383 | H122: 7235876 | I122: 3.57 | J122: 3.76 | K122: 2007
A123: 321991 | B123: Manufactured home (mobile home) manufacturing | C123: 60725 | D123: 853156 | E123: 3454812 | F123: 10944 | G123: 24300 | H123: 6052691 | I123: 3.57 | J123: 3.76 | K123: 2007
A124: 321992 | B124: Prefabricated wood building manufacturing | C124: 32835 | D124: 473017 | E124: 2169217 | F124: 10340 | G124: 17294 | H124: 4209804 | I124: 3.57 | J124: 3.76 | K124: 2007
A125: 321999 | B125: All other miscellaneous wood product manufacturing | C125: 54290 | D125: 734201 | E125: 2954048 | F125: 36569 | G125: 83027 | H125: 6077231 | I125: 3.57 | J125: 3.76 | K125: 2007
A126: 322110 | B126: Pulp mills | C126: 12899 | D126: 385759 | E126: 2784919 | F126: 340679 | G126: 102428 | H126: 5027395 | I126: 4.8 | J126: 2.47 | K126: 2007
A127: 322121 | B127: Paper (except newsprint) mills | C127: 128196 | D127: 3452306 | E127: 21447078 | F127: 2427484 | G127: 1240684 | H127: 46291440 | I127: 4.8 | J127: 2.47 | K127: 2007
A128: 322122 | B128: Newsprint mills | C128: 8418 | D128: 257866 | E128: 1962796 | F128: 174690 | G128: 379058 | H128: 3440645 | I128: 4.8 | J128: 2.47 | K128: 2007
A129: 322130 | B129: Paperboard mills | C129: 63840 | D129: 1799084 | E129: 13018103 | F129: 1898237 | G129: 1070943 | H129: 25354745 | I129: 4.8 | J129: 2.47 | K129: 2007
A130: 322211 | B130: Corrugated and solid fiber box manufacturing | C130: 158675 | D130: 2817454 | E130: 21560380 | F130: 264535 | G130: 280058 | H130: 33071335 | I130: 4.8 | J130: 2.47 | K130: 2007
A131: 322212 | B131: Folding paperboard box manufacturing | C131: 71572 | D131: 1270382 | E131: 6300932 | F131: 49648 | G131: 119738 | H131: 11315208 | I131: 4.8 | J131: 2.47 | K131: 2007
A132: 322213 | B132: Setup paperboard box manufacturing | C132: 5457 | D132: 77170 | E132: 286502 | F132: 3561 | G132: 6219 | H132: 533245 | I132: 4.8 | J132: 2.47 | K132: 2007
A133: 322214 | B133: Fiber can, tube, drum, and similar products manufacturing | C133: 13209 | D133: 235575 | E133: 1383699 | F133: 8690 | G133: 18502 | H133: 2327229 | I133: 4.8 | J133: 2.47 | K133: 2007
A134: 322215 | B134: Nonfolding sanitary food container manufacturing | C134: 20223 | D134: 321950 | E134: 1983835 | F134: 9415 | G134: 48109 | H134: 3653173 | I134: 4.8 | J134: 2.47 | K134: 2007
A135: 322221 | B135: Coated and laminated packaging paper mfg. | C135: 7855 | D135: 142282 | E135: 917705 | F135: 7804 | G135: 18987 | H135: 1493624 | I135: 4.8 | J135: 2.47 | K135: 2007
A136: 322222 | B136: Coated and laminated paper manufacturing | C136: 49052 | D136: 987114 | E136: 7293206 | F136: 176777 | G136: 159374 | H136: 14260011 | I136: 4.8 | J136: 2.47 | K136: 2007
A137: 322223 | B137: Coated paper bag and pouch manufacturing | C137: 5270 | D137: 90001 | E137: 433563 | F137: 3434 | G137: 6738 | H137: 784805 | I137: 4.8 | J137: 2.47 | K137: 2007
A138: 322224 | B138: Uncoated paper and multiwall bag manufacturing | C138: 17212 | D138: 267218 | E138: 1359344 | F138: 5852 | G138: 18230 | H138: 2369062 | I138: 4.8 | J138: 2.47 | K138: 2007
A139: 322225 | B139: Flexible packaging foil manufacturing | C139: 7774 | D139: 153220 | E139: 1027766 | F139: 17403 | G139: 20095 | H139: 1739144 | I139: 4.8 | J139: 2.47 | K139: 2007
A140: 322226 | B140: Surface-coated paperboard manufacturing | C140: 4316 | D140: 74012 | E140: 741911 | F140: 3661 | G140: 8841 | H140: 1090702 | I140: 4.8 | J140: 2.47 | K140: 2007
A141: 322231 | B141: Die-cut paper and paperboard office supplies manufacturing | C141: 14157 | D141: 201833 | E141: 2119373 | F141: 4709 | G141: 15887 | H141: 3506672 | I141: 4.8 | J141: 2.47 | K141: 2007
A142: 322232 | B142: Envelope manufacturing | C142: 29249 | D142: 495242 | E142: 1989762 | F142: 5353 | G142: 58745 | H142: 3658709 | I142: 4.8 | J142: 2.47 | K142: 2007
A143: 322233 | B143: Stationery, tablet, and related product manufacturing | C143: 6473 | D143: 97801 | E143: 380586 | F143: 1335 | G143: 5008 | H143: 1076626 | I143: 4.8 | J143: 2.47 | K143: 2007
A144: 322291 | B144: Sanitary paper product manufacturing | C144: 30024 | D144: 612736 | E144: 4804118 | F144: 63913 | G144: 124523 | H144: 10488406 | I144: 4.8 | J144: 2.47 | K144: 2007
A145: 322299 | B145: All other converted paper product manufacturing | C145: 26861 | D145: 450812 | E145: 2233903 | F145: 43800 | G145: 77490 | H145: 4536069 | I145: 4.8 | J145: 2.47 | K145: 2007
A146: 323110 | B146: Commercial lithographic printing | C146: 443109 | D146: 8547917 | E146: 21219594 | F146: 216229 | G146: 660158 | H146: 53451955 | I146: 4.25 | J146: 6.14 | K146: 2007
A147: 323111 | B147: Commercial gravure printing | C147: 30047 | D147: 576872 | E147: 1980540 | F147: 70592 | G147: 80422 | H147: 4074069 | I147: 4.25 | J147: 6.14 | K147: 2007
A148: 323112 | B148: Commercial flexographic printing | C148: 46518 | D148: 865429 | E148: 3384060 | F148: 20583 | G148: 58225 | H148: 7303050 | I148: 4.25 | J148: 6.14 | K148: 2007
A149: 323113 | B149: Commercial screen printing | C149: 86852 | D149: 1193529 | E149: 3436962 | F149: 29577 | G149: 63685 | H149: 8627726 | I149: 4.25 | J149: 6.14 | K149: 2007
A150: 323114 | B150: Quick printing | C150: 36999 | D150: 590083 | E150: 979568 | F150: 9541 | G150: 14786 | H150: 3245993 | I150: 4.25 | J150: 6.14 | K150: 2007
A151: 323115 | B151: Digital printing | C151: 50668 | D151: 845337 | E151: 1916956 | F151: 18521 | G151: 43132 | H151: 6437410 | I151: 4.25 | J151: 6.14 | K151: 2007
A152: 323116 | B152: Manifold business forms printing | C152: 32184 | D152: 549175 | E152: 2127227 | F152: 8017 | G152: 37523 | H152: 5419597 | I152: 4.25 | J152: 6.14 | K152: 2007
A153: 323117 | B153: Books printing | C153: 49143 | D153: 877922 | E153: 1836310 | F153: 27862 | G153: 67701 | H153: 5153001 | I153: 4.25 | J153: 6.14 | K153: 2007
A154: 323118 | B154: Blankbook, looseleaf binders, and devices manufacturing | C154: 11545 | D154: 156624 | E154: 658768 | F154: 2536 | G154: 9569 | H154: 1632264 | I154: 4.25 | J154: 6.14 | K154: 2007
A155: 323119 | B155: Other commercial printing | C155: 22966 | D155: 393669 | E155: 849755 | F155: 5139 | G155: 22435 | H155: 2483984 | I155: 4.25 | J155: 6.14 | K155: 2007
A156: 323121 | B156: Tradebinding and related work | C156: 38370 | D156: 541330 | E156: 562273 | F156: 6680 | G156: 26361 | H156: 2205616 | I156: 4.25 | J156: 6.14 | K156: 2007
A157: 323122 | B157: Prepress services | C157: 29393 | D157: 718538 | E157: 631248 | F157: 6678 | G157: 18228 | H157: 3181870 | I157: 4.25 | J157: 6.14 | K157: 2007
A158: 324110 | B158: Petroleum refineries | C158: 93581 | D158: 3529051 | E158: 470945954 | F158: 8231641 | G158: 2745898 | H158: 571313475 | I158: 2.03 | J158: 5.83 | K158: 2007
A159: 324121 | B159: Asphalt paving mixture and block manufacturing | C159: 23558 | D159: 510764 | E159: 7465727 | F159: 505373 | G159: 132908 | H159: 12301206 | I159: 2.03 | J159: 5.83 | K159: 2007
A160: 324122 | B160: Asphalt shingle and coating materials manufacturing | C160: 20374 | D160: 458468 | E160: 5228774 | F160: 111587 | G160: 73067 | H160: 8579921 | I160: 2.03 | J160: 5.83 | K160: 2007
A161: 324191 | B161: Petroleum lubricating oil and grease manufacturing | C161: 11190 | D161: 256817 | E161: 5869727 | F161: 60791 | G161: 44911 | H161: 10846559 | I161: 2.03 | J161: 5.83 | K161: 2007
A162: 324199 | B162: All other petroleum and coal products manufacturing | C162: 5130 | D162: 117181 | E162: 1983646 | F162: 49214 | G162: 35999 | H162: 2963179 | I162: 2.03 | J162: 5.83 | K162: 2007
A163: 325110 | B163: Petrochemical manufacturing | C163: 12723 | D163: 510131 | E163: 47174890 | F163: 2633189 | G163: 536101 | H163: 77661772 | I163: 4.16 | J163: 4.82 | K163: 2007
A164: 325120 | B164: Industrial gas manufacturing | C164: 15127 | D164: 417252 | E164: 3959320 | F164: 151213 | G164: 986143 | H164: 9543443 | I164: 4.16 | J164: 4.82 | K164: 2007
A165: 325131 | B165: Inorganic dye and pigment manufacturing | C165: 10555 | D165: 275626 | E165: 2590933 | F165: 195146 | G165: 148108 | H165: 5689517 | I165: 4.16 | J165: 4.82 | K165: 2007
A166: 325132 | B166: Synthetic organic dye and pigment manufacturing | C166: 6426 | D166: 162675 | E166: 1265377 | F166: 41421 | G166: 38620 | H166: 2381398 | I166: 4.16 | J166: 4.82 | K166: 2007
A167: 325181 | B167: Alkalies and chlorine manufacturing | C167: 8892 | D167: 313578 | E167: 3146326 | F167: 976068 | G167: 587412 | H167: 6370780 | I167: 4.16 | J167: 4.82 | K167: 2007
A168: 325182 | B168: Carbon black manufacturing | C168: 2636 | D168: 75755 | E168: 986965 | F168: 68970 | G168: 38441 | H168: 1487557 | I168: 4.16 | J168: 4.82 | K168: 2007
A169: 325188 | B169: All other basic inorganic chemical manufacturing | C169: 49950 | D169: 1238559 | E169: 9216500 | F169: 682380 | G169: 1142877 | H169: 22828592 | I169: 4.16 | J169: 4.82 | K169: 2007
A170: 325191 | B170: Gum and wood chemical manufacturing | C170: 2730 | D170: 59855 | E170: 621736 | F170: 31505 | G170: 15515 | H170: 1266090 | I170: 4.16 | J170: 4.82 | K170: 2007
A171: 325192 | B171: Cyclic crude and intermediate manufacturing | C171: 4201 | D171: 161719 | E171: 2347442 | F171: 127972 | G171: 155487 | H171: 5947517 | I171: 4.16 | J171: 4.82 | K171: 2007
A172: 325193 | B172: Ethyl alcohol manufacturing | C172: 11465 | D172: 246309 | E172: 9441386 | F172: 986572 | G172: 184046 | H172: 14005115 | I172: 4.16 | J172: 4.82 | K172: 2007
A173: 325199 | B173: All other basic organic chemical manufacturing | C173: 87722 | D173: 2756831 | E173: 60744780 | F173: 3790853 | G173: 1136725 | H173: 81997462 | I173: 4.16 | J173: 4.82 | K173: 2007
A174: 325211 | B174: Plastics material and resin manufacturing | C174: 99003 | D174: 2494572 | E174: 57571170 | F174: 2001857 | G174: 1641794 | H174: 85231585 | I174: 4.16 | J174: 4.82 | K174: 2007
A175: 325212 | B175: Synthetic rubber manufacturing | C175: 13249 | D175: 381018 | E175: 5269147 | F175: 280866 | G175: 120774 | H175: 8253660 | I175: 4.16 | J175: 4.82 | K175: 2007
A176: 325221 | B176: Cellulosic organic fiber manufacturing | C176: 2109 | D176: 45424 | E176: 439303 | F176: 49713 | G176: 15612 | H176: 925820 | I176: 4.16 | J176: 4.82 | K176: 2007
A177: 325222 | B177: Noncellulosic organic fiber manufacturing | C177: 26149 | D177: 470844 | E177: 4706775 | F177: 148897 | G177: 177081 | H177: 6963293 | I177: 4.16 | J177: 4.82 | K177: 2007
A178: 325311 | B178: Nitrogenous fertilizer manufacturing | C178: 5444 | D178: 165212 | E178: 3444858 | F178: 450673 | G178: 191283 | H178: 5524151 | I178: 2.95 | J178: 12.96 | K178: 2007
A179: 325312 | B179: Phosphatic fertilizer manufacturing | C179: 10015 | D179: 288837 | E179: 4638329 | F179: 65366 | G179: 98059 | H179: 6476832 | I179: 2.95 | J179: 12.96 | K179: 2007
A180: 325314 | B180: Fertilizer (mixing only) manufacturing | C180: 10802 | D180: 176331 | E180: 2402856 | F180: 27424 | G180: 28653 | H180: 4152168 | I180: 2.95 | J180: 12.96 | K180: 2007
A181: 325320 | B181: Pesticide and other agricultural chemical manufacturing | C181: 13213 | D181: 271686 | E181: 5089358 | F181: 78762 | G181: 70729 | H181: 13408412 | I181: 2.95 | J181: 12.96 | K181: 2007
A182: 325411 | B182: Medicinal and botanical manufacturing | C182: 24538 | D182: 585949 | E182: 4496971 | F182: 124894 | G182: 117258 | H182: 11104510 | I182: 3.63 | J182: 17.08 | K182: 2007
A183: 325412 | B183: Pharmaceutical preparation manufacturing | C183: 155892 | D183: 3907357 | E183: 31612244 | F183: 317346 | G183: 469008 | H183: 140539685 | I183: 3.63 | J183: 17.08 | K183: 2007
A184: 325413 | B184: In-vitro diagnostic substance manufacturing | C184: 21428 | D184: 560933 | E184: 4215868 | F184: 17671 | G184: 60244 | H184: 13001194 | I184: 3.63 | J184: 17.08 | K184: 2007
A185: 325414 | B185: Biological product (except diagnostic) manufacturing | C185: 38943 | D185: 1030900 | E185: 6750860 | F185: 126267 | G185: 98578 | H185: 23888813 | I185: 3.64 | J185: 11.91 | K185: 2007
A186: 325510 | B186: Paint and coating manufacturing | C186: 47803 | D186: 982431 | E186: 12038826 | F186: 70499 | G186: 109471 | H186: 23574988 | I186: 2.95 | J186: 12.96 | K186: 2007
A187: 325520 | B187: Adhesive manufacturing | C187: 28521 | D187: 548789 | E187: 5291277 | F187: 58018 | G187: 74847 | H187: 9932941 | I187: 2.95 | J187: 12.96 | K187: 2007
A188: 325611 | B188: Soap and other detergent manufacturing | C188: 32160 | D188: 744381 | E188: 9404648 | F188: 66069 | G188: 88578 | H188: 28831646 | I188: 2.95 | J188: 12.96 | K188: 2007
A189: 325612 | B189: Polish and other sanitation good manufacturing | C189: 18907 | D189: 358344 | E189: 4236131 | F189: 24966 | G189: 40683 | H189: 10842991 | I189: 2.95 | J189: 12.96 | K189: 2007
A190: 325613 | B190: Surface active agent manufacturing | C190: 7602 | D190: 213545 | E190: 6594529 | F190: 198617 | G190: 46666 | H190: 8740516 | I190: 2.95 | J190: 12.96 | K190: 2007
A191: 325620 | B191: Toilet preparation manufacturing | C191: 66786 | D191: 1293078 | E191: 25385388 | F191: 73337 | G191: 115167 | H191: 48824244 | I191: 2.95 | J191: 12.96 | K191: 2007
A192: 325910 | B192: Printing ink manufacturing | C192: 14453 | D192: 309006 | E192: 2549125 | F192: 11039 | G192: 25950 | H192: 4990379 | I192: 2.95 | J192: 12.96 | K192: 2007
A193: 325920 | B193: Explosives manufacturing | C193: 8804 | D193: 172850 | E193: 838828 | F193: 16544 | G193: 12318 | H193: 1736670 | I193: 2.95 | J193: 12.96 | K193: 2007
A194: 325991 | B194: Custom compounding of purchased resins | C194: 27431 | D194: 520672 | E194: 5693500 | F194: 45676 | G194: 149418 | H194: 8766816 | I194: 2.95 | J194: 12.96 | K194: 2007
A195: 325992 | B195: Photographic film, paper, plate, and chemical manufacturing | C195: 22098 | D195: 553212 | E195: 5151286 | F195: 105167 | G195: 101874 | H195: 12408673 | I195: 2.95 | J195: 12.96 | K195: 2007
A196: 325998 | B196: Other miscellaneous chemical product mfg. | C196: 44356 | D196: 948976 | E196: 8678677 | F196: 205819 | G196: 129140 | H196: 17128693 | I196: 2.95 | J196: 12.96 | K196: 2007
A197: 326111 | B197: Plastics bag and pouch manufacturing | C197: 54204 | D197: 875554 | E197: 5446315 | F197: 29107 | G197: 175340 | H197: 9632039 | I197: 3.51 | J197: 6.44 | K197: 2007
A198: 326112 | B198: Plastics packaging film and sheet mfg. | C198: 40919 | D198: 796698 | E198: 5133476 | F198: 56333 | G198: 158597 | H198: 9562913 | I198: 3.51 | J198: 6.44 | K198: 2007
A199: 326113 | B199: Nonpackaging plastics film and sheet mfg. | C199: 61676 | D199: 1154933 | E199: 9187536 | F199: 143645 | G199: 340541 | H199: 15446028 | I199: 3.51 | J199: 6.44 | K199: 2007
A200: 326121 | B200: Unlaminated plastics profile shape manufacturing | C200: 30434 | D200: 509995 | E200: 2213750 | F200: 34494 | G200: 77593 | H200: 4998104 | I200: 3.51 | J200: 6.44 | K200: 2007
... 273 more rows

Sheet 2008-2009 Econ Census Data
A1: Data in the SourcingApps data base and is from the Annual Manufacturers Survey (codes 31-33), or Economic Census (published in years ending in 2 or 7) and the Quarterly Financial Report (average of four quarters, for the year selected) published by the U. S. Census Bureau.
A2: NAICS-based code | B2: Meaning of NAICS-based code | C2: Production workers hours (1,000) | D2: Production workers wages ($1,000) | E2: Total cost of materials ($1,000) | F2: Cost of purchased fuels ($1,000) | G2: Purchased electricity ($1,000) | H2: Total value of shipments ($1,000) | I2: Fixed Cost as % of Net Sales Billed | J2: Operating Income | K2: Year
A3: 31-33 | B3: Manufacturing | C3: 14842902 | D3: 293250500 | E3: 2438427302 | F3: 40710422 | G3: 45989621 | H3: 4436196105 | I3: 3.48 | J3: 5.63 | K3: 2009
A4: 31-33 | B4: Manufacturing | C4: 17780810 | D4: 343480037 | E4: 3205798789 | F4: 62816441 | G4: 55017287 | H4: 5468093135 | I4: 2.7 | J4: 5.6 | K4: 2008
A5: 311 | B5: Food mfg | C5: 2207805 | D5: 34990404 | E5: 370067734 | F5: 5358518 | G5: 5332939 | H5: 628566115 | I5: 2.11 | J5: 7.35 | K5: 2009
A6: 311 | B6: Food mfg | C6: 2273594 | D6: 35055752 | E6: 403529147 | F6: 6461581 | G6: 5539811 | H6: 649905572 | I6: 1.86 | J6: 6.4 | K6: 2008
A7: 3111 | B7: Animal food mfg | C7: 63046 | D7: 1243619 | E7: 31687030 | F7: 291427 | G7: 330105 | H7: 49754924 | I7: 2.11 | J7: 7.35 | K7: 2009
A8: 3111 | B8: Animal food mfg | C8: 65848 | D8: 1200943 | E8: 32381601 | F8: 399633 | G8: 390295 | H8: 49590410 | I8: 1.89 | J8: 6.49 | K8: 2008
A9: 31111 | B9: Animal food manufacturing | C9: 63046 | D9: 1243619 | E9: 31687030 | F9: 291427 | G9: 330105 | H9: 49754924 | I9: 2.11 | J9: 7.35 | K9: 2009
A10: 31111 | B10: Animal food manufacturing | C10: 65848 | D10: 1200943 | E10: 32381601 | F10: 399633 | G10: 390295 | H10: 49590410 | I10: 1.89 | J10: 6.49 | K10: 2008
A11: 311111 | B11: Dog and cat food manufacturing | C11: 27709 | D11: 620507 | E11: 9776600 | F11: 103395 | G11: 96934 | H11: 19690966 | I11: 2.11 | J11: 7.35 | K11: 2009
A12: 311111 | B12: Dog and cat food manufacturing | C12: 27568 | D12: 565889 | E12: 8708270 | F12: 119584 | G12: 90696 | H12: 18582010 | I12: 1.89 | J12: 6.49 | K12: 2008
A13: 311119 | B13: Other animal food manufacturing | C13: 35337 | D13: 623112 | E13: 21910430 | F13: 188033 | G13: 233172 | H13: 30063958 | I13: 2.11 | J13: 7.35 | K13: 2009
A14: 311119 | B14: Other animal food manufacturing | C14: 38280 | D14: 635054 | E14: 23673331 | F14: 280049 | G14: 299598 | H14: 31008400 | I14: 1.89 | J14: 6.49 | K14: 2008
A15: 3112 | B15: Grain & oilseed milling | C15: 83029 | D15: 1903611 | E15: 55478860 | F15: 1340926 | G15: 981804 | H15: 86409162 | I15: 2.11 | J15: 7.35 | K15: 2009
A16: 3112 | B16: Grain & oilseed milling | C16: 86315 | D16: 1897491 | E16: 64810157 | F16: 1571541 | G16: 1114445 | H16: 94087138 | I16: 1.89 | J16: 6.49 | K16: 2008
A17: 31121 | B17: Flour milling and malt manufacturing | C17: 24152 | D17: 457669 | E17: 12410367 | F17: 99994 | G17: 300985 | H17: 17207056 | I17: 2.11 | J17: 7.35 | K17: 2009
A18: 31121 | B18: Flour milling and malt manufacturing | C18: 24788 | D18: 455009 | E18: 13583797 | F18: 143016 | G18: 329430 | H18: 17310907 | I18: 1.89 | J18: 6.49 | K18: 2008
A19: 31121M | B19: Flour milling and malt manufacturing | C19: 24152 | D19: 457669 | E19: 12410367 | F19: 99994 | G19: 300985 | H19: 17207056 | I19: 2.11 | J19: 7.35 | K19: 2009
A20: 31121M | B20: Flour milling and malt manufacturing | C20: 24788 | D20: 455009 | E20: 13583797 | F20: 143016 | G20: 329430 | H20: 17310907 | I20: 1.89 | J20: 6.49 | K20: 2008
A21: 31122 | B21: Starch and vegetable fats and oils manufacturing | C21: 36543 | D21: 829851 | E21: 39520361 | F21: 1156923 | G21: 592153 | H21: 57629605 | I21: 2.11 | J21: 7.35 | K21: 2009
A22: 31122 | B22: Starch and vegetable fats and oils manufacturing | C22: 38434 | D22: 836669 | E22: 47900721 | F22: 1337023 | G22: 686432 | H22: 66028023 | I22: 1.89 | J22: 6.49 | K22: 2008
A23: 311221 | B23: Wet corn milling | C23: 11547 | D23: 317262 | E23: 8283238 | F23: 812520 | G23: 333782 | H23: 16045644 | I23: 2.11 | J23: 7.35 | K23: 2009
A24: 311221 | B24: Wet corn milling | C24: 11498 | D24: 314633 | E24: 8071758 | F24: 811152 | G24: 364727 | H24: 15203944 | I24: 1.89 | J24: 6.49 | K24: 2008
A25: 311225 | B25: Fats and oils refining and blending | C25: 13500 | D25: 277030 | E25: 10574338 | F25: 90559 | G25: 68686 | H25: 14017490 | I25: 2.11 | J25: 7.35 | K25: 2009
A26: 311225 | B26: Fats and oils refining and blending | C26: 15010 | D26: 284196 | E26: 14659277 | F26: 142351 | G26: 71477 | H26: 19014875 | I26: 1.89 | J26: 6.49 | K26: 2008
A27: 31122N | B27: Soybean and other oilseed processing | C27: 11496 | D27: 235559 | E27: 20662785 | F27: 253844 | G27: 189685 | H27: 27566471 | I27: 2.11 | J27: 7.35 | K27: 2009
A28: 31122N | B28: Soybean and other oilseed processing | C28: 11926 | D28: 237840 | E28: 25169686 | F28: 383520 | G28: 250228 | H28: 31809204 | I28: 1.89 | J28: 6.49 | K28: 2008
A29: 31123 | B29: Breakfast cereal manufacturing | C29: 22334 | D29: 616091 | E29: 3548133 | F29: 84010 | G29: 88666 | H29: 11572501 | I29: 2.11 | J29: 7.35 | K29: 2009
A30: 31123 | B30: Breakfast cereal manufacturing | C30: 23092 | D30: 605813 | E30: 3325639 | F30: 91503 | G30: 98583 | H30: 10748208 | I30: 1.89 | J30: 6.49 | K30: 2008
A31: 311230 | B31: Breakfast cereal manufacturing | C31: 22334 | D31: 616091 | E31: 3548133 | F31: 84010 | G31: 88666 | H31: 11572501 | I31: 2.11 | J31: 7.35 | K31: 2009
A32: 311230 | B32: Breakfast cereal manufacturing | C32: 23092 | D32: 605813 | E32: 3325639 | F32: 91503 | G32: 98583 | H32: 10748208 | I32: 1.89 | J32: 6.49 | K32: 2008
A33: 3113 | B33: Sugar & confectionery product mfg | C33: 92428 | D33: 1803295 | E33: 13776525 | F33: 373163 | G33: 226707 | H33: 27654266 | I33: 2.11 | J33: 7.35 | K33: 2009
A34: 3113 | B34: Sugar & confectionery product mfg | C34: 94714 | D34: 1823691 | E34: 13602087 | F34: 386321 | G34: 229907 | H34: 26605688 | I34: 1.89 | J34: 6.49 | K34: 2008
A35: 31131 | B35: Sugar manufacturing | C35: 22193 | D35: 442323 | E35: 4663629 | F35: 266595 | G35: 68656 | H35: 7610473 | I35: 2.11 | J35: 7.35 | K35: 2009
A36: 31131 | B36: Sugar manufacturing | C36: 21635 | D36: 429775 | E36: 4742262 | F36: 273855 | G36: 69015 | H36: 7301519 | I36: 1.89 | J36: 6.49 | K36: 2008
A37: 311313 | B37: Beet sugar manufacturing | C37: 11124 | D37: 217129 | E37: 1771043 | F37: 166339 | G37: 38876 | H37: 3197554 | I37: 2.11 | J37: 7.35 | K37: 2009
A38: 311313 | B38: Beet sugar manufacturing | C38: 10709 | D38: 207711 | E38: 1801924 | F38: 173079 | G38: 36597 | H38: 3117733 | I38: 1.89 | J38: 6.49 | K38: 2008
A39: 31131N | B39: Sugar cane mills and refining | C39: 11069 | D39: 225194 | E39: 2892586 | F39: 100256 | G39: 29780 | H39: 4412919 | I39: 2.11 | J39: 7.35 | K39: 2009
A40: 31131N | B40: Sugar cane mills and refining | C40: 10925 | D40: 222064 | E40: 2940338 | F40: 100776 | G40: 32418 | H40: 4183785 | I40: 1.89 | J40: 6.49 | K40: 2008
A41: 31132 | B41: Chocolate and confectionery manufacturing from cacao beans | C41: 10966 | D41: 242603 | E41: 2662242 | F41: 18882 | G41: 31070 | H41: 4125344 | I41: 2.11 | J41: 7.35 | K41: 2009
A42: 31132 | B42: Chocolate and confectionery manufacturing from cacao beans | C42: 10688 | D42: 245838 | E42: 2580794 | F42: 20553 | G42: 33330 | H42: 4031251 | I42: 1.89 | J42: 6.49 | K42: 2008
A43: 311320 | B43: Chocolate and confectionery manufacturing from cacao beans | C43: 10966 | D43: 242603 | E43: 2662242 | F43: 18882 | G43: 31070 | H43: 4125344 | I43: 2.11 | J43: 7.35 | K43: 2009
A44: 311320 | B44: Chocolate and confectionery manufacturing from cacao beans | C44: 10688 | D44: 245838 | E44: 2580794 | F44: 20553 | G44: 33330 | H44: 4031251 | I44: 1.89 | J44: 6.49 | K44: 2008
A45: 31133 | B45: Confectionery manufacturing from purchased chocolate | C45: 34599 | D45: 659098 | E45: 3881660 | F45: 58969 | G45: 77735 | H45: 9616839 | I45: 2.11 | J45: 7.35 | K45: 2009
A46: 31133 | B46: Confectionery manufacturing from purchased chocolate | C46: 36835 | D46: 683012 | E46: 3901256 | F46: 59859 | G46: 81831 | H46: 9159552 | I46: 1.89 | J46: 6.49 | K46: 2008
A47: 311330 | B47: Confectionery manufacturing from purchased chocolate | C47: 34599 | D47: 659098 | E47: 3881660 | F47: 58969 | G47: 77735 | H47: 9616839 | I47: 2.11 | J47: 7.35 | K47: 2009
A48: 311330 | B48: Confectionery manufacturing from purchased chocolate | C48: 36835 | D48: 683012 | E48: 3901256 | F48: 59859 | G48: 81831 | H48: 9159552 | I48: 1.89 | J48: 6.49 | K48: 2008
A49: 31134 | B49: Nonchocolate confectionery manufacturing | C49: 24671 | D49: 459272 | E49: 2568993 | F49: 28718 | G49: 49245 | H49: 6301610 | I49: 2.11 | J49: 7.35 | K49: 2009
A50: 31134 | B50: Nonchocolate confectionery manufacturing | C50: 25556 | D50: 465066 | E50: 2377774 | F50: 32053 | G50: 45731 | H50: 6113366 | I50: 1.89 | J50: 6.49 | K50: 2008
A51: 311340 | B51: Nonchocolate confectionery manufacturing | C51: 24671 | D51: 459272 | E51: 2568993 | F51: 28718 | G51: 49245 | H51: 6301610 | I51: 2.11 | J51: 7.35 | K51: 2009
A52: 311340 | B52: Nonchocolate confectionery manufacturing | C52: 25556 | D52: 465066 | E52: 2377774 | F52: 32053 | G52: 45731 | H52: 6113366 | I52: 1.89 | J52: 6.49 | K52: 2008
A53: 3114 | B53: Fruit & vegetable preserving & specialty food mfg | C53: 278850 | D53: 4610336 | E53: 35818298 | F53: 797442 | G53: 690844 | H53: 64629417 | I53: 2.11 | J53: 7.35 | K53: 2009
A54: 3114 | B54: Fruit & vegetable preserving & specialty food mfg | C54: 281965 | D54: 4480075 | E54: 35360803 | F54: 925241 | G54: 647639 | H54: 63316525 | I54: 1.89 | J54: 6.49 | K54: 2008
A55: 31141 | B55: Frozen food manufacturing | C55: 142868 | D55: 2158258 | E55: 14131547 | F55: 271804 | G55: 361959 | H55: 26436565 | I55: 2.11 | J55: 7.35 | K55: 2009
A56: 31141 | B56: Frozen food manufacturing | C56: 142802 | D56: 2106912 | E56: 13886676 | F56: 316235 | G56: 325742 | H56: 25322553 | I56: 1.89 | J56: 6.49 | K56: 2008
A57: 31141M | B57: Frozen food manufacturing | C57: 142868 | D57: 2158258 | E57: 14131547 | F57: 271804 | G57: 361959 | H57: 26436565 | I57: 2.11 | J57: 7.35 | K57: 2009
A58: 31141M | B58: Frozen food manufacturing | C58: 142802 | D58: 2106912 | E58: 13886676 | F58: 316235 | G58: 325742 | H58: 25322553 | I58: 1.89 | J58: 6.49 | K58: 2008
A59: 31142 | B59: Fruit and vegetable canning, pickling, and drying | C59: 135982 | D59: 2452078 | E59: 21686752 | F59: 525638 | G59: 328885 | H59: 38192852 | I59: 2.11 | J59: 7.35 | K59: 2009
A60: 31142 | B60: Fruit and vegetable canning, pickling, and drying | C60: 139163 | D60: 2373163 | E60: 21474127 | F60: 609007 | G60: 321897 | H60: 37993972 | I60: 1.89 | J60: 6.49 | K60: 2008
A61: 31142M | B61: Fruit and vegetable canning, pickling, and drying | C61: 135982 | D61: 2452078 | E61: 21686752 | F61: 525638 | G61: 328885 | H61: 38192852 | I61: 2.11 | J61: 7.35 | K61: 2009
A62: 31142M | B62: Fruit and vegetable canning, pickling, and drying | C62: 139163 | D62: 2373163 | E62: 21474127 | F62: 609007 | G62: 321897 | H62: 37993972 | I62: 1.89 | J62: 6.49 | K62: 2008
A63: 3115 | B63: Dairy product mfg | C63: 195057 | D63: 4019669 | E63: 56102753 | F63: 544359 | G63: 682003 | H63: 84579569 | I63: 2.11 | J63: 7.35 | K63: 2009
A64: 3115 | B64: Dairy product mfg | C64: 196089 | D64: 3889062 | E64: 70268598 | F64: 730933 | G64: 725830 | H64: 97544321 | I64: 1.89 | J64: 6.49 | K64: 2008
A65: 31151 | B65: Dairy product (except frozen) manufacturing | C65: 165447 | D65: 3413590 | E65: 52648796 | F65: 524566 | G65: 580732 | H65: 76654652 | I65: 2.11 | J65: 7.35 | K65: 2009
A66: 31151 | B66: Dairy product (except frozen) manufacturing | C66: 167627 | D66: 3325248 | E66: 66593911 | F66: 707427 | G66: 630710 | H66: 89720990 | I66: 1.89 | J66: 6.49 | K66: 2008
A67: 311513 | B67: Cheese manufacturing | C67: 70504 | D67: 1362151 | E67: 23813670 | F67: 197525 | G67: 190296 | H67: 30629953 | I67: 2.11 | J67: 7.35 | K67: 2009
A68: 311513 | B68: Cheese manufacturing | C68: 70726 | D68: 1305023 | E68: 31147584 | F68: 284030 | G68: 228710 | H68: 37518806 | I68: 1.89 | J68: 6.49 | K68: 2008
A69: 311514 | B69: Dry, condensed, and evaporated dairy product manufacturing | C69: 21554 | D69: 461098 | E69: 7277525 | F69: 147625 | G69: 108750 | H69: 12660615 | I69: 2.11 | J69: 7.35 | K69: 2009
A70: 311514 | B70: Dry, condensed, and evaporated dairy product manufacturing | C70: 23573 | D70: 501667 | E70: 9168483 | F70: 192716 | G70: 114511 | H70: 15001494 | I70: 1.89 | J70: 6.49 | K70: 2008
A71: 31151N | B71: Fluid milk and butter manufacturing | C71: 73390 | D71: 1590342 | E71: 21557601 | F71: 179416 | G71: 281686 | H71: 33364085 | I71: 2.11 | J71: 7.35 | K71: 2009
A72: 31151N | B72: Fluid milk and butter manufacturing | C72: 73328 | D72: 1518558 | E72: 26277844 | F72: 230681 | G72: 287490 | H72: 37200690 | I72: 1.89 | J72: 6.49 | K72: 2008
A73: 31152 | B73: Ice cream and frozen dessert manufacturing | C73: 29610 | D73: 606078 | E73: 3453957 | F73: 19793 | G73: 101271 | H73: 7924917 | I73: 2.11 | J73: 7.35 | K73: 2009
A74: 31152 | B74: Ice cream and frozen dessert manufacturing | C74: 28463 | D74: 563814 | E74: 3674687 | F74: 23506 | G74: 95120 | H74: 7823331 | I74: 1.89 | J74: 6.49 | K74: 2008
A75: 311520 | B75: Ice cream and frozen dessert manufacturing | C75: 29610 | D75: 606078 | E75: 3453957 | F75: 19793 | G75: 101271 | H75: 7924917 | I75: 2.11 | J75: 7.35 | K75: 2009
A76: 311520 | B76: Ice cream and frozen dessert manufacturing | C76: 28463 | D76: 563814 | E76: 3674687 | F76: 23506 | G76: 95120 | H76: 7823331 | I76: 1.89 | J76: 6.49 | K76: 2008
A77: 3116 | B77: Animal slaughtering & processing | C77: 904994 | D77: 11803707 | E77: 110457071 | F77: 978319 | G77: 1255957 | H77: 164219517 | I77: 2.11 | J77: 7.35 | K77: 2009
A78: 3116 | B78: Animal slaughtering & processing | C78: 932674 | D78: 11944569 | E78: 119727148 | F78: 1257241 | G78: 1253193 | H78: 169905740 | I78: 1.89 | J78: 6.49 | K78: 2008
A79: 31161 | B79: Animal slaughtering and processing | C79: 904994 | D79: 11803707 | E79: 110457071 | F79: 978319 | G79: 1255957 | H79: 164219517 | I79: 2.11 | J79: 7.35 | K79: 2009
A80: 31161 | B80: Animal slaughtering and processing | C80: 932674 | D80: 11944569 | E80: 119727148 | F80: 1257241 | G80: 1253193 | H80: 169905740 | I80: 1.89 | J80: 6.49 | K80: 2008
A81: 311615 | B81: Poultry processing | C81: 425775 | D81: 5002797 | E81: 30173492 | F81: 289662 | G81: 523519 | H81: 52175146 | I81: 2.11 | J81: 7.35 | K81: 2009
A82: 311615 | B82: Poultry processing | C82: 453359 | D82: 5223292 | E82: 32410921 | F82: 356378 | G82: 506360 | H82: 52551442 | I82: 1.89 | J82: 6.49 | K82: 2008
A83: 31161N | B83: Animal (except poultry) slaughtering and processing | C83: 479219 | D83: 6800910 | E83: 80283579 | F83: 688657 | G83: 732437 | H83: 112044372 | I83: 2.11 | J83: 7.35 | K83: 2009
A84: 31161N | B84: Animal (except poultry) slaughtering and processing | C84: 479315 | D84: 6721277 | E84: 87316226 | F84: 900863 | G84: 746833 | H84: 117354298 | I84: 1.89 | J84: 6.49 | K84: 2008
A85: 3117 | B85: Seafood product preparation & packaging | C85: 54383 | D85: 712026 | E85: 6108437 | F85: 155810 | G85: 85012 | H85: 10538817 | I85: 2.11 | J85: 7.35 | K85: 2009
A86: 3117 | B86: Seafood product preparation & packaging | C86: 58627 | D86: 798736 | E86: 6023898 | F86: 201138 | G86: 84017 | H86: 10046567 | I86: 1.89 | J86: 6.49 | K86: 2008
A87: 31171 | B87: Seafood product preparation and packaging | C87: 54383 | D87: 712026 | E87: 6108437 | F87: 155810 | G87: 85012 | H87: 10538817 | I87: 2.11 | J87: 7.35 | K87: 2009
A88: 31171 | B88: Seafood product preparation and packaging | C88: 58627 | D88: 798736 | E88: 6023898 | F88: 201138 | G88: 84017 | H88: 10046567 | I88: 1.89 | J88: 6.49 | K88: 2008
A89: 31171M | B89: Seafood product preparation and packaging | C89: 54383 | D89: 712026 | E89: 6108437 | F89: 155810 | G89: 85012 | H89: 10538817 | I89: 2.11 | J89: 7.35 | K89: 2009
A90: 31171M | B90: Seafood product preparation and packaging | C90: 58627 | D90: 798736 | E90: 6023898 | F90: 201138 | G90: 84017 | H90: 10046567 | I90: 1.89 | J90: 6.49 | K90: 2008
A91: 3118 | B91: Bakeries & tortilla mfg | C91: 323956 | D91: 5320862 | E91: 24193487 | F91: 401642 | G91: 583487 | H91: 59448681 | I91: 2.11 | J91: 7.35 | K91: 2009
A92: 3118 | B92: Bakeries & tortilla mfg | C92: 333557 | D92: 5374461 | E92: 24515962 | F92: 453329 | G92: 584591 | H92: 58752854 | I92: 1.89 | J92: 6.49 | K92: 2008
A93: 31181 | B93: Bread and bakery product manufacturing | C93: 225702 | D93: 3589517 | E93: 13820362 | F93: 262887 | G93: 382424 | H93: 35606371 | I93: 2.11 | J93: 7.35 | K93: 2009
A94: 31181 | B94: Bread and bakery product manufacturing | C94: 232458 | D94: 3672982 | E94: 14198725 | F94: 291156 | G94: 390071 | H94: 35791359 | I94: 1.89 | J94: 6.49 | K94: 2008
A95: 31181M | B95: Bread and bakery product manufacturing | C95: 225702 | D95: 3589517 | E95: 13820362 | F95: 262887 | G95: 382424 | H95: 35606371 | I95: 2.11 | J95: 7.35 | K95: 2009
A96: 31181M | B96: Bread and bakery product manufacturing | C96: 232458 | D96: 3672982 | E96: 14198725 | F96: 291156 | G96: 390071 | H96: 35791359 | I96: 1.89 | J96: 6.49 | K96: 2008
A97: 31182 | B97: Cookie, cracker, and pasta manufacturing | C97: 76821 | D97: 1440883 | E97: 9041828 | F97: 106603 | G97: 165235 | H97: 20684887 | I97: 2.11 | J97: 7.35 | K97: 2009
A98: 31182 | B98: Cookie, cracker, and pasta manufacturing | C98: 79715 | D98: 1397832 | E98: 8990006 | F98: 125181 | G98: 160623 | H98: 19966746 | I98: 1.89 | J98: 6.49 | K98: 2008
A99: 31182M | B99: Cookie, cracker, and pasta manufacturing | C99: 76821 | D99: 1440883 | E99: 9041828 | F99: 106603 | G99: 165235 | H99: 20684887 | I99: 2.11 | J99: 7.35 | K99: 2009
A100: 31182M | B100: Cookie, cracker, and pasta manufacturing | C100: 79715 | D100: 1397832 | E100: 8990006 | F100: 125181 | G100: 160623 | H100: 19966746 | I100: 1.89 | J100: 6.49 | K100: 2008
A101: 31183 | B101: Tortilla manufacturing | C101: 21433 | D101: 290463 | E101: 1331297 | F101: 32153 | G101: 35828 | H101: 3157424 | I101: 2.11 | J101: 7.35 | K101: 2009
A102: 31183 | B102: Tortilla manufacturing | C102: 21384 | D102: 303647 | E102: 1327231 | F102: 36992 | G102: 33897 | H102: 2994749 | I102: 1.89 | J102: 6.49 | K102: 2008
A103: 311830 | B103: Tortilla manufacturing | C103: 21433 | D103: 290463 | E103: 1331297 | F103: 32153 | G103: 35828 | H103: 3157424 | I103: 2.11 | J103: 7.35 | K103: 2009
A104: 311830 | B104: Tortilla manufacturing | C104: 21384 | D104: 303647 | E104: 1327231 | F104: 36992 | G104: 33897 | H104: 2994749 | I104: 1.89 | J104: 6.49 | K104: 2008
A105: 3119 | B105: Other food mfg | C105: 212061 | D105: 3573278 | E105: 36445272 | F105: 475429 | G105: 497020 | H105: 81331762 | I105: 2.11 | J105: 7.35 | K105: 2009
A106: 3119 | B106: Other food mfg | C106: 223805 | D106: 3646723 | E106: 36838894 | F106: 536204 | G106: 509895 | H106: 80056329 | I106: 1.89 | J106: 6.49 | K106: 2008
A107: 31191 | B107: Snack food manufacturing | C107: 54060 | D107: 936833 | E107: 10263301 | F107: 222310 | G107: 127018 | H107: 26438310 | I107: 2.11 | J107: 7.35 | K107: 2009
A108: 31191 | B108: Snack food manufacturing | C108: 55116 | D108: 930246 | E108: 9976530 | F108: 223058 | G108: 122626 | H108: 26038240 | I108: 1.89 | J108: 6.49 | K108: 2008
A109: 31191M | B109: Snack food manufacturing | C109: 54060 | D109: 936833 | E109: 10263301 | F109: 222310 | G109: 127018 | H109: 26438310 | I109: 2.11 | J109: 7.35 | K109: 2009
A110: 31191M | B110: Snack food manufacturing | C110: 55116 | D110: 930246 | E110: 9976530 | F110: 223058 | G110: 122626 | H110: 26038240 | I110: 1.89 | J110: 6.49 | K110: 2008
A111: 31192 | B111: Coffee and tea manufacturing | C111: 17023 | D111: 320402 | E111: 4695600 | F111: 53978 | G111: 53315 | H111: 8525523 | I111: 2.11 | J111: 7.35 | K111: 2009
A112: 31192 | B112: Coffee and tea manufacturing | C112: 17631 | D112: 331868 | E112: 4827568 | F112: 57488 | G112: 53809 | H112: 8739627 | I112: 1.89 | J112: 6.49 | K112: 2008
A113: 311920 | B113: Coffee and tea manufacturing | C113: 17023 | D113: 320402 | E113: 4695600 | F113: 53978 | G113: 53315 | H113: 8525523 | I113: 2.11 | J113: 7.35 | K113: 2009
A114: 311920 | B114: Coffee and tea manufacturing | C114: 17631 | D114: 331868 | E114: 4827568 | F114: 57488 | G114: 53809 | H114: 8739627 | I114: 1.89 | J114: 6.49 | K114: 2008
A115: 31193 | B115: Flavoring syrup and concentrate manufacturing | C115: 8057 | D115: 156479 | E115: 2062877 | F115: 14745 | G115: 22330 | H115: 9140483 | I115: 2.11 | J115: 7.35 | K115: 2009
A116: 31193 | B116: Flavoring syrup and concentrate manufacturing | C116: 8090 | D116: 162105 | E116: 2058806 | F116: 22349 | G116: 23608 | H116: 9170798 | I116: 1.89 | J116: 6.49 | K116: 2008
A117: 311930 | B117: Flavoring syrup and concentrate manufacturing | C117: 8057 | D117: 156479 | E117: 2062877 | F117: 14745 | G117: 22330 | H117: 9140483 | I117: 2.11 | J117: 7.35 | K117: 2009
A118: 311930 | B118: Flavoring syrup and concentrate manufacturing | C118: 8090 | D118: 162105 | E118: 2058806 | F118: 22349 | G118: 23608 | H118: 9170798 | I118: 1.89 | J118: 6.49 | K118: 2008
A119: 31194 | B119: Seasoning and dressing manufacturing | C119: 42132 | D119: 800365 | E119: 8468152 | F119: 49402 | G119: 95469 | H119: 16394756 | I119: 2.11 | J119: 7.35 | K119: 2009
A120: 31194 | B120: Seasoning and dressing manufacturing | C120: 44822 | D120: 796897 | E120: 8516281 | F120: 58167 | G120: 102860 | H120: 15400713 | I120: 1.89 | J120: 6.49 | K120: 2008
A121: 31194M | B121: Seasoning and dressing manufacturing | C121: 42132 | D121: 800365 | E121: 8468152 | F121: 49402 | G121: 95469 | H121: 16394756 | I121: 2.11 | J121: 7.35 | K121: 2009
A122: 31194M | B122: Seasoning and dressing manufacturing | C122: 44822 | D122: 796897 | E122: 8516281 | F122: 58167 | G122: 102860 | H122: 15400713 | I122: 1.89 | J122: 6.49 | K122: 2008
A123: 31199 | B123: All other food manufacturing | C123: 90788 | D123: 1359201 | E123: 10955343 | F123: 134994 | G123: 198888 | H123: 20832689 | I123: 2.11 | J123: 7.35 | K123: 2009
A124: 31199 | B124: All other food manufacturing | C124: 98146 | D124: 1425608 | E124: 11459709 | F124: 175143 | G124: 206991 | H124: 20706950 | I124: 1.89 | J124: 6.49 | K124: 2008
A125: 31199M | B125: All other food manufacturing | C125: 90788 | D125: 1359201 | E125: 10955343 | F125: 134994 | G125: 198888 | H125: 20832689 | I125: 2.11 | J125: 7.35 | K125: 2009
A126: 31199M | B126: All other food manufacturing | C126: 98146 | D126: 1425608 | E126: 11459709 | F126: 175143 | G126: 206991 | H126: 20706950 | I126: 1.89 | J126: 6.49 | K126: 2008
A127: 312 | B127: Beverage & tobacco product mfg | C127: 163288 | D127: 3702303 | E127: 49454384 | F127: 466848 | G127: 742469 | H127: 119882070 | I127: 3.22 | J127: 20.35 | K127: 2009
A128: 312 | B128: Beverage & tobacco product mfg | C128: 172131 | D128: 3771610 | E128: 49492987 | F128: 575693 | G128: 763141 | H128: 125099482 | I128: 2.81 | J128: 18.76 | K128: 2008
A129: 3121 | B129: Beverage mfg | C129: 142861 | D129: 3141976 | E129: 44093593 | F129: 422663 | G129: 676549 | H129: 88580714 | I129: 3.22 | J129: 20.35 | K129: 2009
A130: 3121 | B130: Beverage mfg | C130: 146341 | D130: 3100708 | E130: 43563785 | F130: 508054 | G130: 694803 | H130: 87712053 | I130: 2.81 | J130: 18.76 | K130: 2008
A131: 31211 | B131: Soft drink and ice manufacturing | C131: 74957 | D131: 1541158 | E131: 27744577 | F131: 175353 | G131: 386891 | H131: 45406950 | I131: 3.22 | J131: 20.35 | K131: 2009
A132: 31211 | B132: Soft drink and ice manufacturing | C132: 79066 | D132: 1542615 | E132: 27741797 | F132: 211314 | G132: 409537 | H132: 47299635 | I132: 2.81 | J132: 18.76 | K132: 2008
A133: 31211M | B133: Soft drink and ice manufacturing | C133: 74957 | D133: 1541158 | E133: 27744577 | F133: 175353 | G133: 386891 | H133: 45406950 | I133: 3.22 | J133: 20.35 | K133: 2009
A134: 31211M | B134: Soft drink and ice manufacturing | C134: 79066 | D134: 1542615 | E134: 27741797 | F134: 211314 | G134: 409537 | H134: 47299635 | I134: 2.81 | J134: 18.76 | K134: 2008
A135: 31212 | B135: Breweries | C135: 30838 | D135: 785782 | E135: 7822853 | F135: 186238 | G135: 177405 | H135: 20713519 | I135: 3.22 | J135: 20.35 | K135: 2009
A136: 31212 | B136: Breweries | C136: 30423 | D136: 795528 | E136: 7666918 | F136: 225978 | G136: 180501 | H136: 19615995 | I136: 2.81 | J136: 18.76 | K136: 2008
A137: 312120 | B137: Breweries | C137: 30838 | D137: 785782 | E137: 7822853 | F137: 186238 | G137: 177405 | H137: 20713519 | I137: 3.22 | J137: 20.35 | K137: 2009
A138: 312120 | B138: Breweries | C138: 30423 | D138: 795528 | E138: 7666918 | F138: 225978 | G138: 180501 | H138: 19615995 | I138: 2.81 | J138: 18.76 | K138: 2008
A139: 31213 | B139: Wineries | C139: 28132 | D139: 597819 | E139: 6164944 | F139: 30080 | G139: 90131 | H139: 14836440 | I139: 3.22 | J139: 20.35 | K139: 2009
A140: 31213 | B140: Wineries | C140: 27192 | D140: 558930 | E140: 5923680 | F140: 38208 | G140: 88047 | H140: 13374424 | I140: 2.81 | J140: 18.76 | K140: 2008
A141: 312130 | B141: Wineries | C141: 28132 | D141: 597819 | E141: 6164944 | F141: 30080 | G141: 90131 | H141: 14836440 | I141: 3.22 | J141: 20.35 | K141: 2009
A142: 312130 | B142: Wineries | C142: 27192 | D142: 558930 | E142: 5923680 | F142: 38208 | G142: 88047 | H142: 13374424 | I142: 2.81 | J142: 18.76 | K142: 2008
A143: 31214 | B143: Distilleries | C143: 8933 | D143: 217217 | E143: 2361219 | F143: 30992 | G143: 22121 | H143: 7623805 | I143: 3.22 | J143: 20.35 | K143: 2009
A144: 31214 | B144: Distilleries | C144: 9659 | D144: 203635 | E144: 2231390 | F144: 32554 | G144: 16719 | H144: 7421999 | I144: 2.81 | J144: 18.76 | K144: 2008
A145: 312140 | B145: Distilleries | C145: 8933 | D145: 217217 | E145: 2361219 | F145: 30992 | G145: 22121 | H145: 7623805 | I145: 3.22 | J145: 20.35 | K145: 2009
A146: 312140 | B146: Distilleries | C146: 9659 | D146: 203635 | E146: 2231390 | F146: 32554 | G146: 16719 | H146: 7421999 | I146: 2.81 | J146: 18.76 | K146: 2008
A147: 3122 | B147: Tobacco mfg | C147: 20427 | D147: 560327 | E147: 5360791 | F147: 44185 | G147: 65920 | H147: 31301356 | I147: 3.22 | J147: 20.35 | K147: 2009
A148: 3122 | B148: Tobacco mfg | C148: 25790 | D148: 670902 | E148: 5929202 | F148: 67639 | G148: 68338 | H148: 37387429 | I148: 2.81 | J148: 18.76 | K148: 2008
A149: 31221 | B149: Tobacco stemming and redrying | C149: 2787 | D149: 37497 | E149: 623449 | F149: D | G149: 5232 | H149: 1185915 | I149: 3.22 | J149: 20.35 | K149: 2009
A150: 31221 | B150: Tobacco stemming and redrying | C150: 3684 | D150: 42624 | E150: 636827 | F150: D | G150: 5065 | H150: 1166645 | I150: 2.81 | J150: 18.76 | K150: 2008
A151: 312210 | B151: Tobacco stemming and redrying | C151: 2787 | D151: 37497 | E151: 623449 | F151: D | G151: 5232 | H151: 1185915 | I151: 3.22 | J151: 20.35 | K151: 2009
A152: 312210 | B152: Tobacco stemming and redrying | C152: 3684 | D152: 42624 | E152: 636827 | F152: D | G152: 5065 | H152: 1166645 | I152: 2.81 | J152: 18.76 | K152: 2008
A153: 31222 | B153: Tobacco product manufacturing | C153: 17640 | D153: 522830 | E153: 4737342 | F153: D | G153: 60688 | H153: 30115441 | I153: 3.22 | J153: 20.35 | K153: 2009
A154: 31222 | B154: Tobacco product manufacturing | C154: 22106 | D154: 628278 | E154: 5292375 | F154: D | G154: 63273 | H154: 36220784 | I154: 2.81 | J154: 18.76 | K154: 2008
A155: 31222M | B155: Tobacco product manufacturing | C155: 17640 | D155: 522830 | E155: 4737342 | F155: D | G155: 60688 | H155: 30115441 | I155: 3.22 | J155: 20.35 | K155: 2009
A156: 31222M | B156: Tobacco product manufacturing | C156: 22106 | D156: 628278 | E156: 5292375 | F156: D | G156: 63273 | H156: 36220784 | I156: 2.81 | J156: 18.76 | K156: 2008
A157: 313 | B157: Textile mills | C157: 171499 | D157: 2728512 | E157: 14502709 | F157: 328309 | G157: 694524 | H157: 26461252 | I157: 3.87 | J157: 1.34 | K157: 2009
A158: 313 | B158: Textile mills | C158: 224050 | D158: 3357092 | E158: 19365788 | F158: 465834 | G158: 844148 | H158: 32052395 | I158: 3.59 | J158: 1.56 | K158: 2008
A159: 3131 | B159: Fiber, yarn, & thread mills | C159: 47190 | D159: 653432 | E159: 4031057 | F159: 50529 | G159: 272434 | H159: 6375688 | I159: 3.87 | J159: 1.34 | K159: 2009
A160: 3131 | B160: Fiber, yarn, & thread mills | C160: 62675 | D160: 821435 | E160: 5838386 | F160: 65184 | G160: 331096 | H160: 8572523 | I160: 3.59 | J160: 1.56 | K160: 2008
A161: 31311 | B161: Fiber, yarn, and thread mills | C161: 47190 | D161: 653432 | E161: 4031057 | F161: 50529 | G161: 272434 | H161: 6375688 | I161: 3.87 | J161: 1.34 | K161: 2009
A162: 31311 | B162: Fiber, yarn, and thread mills | C162: 62675 | D162: 821435 | E162: 5838386 | F162: 65184 | G162: 331096 | H162: 8572523 | I162: 3.59 | J162: 1.56 | K162: 2008
A163: 31311M | B163: Fiber, yarn, and thread mills | C163: 47190 | D163: 653432 | E163: 4031057 | F163: 50529 | G163: 272434 | H163: 6375688 | I163: 3.87 | J163: 1.34 | K163: 2009
A164: 31311M | B164: Fiber, yarn, and thread mills | C164: 62675 | D164: 821435 | E164: 5838386 | F164: 65184 | G164: 331096 | H164: 8572523 | I164: 3.59 | J164: 1.56 | K164: 2008
A165: 3132 | B165: Fabric mills | C165: 81532 | D165: 1437888 | E165: 6718316 | F165: 126654 | G165: 311225 | H165: 13831234 | I165: 3.87 | J165: 1.34 | K165: 2009
A166: 3132 | B166: Fabric mills | C166: 102033 | D166: 1686311 | E166: 8772776 | F166: 174998 | G166: 377809 | H166: 15970473 | I166: 3.59 | J166: 1.56 | K166: 2008
A167: 31321 | B167: Broadwoven fabric mills | C167: 33763 | D167: 479064 | E167: 2663688 | F167: 35487 | G167: 120715 | H167: 4352113 | I167: 3.87 | J167: 1.34 | K167: 2009
A168: 31321 | B168: Broadwoven fabric mills | C168: 45057 | D168: 623715 | E168: 3516381 | F168: 53230 | G168: 148511 | H168: 5702885 | I168: 3.59 | J168: 1.56 | K168: 2008
A169: 313210 | B169: Broadwoven fabric mills | C169: 33763 | D169: 479064 | E169: 2663688 | F169: 35487 | G169: 120715 | H169: 4352113 | I169: 3.87 | J169: 1.34 | K169: 2009
A170: 313210 | B170: Broadwoven fabric mills | C170: 45057 | D170: 623715 | E170: 3516381 | F170: 53230 | G170: 148511 | H170: 5702885 | I170: 3.59 | J170: 1.56 | K170: 2008
A171: 31322 | B171: Narrow fabric mills and schiffli machine embroidery | C171: 9723 | D171: 135430 | E171: 386850 | F171: 9957 | G171: 15651 | H171: 932967 | I171: 3.87 | J171: 1.34 | K171: 2009
A172: 31322 | B172: Narrow fabric mills and schiffli machine embroidery | C172: 13123 | D172: 174529 | E172: 485565 | F172: 12471 | G172: 19236 | H172: 1107406 | I172: 3.59 | J172: 1.56 | K172: 2008
A173: 31322M | B173: Narrow fabric mills and schiffli machine embroidery | C173: 9723 | D173: 135430 | E173: 386850 | F173: 9957 | G173: 15651 | H173: 932967 | I173: 3.87 | J173: 1.34 | K173: 2009
A174: 31322M | B174: Narrow fabric mills and schiffli machine embroidery | C174: 13123 | D174: 174529 | E174: 485565 | F174: 12471 | G174: 19236 | H174: 1107406 | I174: 3.59 | J174: 1.56 | K174: 2008
A175: 31323 | B175: Nonwoven fabric mills | C175: 26615 | D175: 664898 | E175: 2980235 | F175: 61721 | G175: 149328 | H175: 7399019 | I175: 3.87 | J175: 1.34 | K175: 2009
A176: 31323 | B176: Nonwoven fabric mills | C176: 28966 | D176: 680515 | E176: 3707092 | F176: 89262 | G176: 173346 | H176: 7450189 | I176: 3.59 | J176: 1.56 | K176: 2008
A177: 313230 | B177: Nonwoven fabric mills | C177: 26615 | D177: 664898 | E177: 2980235 | F177: 61721 | G177: 149328 | H177: 7399019 | I177: 3.87 | J177: 1.34 | K177: 2009
A178: 313230 | B178: Nonwoven fabric mills | C178: 28966 | D178: 680515 | E178: 3707092 | F178: 89262 | G178: 173346 | H178: 7450189 | I178: 3.59 | J178: 1.56 | K178: 2008
A179: 31324 | B179: Knit fabric mills | C179: 11431 | D179: 158497 | E179: 687544 | F179: 19489 | G179: 25530 | H179: 1147136 | I179: 3.87 | J179: 1.34 | K179: 2009
A180: 31324 | B180: Knit fabric mills | C180: 14886 | D180: 207552 | E180: 1063738 | F180: (s)20,035 | G180: 36717 | H180: 1709993 | I180: 3.59 | J180: 1.56 | K180: 2008
A181: 31324M | B181: Knit fabric mills | C181: 11431 | D181: 158497 | E181: 687544 | F181: 19489 | G181: 25530 | H181: 1147136 | I181: 3.87 | J181: 1.34 | K181: 2009
A182: 31324M | B182: Knit fabric mills | C182: 14886 | D182: 207552 | E182: 1063738 | F182: (s)20,035 | G182: 36717 | H182: 1709993 | I182: 3.59 | J182: 1.56 | K182: 2008
A183: 3133 | B183: Textile & fabric finishing & fabric coating mills | C183: 42777 | D183: 637192 | E183: 3753337 | F183: 151126 | G183: 110865 | H183: 6254330 | I183: 3.87 | J183: 1.34 | K183: 2009
A184: 3133 | B184: Textile & fabric finishing & fabric coating mills | C184: 59342 | D184: 849346 | E184: 4754626 | F184: 225652 | G184: 135244 | H184: 7509399 | I184: 3.59 | J184: 1.56 | K184: 2008
A185: 31331 | B185: Textile and fabric finishing mills | C185: 33486 | D185: 462212 | E185: 2406177 | F185: 129097 | G185: 88630 | H185: 4260899 | I185: 3.87 | J185: 1.34 | K185: 2009
A186: 31331 | B186: Textile and fabric finishing mills | C186: 47169 | D186: 623164 | E186: 3167250 | F186: 192474 | G186: 106897 | H186: 5136989 | I186: 3.59 | J186: 1.56 | K186: 2008
A187: 31331M | B187: Textile and fabric finishing mills | C187: 33486 | D187: 462212 | E187: 2406177 | F187: 129097 | G187: 88630 | H187: 4260899 | I187: 3.87 | J187: 1.34 | K187: 2009
A188: 31331M | B188: Textile and fabric finishing mills | C188: 47169 | D188: 623164 | E188: 3167250 | F188: 192474 | G188: 106897 | H188: 5136989 | I188: 3.59 | J188: 1.56 | K188: 2008
A189: 31332 | B189: Fabric coating mills | C189: 9291 | D189: 174979 | E189: 1347159 | F189: 22028 | G189: 22235 | H189: 1993430 | I189: 3.87 | J189: 1.34 | K189: 2009
A190: 31332 | B190: Fabric coating mills | C190: 12174 | D190: 226182 | E190: 1587377 | F190: 33177 | G190: 28346 | H190: 2372410 | I190: 3.59 | J190: 1.56 | K190: 2008
A191: 313320 | B191: Fabric coating mills | C191: 9291 | D191: 174979 | E191: 1347159 | F191: 22028 | G191: 22235 | H191: 1993430 | I191: 3.87 | J191: 1.34 | K191: 2009
A192: 313320 | B192: Fabric coating mills | C192: 12174 | D192: 226182 | E192: 1587377 | F192: 33177 | G192: 28346 | H192: 2372410 | I192: 3.59 | J192: 1.56 | K192: 2008
A193: 314 | B193: Textile product mills | C193: 165254 | D193: 2137138 | E193: 11717831 | F193: 239771 | G193: 240232 | H193: 21260932 | I193: 3.87 | J193: 1.34 | K193: 2009
A194: 314 | B194: Textile product mills | C194: 203278 | D194: 2574779 | E194: 14704216 | F194: 352192 | G194: 266049 | H194: 26836336 | I194: 3.59 | J194: 1.56 | K194: 2008
A195: 3141 | B195: Textile furnishings mills | C195: 89003 | D195: 1079696 | E195: 7128765 | F195: 203000 | G195: 138985 | H195: 12613585 | I195: 3.87 | J195: 1.34 | K195: 2009
A196: 3141 | B196: Textile furnishings mills | C196: 109276 | D196: 1307758 | E196: 9407607 | F196: 301059 | G196: 150175 | H196: 16536585 | I196: 3.59 | J196: 1.56 | K196: 2008
A197: 31411 | B197: Carpet and rug mills | C197: 52016 | D197: 665746 | E197: 5035019 | F197: 193069 | G197: 114740 | H197: 8875494 | I197: 3.87 | J197: 1.34 | K197: 2009
A198: 31411 | B198: Carpet and rug mills | C198: 65044 | D198: 817703 | E198: 6818954 | F198: 283368 | G198: 122142 | H198: 11922612 | I198: 3.59 | J198: 1.56 | K198: 2008
A199: 314110 | B199: Carpet and rug mills | C199: 52016 | D199: 665746 | E199: 5035019 | F199: 193069 | G199: 114740 | H199: 8875494 | I199: 3.87 | J199: 1.34 | K199: 2009
A200: 314110 | B200: Carpet and rug mills | C200: 65044 | D200: 817703 | E200: 6818954 | F200: 283368 | G200: 122142 | H200: 11922612 | I200: 3.59 | J200: 1.56 | K200: 2008
... 1028 more rows

Sheet 2009-2010 Econ Census Data
A1: Data in the SourcingApps data base and is from the Annual Manufacturers Survey (codes 31-33), or Economic Census (published in years ending in 2 or 7) and the Quarterly Financial Report (average of four quarters, for the year selected) published by the U. S. Census Bureau.
A2: 2007 NAICS codes and NAICS-based rollup code code | B2: Meaning of 2007 NAICS codes and NAICS-based rollup code code | C2: Production workers hours (1,000) | D2: Production workers wages ($1,000) | E2: Total cost of materials ($1,000) | F2: Cost of purchased fuels ($1,000) | G2: Purchased electricity ($1,000) | H2: Total value of shipments ($1,000) | I2: Depreciation | J2: Operating Income | K2: Year code
A3: 31-33 | B3: Manufacturing | C3: 14590567 | D3: 299823278 | E3: 2763128338 | F3: 42462107 | G3: 49359937 | H3: 4916646802 | I3: 2.97 | J3: 7.41 | K3: 2010 | L3: 1
A4: 31-33 | B4: Manufacturing | C4: 14726556 | D4: 291638412 | E4: 2426171049 | F4: 40629285 | G4: 45788006 | H4: 4419501476 | I4: 3.39 | J4: 5.51 | K4: 2009
A5: 311 | B5: Food mfg | C5: 2170326 | D5: 35693372 | E5: 382611979 | F5: 5122654 | G5: 5793350 | H5: 646451483 | I5: 1.55 | J5: 8.61 | K5: 2010
A6: 311 | B6: Food mfg | C6: 2195461 | D6: 34876122 | E6: 368989622 | F6: 5404160 | G6: 5431137 | H6: 627185348 | I6: 2.11 | J6: 5.29 | K6: 2009
A7: 3111 | B7: Animal food mfg | C7: 62175 | D7: 1277531 | E7: 29429718 | F7: 261124 | G7: 318517 | H7: 46883746 | I7: 1.55 | J7: 8.61 | K7: 2010
A8: 3111 | B8: Animal food mfg | C8: 62719 | D8: 1236900 | E8: 31496669 | F8: 288077 | G8: 327309 | H8: 49998520 | I8: 2.11 | J8: 5.29 | K8: 2009
A9: 31111 | B9: Animal food manufacturing | C9: 62175 | D9: 1277531 | E9: 29429718 | F9: 261124 | G9: 318517 | H9: 46883746 | I9: 1.55 | J9: 8.61 | K9: 2010
A10: 31111 | B10: Animal food manufacturing | C10: 62719 | D10: 1236900 | E10: 31496669 | F10: 288077 | G10: 327309 | H10: 49998520 | I10: 2.11 | J10: 5.29 | K10: 2009
A11: 311111 | B11: Dog and cat food manufacturing | C11: 27359 | D11: 646185 | E11: 10463472 | F11: 100074 | G11: 104158 | H11: 19373702 | I11: 1.55 | J11: 8.61 | K11: 2010
A12: 311111 | B12: Dog and cat food manufacturing | C12: 27702 | D12: 620334 | E12: 9773519 | F12: 102664 | G12: 96632 | H12: 19691048 | I12: 2.11 | J12: 5.29 | K12: 2009
A13: 311119 | B13: Other animal food manufacturing | C13: 34816 | D13: 631345 | E13: 18966246 | F13: 161050 | G13: 214359 | H13: 27510044 | I13: 1.55 | J13: 8.61 | K13: 2010
A14: 311119 | B14: Other animal food manufacturing | C14: 35018 | D14: 616566 | E14: 21723149 | F14: 185414 | G14: 230677 | H14: 30307472 | I14: 2.11 | J14: 5.29 | K14: 2009
A15: 3112 | B15: Grain & oilseed milling | C15: 80716 | D15: 1922237 | E15: 54773569 | F15: 1206810 | G15: 1022588 | H15: 82999485 | I15: 1.55 | J15: 8.61 | K15: 2010
A16: 3112 | B16: Grain & oilseed milling | C16: 82126 | D16: 1893443 | E16: 55596769 | F16: 1341181 | G16: 1003728 | H16: 86243714 | I16: 2.11 | J16: 5.29 | K16: 2009
A17: 31121 | B17: Flour milling and malt manufacturing | C17: 24595 | D17: 491790 | E17: 11829202 | F17: 101364 | G17: 300869 | H17: 16641625 | I17: 1.55 | J17: 8.61 | K17: 2010
A18: 31121 | B18: Flour milling and malt manufacturing | C18: 24148 | D18: 457434 | E18: 12512672 | F18: 99994 | G18: 300985 | H18: 17228374 | I18: 2.11 | J18: 5.29 | K18: 2009
A19: 31121M | B19: Flour milling and malt manufacturing | C19: 24595 | D19: 491790 | E19: 11829202 | F19: 101364 | G19: 300869 | H19: 16641625 | I19: 1.55 | J19: 8.61 | K19: 2010
A20: 31121M | B20: Flour milling and malt manufacturing | C20: 24148 | D20: 457434 | E20: 12512672 | F20: 99994 | G20: 300985 | H20: 17228374 | I20: 2.11 | J20: 5.29 | K20: 2009
A21: 31122 | B21: Starch and vegetable fats and oils manufacturing | C21: 34848 | D21: 798862 | E21: 39771446 | F21: 1029759 | G21: 631504 | H21: 55706754 | I21: 1.55 | J21: 8.61 | K21: 2010
A22: 31122 | B22: Starch and vegetable fats and oils manufacturing | C22: 36617 | D22: 827459 | E22: 39706048 | F22: 1159316 | G22: 615288 | H22: 57847222 | I22: 2.11 | J22: 5.29 | K22: 2009
A23: 311221 | B23: Wet corn milling | C23: 9946 | D23: 294618 | E23: 8054690 | F23: 717322 | G23: 376146 | H23: 15110024 | I23: 1.55 | J23: 8.61 | K23: 2010
A24: 311221 | B24: Wet corn milling | C24: 11629 | D24: 318890 | E24: 8335548 | F24: 816124 | G24: 365917 | H24: 16112286 | I24: 2.11 | J24: 5.29 | K24: 2009
A25: 311225 | B25: Fats and oils refining and blending | C25: 13650 | D25: 271968 | E25: 10750823 | F25: 73409 | G25: 59703 | H25: 13534328 | I25: 1.55 | J25: 8.61 | K25: 2010
A26: 311225 | B26: Fats and oils refining and blending | C26: 13531 | D26: 273823 | E26: 10756008 | F26: 90559 | G26: 63047 | H26: 14228761 | I26: 2.11 | J26: 5.29 | K26: 2009
A27: 31122N | B27: Soybean and other oilseed processing | C27: 11252 | D27: 232276 | E27: 20965932 | F27: 239027 | G27: 195655 | H27: 27062402 | I27: 1.55 | J27: 8.61 | K27: 2010
A28: 31122N | B28: Soybean and other oilseed processing | C28: 11457 | D28: 234746 | E28: 20614492 | F28: 252633 | G28: 186324 | H28: 27506175 | I28: 2.11 | J28: 5.29 | K28: 2009
A29: 31123 | B29: Breakfast cereal manufacturing | C29: 21273 | D29: 631585 | E29: 3172920 | F29: 75688 | G29: 90216 | H29: 10651105 | I29: 1.55 | J29: 8.61 | K29: 2010
A30: 31123 | B30: Breakfast cereal manufacturing | C30: 21361 | D30: 608550 | E30: 3378049 | F30: 81871 | G30: 87455 | H30: 11168117 | I30: 2.11 | J30: 5.29 | K30: 2009
A31: 311230 | B31: Breakfast cereal manufacturing | C31: 21273 | D31: 631585 | E31: 3172920 | F31: 75688 | G31: 90216 | H31: 10651105 | I31: 1.55 | J31: 8.61 | K31: 2010
A32: 311230 | B32: Breakfast cereal manufacturing | C32: 21361 | D32: 608550 | E32: 3378049 | F32: 81871 | G32: 87455 | H32: 11168117 | I32: 2.11 | J32: 5.29 | K32: 2009
A33: 3113 | B33: Sugar & confectionery product mfg | C33: 92877 | D33: 1858023 | E33: 14939623 | F33: 347917 | G33: 241138 | H33: 28963140 | I33: 1.55 | J33: 8.61 | K33: 2010
A34: 3113 | B34: Sugar & confectionery product mfg | C34: 90800 | D34: 1764313 | E34: 13832826 | F34: 362394 | G34: 224960 | H34: 27492027 | I34: 2.11 | J34: 5.29 | K34: 2009
A35: 31131 | B35: Sugar manufacturing | C35: 22431 | D35: 469657 | E35: 5154015 | F35: 250100 | G35: 71967 | H35: 8206088 | I35: 1.55 | J35: 8.61 | K35: 2010
A36: 31131 | B36: Sugar manufacturing | C36: 21464 | D36: 436949 | E36: 4704524 | F36: 256595 | G36: 68042 | H36: 7522955 | I36: 2.11 | J36: 5.29 | K36: 2009
A37: 311313 | B37: Beet sugar manufacturing | C37: 11571 | D37: 226266 | E37: 1973769 | F37: 152298 | G37: 41557 | H37: 3518774 | I37: 1.55 | J37: 8.61 | K37: 2010
A38: 311313 | B38: Beet sugar manufacturing | C38: 11210 | D38: 218468 | E38: 1774902 | F38: 156523 | G38: 38735 | H38: 3213436 | I38: 2.11 | J38: 5.29 | K38: 2009
A39: 31131N | B39: Sugar cane mills and refining | C39: 10860 | D39: 243391 | E39: 3180246 | F39: 97802 | G39: 30410 | H39: 4687314 | I39: 1.55 | J39: 8.61 | K39: 2010
A40: 31131N | B40: Sugar cane mills and refining | C40: 10254 | D40: 218481 | E40: 2929622 | F40: 100072 | G40: 29307 | H40: 4309519 | I40: 2.11 | J40: 5.29 | K40: 2009
A41: 31132 | B41: Chocolate and confectionery manufacturing from cacao beans | C41: 10044 | D41: 224042 | E41: 3212729 | F41: 15468 | G41: 34816 | H41: 4548531 | I41: 1.55 | J41: 8.61 | K41: 2010
A42: 31132 | B42: Chocolate and confectionery manufacturing from cacao beans | C42: 10696 | D42: 217723 | E42: 2709336 | F42: 18882 | G42: 31070 | H42: 4138513 | I42: 2.11 | J42: 5.29 | K42: 2009
A43: 311320 | B43: Chocolate and confectionery manufacturing from cacao beans | C43: 10044 | D43: 224042 | E43: 3212729 | F43: 15468 | G43: 34816 | H43: 4548531 | I43: 1.55 | J43: 8.61 | K43: 2010
A44: 311320 | B44: Chocolate and confectionery manufacturing from cacao beans | C44: 10696 | D44: 217723 | E44: 2709336 | F44: 18882 | G44: 31070 | H44: 4138513 | I44: 2.11 | J44: 5.29 | K44: 2009
A45: 31133 | B45: Confectionery manufacturing from purchased chocolate | C45: 35576 | D45: 703800 | E45: 3919602 | F45: 55384 | G45: 81425 | H45: 9829983 | I45: 1.55 | J45: 8.61 | K45: 2010
A46: 31133 | B46: Confectionery manufacturing from purchased chocolate | C46: 34615 | D46: 661849 | E46: 3881437 | F46: 58969 | G46: 77735 | H46: 9615935 | I46: 2.11 | J46: 5.29 | K46: 2009
A47: 311330 | B47: Confectionery manufacturing from purchased chocolate | C47: 35576 | D47: 703800 | E47: 3919602 | F47: 55384 | G47: 81425 | H47: 9829983 | I47: 1.55 | J47: 8.61 | K47: 2010
A48: 311330 | B48: Confectionery manufacturing from purchased chocolate | C48: 34615 | D48: 661849 | E48: 3881437 | F48: 58969 | G48: 77735 | H48: 9615935 | I48: 2.11 | J48: 5.29 | K48: 2009
A49: 31134 | B49: Nonchocolate confectionery manufacturing | C49: 24826 | D49: 460523 | E49: 2653277 | F49: 26965 | G49: 52929 | H49: 6378538 | I49: 1.55 | J49: 8.61 | K49: 2010
A50: 31134 | B50: Nonchocolate confectionery manufacturing | C50: 24026 | D50: 447792 | E50: 2537529 | F50: 27949 | G50: 48112 | H50: 6214624 | I50: 2.11 | J50: 5.29 | K50: 2009
A51: 311340 | B51: Nonchocolate confectionery manufacturing | C51: 24826 | D51: 460523 | E51: 2653277 | F51: 26965 | G51: 52929 | H51: 6378538 | I51: 1.55 | J51: 8.61 | K51: 2010
A52: 311340 | B52: Nonchocolate confectionery manufacturing | C52: 24026 | D52: 447792 | E52: 2537529 | F52: 27949 | G52: 48112 | H52: 6214624 | I52: 2.11 | J52: 5.29 | K52: 2009
A53: 3114 | B53: Fruit & vegetable preserving & specialty food mfg | C53: 274634 | D53: 4649815 | E53: 34986614 | F53: 684496 | G53: 694800 | H53: 64330889 | I53: 1.55 | J53: 8.61 | K53: 2010
A54: 3114 | B54: Fruit & vegetable preserving & specialty food mfg | C54: 278865 | D54: 4639382 | E54: 35730274 | F54: 820496 | G54: 722355 | H54: 64754922 | I54: 2.11 | J54: 5.29 | K54: 2009
A55: 31141 | B55: Frozen food manufacturing | C55: 142303 | D55: 2222991 | E55: 14108123 | F55: 229239 | G55: 359125 | H55: 26791199 | I55: 1.55 | J55: 8.61 | K55: 2010
A56: 31141 | B56: Frozen food manufacturing | C56: 141609 | D56: 2172208 | E56: 13911871 | F56: 293250 | G56: 387333 | H56: 26428234 | I56: 2.11 | J56: 5.29 | K56: 2009
A57: 31141M | B57: Frozen food manufacturing | C57: 142303 | D57: 2222991 | E57: 14108123 | F57: 229239 | G57: 359125 | H57: 26791199 | I57: 1.55 | J57: 8.61 | K57: 2010
A58: 31141M | B58: Frozen food manufacturing | C58: 141609 | D58: 2172208 | E58: 13911871 | F58: 293250 | G58: 387333 | H58: 26428234 | I58: 2.11 | J58: 5.29 | K58: 2009
A59: 31142 | B59: Fruit and vegetable canning, pickling, and drying | C59: 132330 | D59: 2426824 | E59: 20878491 | F59: 455257 | G59: 335675 | H59: 37539689 | I59: 1.55 | J59: 8.61 | K59: 2010
A60: 31142 | B60: Fruit and vegetable canning, pickling, and drying | C60: 137256 | D60: 2467174 | E60: 21818404 | F60: 527246 | G60: 335023 | H60: 38326688 | I60: 2.11 | J60: 5.29 | K60: 2009
A61: 31142M | B61: Fruit and vegetable canning, pickling, and drying | C61: 132330 | D61: 2426824 | E61: 20878491 | F61: 455257 | G61: 335675 | H61: 37539689 | I61: 1.55 | J61: 8.61 | K61: 2010
A62: 31142M | B62: Fruit and vegetable canning, pickling, and drying | C62: 137256 | D62: 2467174 | E62: 21818404 | F62: 527246 | G62: 335023 | H62: 38326688 | I62: 2.11 | J62: 5.29 | K62: 2009
A63: 3115 | B63: Dairy product mfg | C63: 198107 | D63: 4159433 | E63: 63502694 | F63: 536644 | G63: 708837 | H63: 94101868 | I63: 1.55 | J63: 8.61 | K63: 2010
A64: 3115 | B64: Dairy product mfg | C64: 194349 | D64: 3990238 | E64: 55906435 | F64: 536746 | G64: 678088 | H64: 84484189 | I64: 2.11 | J64: 5.29 | K64: 2009
A65: 31151 | B65: Dairy product (except frozen) manufacturing | C65: 168362 | D65: 3530677 | E65: 59674088 | F65: 517728 | G65: 605352 | H65: 86734058 | I65: 1.55 | J65: 8.61 | K65: 2010
A66: 31151 | B66: Dairy product (except frozen) manufacturing | C66: 164609 | D66: 3401655 | E66: 52193149 | F66: 514908 | G66: 574975 | H66: 76844031 | I66: 2.11 | J66: 5.29 | K66: 2009
A67: 311513 | B67: Cheese manufacturing | C67: 76113 | D67: 1447970 | E67: 27655414 | F67: 201009 | G67: 217363 | H67: 35806357 | I67: 1.55 | J67: 8.61 | K67: 2010
A68: 311513 | B68: Cheese manufacturing | C68: 70415 | D68: 1357925 | E68: 23493186 | F68: 197496 | G68: 190164 | H68: 30603935 | I68: 2.11 | J68: 5.29 | K68: 2009
A69: 311514 | B69: Dry, condensed, and evaporated dairy product manufacturing | C69: 21701 | D69: 483184 | E69: 8160116 | F69: 127638 | G69: 108954 | H69: 14554203 | I69: 1.55 | J69: 8.61 | K69: 2010
A70: 311514 | B70: Dry, condensed, and evaporated dairy product manufacturing | C70: 21496 | D70: 461045 | E70: 7275462 | F70: 136495 | G70: 102653 | H70: 12659413 | I70: 2.11 | J70: 5.29 | K70: 2009
A71: 31151N | B71: Fluid milk and butter manufacturing | C71: 70549 | D71: 1599524 | E71: 23858558 | F71: 189081 | G71: 279035 | H71: 36373498 | I71: 1.55 | J71: 8.61 | K71: 2010
A72: 31151N | B72: Fluid milk and butter manufacturing | C72: 72699 | D72: 1582686 | E72: 21424501 | F72: 180917 | G72: 282158 | H72: 33580684 | I72: 2.11 | J72: 5.29 | K72: 2009
A73: 31152 | B73: Ice cream and frozen dessert manufacturing | C73: 29745 | D73: 628756 | E73: 3828606 | F73: 18915 | G73: 103485 | H73: 7367810 | I73: 1.55 | J73: 8.61 | K73: 2010
A74: 31152 | B74: Ice cream and frozen dessert manufacturing | C74: 29740 | D74: 588583 | E74: 3713286 | F74: 21838 | G74: 103114 | H74: 7640158 | I74: 2.11 | J74: 5.29 | K74: 2009
A75: 311520 | B75: Ice cream and frozen dessert manufacturing | C75: 29745 | D75: 628756 | E75: 3828606 | F75: 18915 | G75: 103485 | H75: 7367810 | I75: 1.55 | J75: 8.61 | K75: 2010
A76: 311520 | B76: Ice cream and frozen dessert manufacturing | C76: 29740 | D76: 588583 | E76: 3713286 | F76: 21838 | G76: 103114 | H76: 7640158 | I76: 2.11 | J76: 5.29 | K76: 2009
A77: 3116 | B77: Animal slaughtering & processing | C77: 871557 | D77: 11825908 | E77: 118735983 | F77: 1180176 | G77: 1626687 | H77: 175588599 | I77: 1.55 | J77: 8.61 | K77: 2010
A78: 3116 | B78: Animal slaughtering & processing | C78: 901256 | D78: 11776635 | E78: 110082824 | F78: 1024986 | G78: 1309982 | H78: 163124976 | I78: 2.11 | J78: 5.29 | K78: 2009
A79: 31161 | B79: Animal slaughtering and processing | C79: 871557 | D79: 11825908 | E79: 118735983 | F79: 1180176 | G79: 1626687 | H79: 175588599 | I79: 1.55 | J79: 8.61 | K79: 2010
A80: 31161 | B80: Animal slaughtering and processing | C80: 901256 | D80: 11776635 | E80: 110082824 | F80: 1024986 | G80: 1309982 | H80: 163124976 | I80: 2.11 | J80: 5.29 | K80: 2009
A81: 311615 | B81: Poultry processing | C81: 405431 | D81: 4897238 | E81: 28873488 | F81: 490283 | G81: 813486 | H81: 51133965 | I81: 1.55 | J81: 8.61 | K81: 2010
A82: 311615 | B82: Poultry processing | C82: 422634 | D82: 4981790 | E82: 29891762 | F82: 339408 | G82: 580019 | H82: 51957051 | I82: 2.11 | J82: 5.29 | K82: 2009
A83: 31161N | B83: Animal (except poultry) slaughtering and processing | C83: 466126 | D83: 6928670 | E83: 89862495 | F83: 689893 | G83: 813202 | H83: 124454634 | I83: 1.55 | J83: 8.61 | K83: 2010
A84: 31161N | B84: Animal (except poultry) slaughtering and processing | C84: 478622 | D84: 6794846 | E84: 80191062 | F84: 685578 | G84: 729963 | H84: 111167925 | I84: 2.11 | J84: 5.29 | K84: 2009
A85: 3117 | B85: Seafood product preparation & packaging | C85: 47554 | D85: 690544 | E85: 6137745 | F85: 126497 | G85: 82824 | H85: 10680882 | I85: 1.55 | J85: 8.61 | K85: 2010
A86: 3117 | B86: Seafood product preparation & packaging | C86: 50008 | D86: 683420 | E86: 6095093 | F86: 155819 | G86: 85146 | H86: 10541655 | I86: 2.11 | J86: 5.29 | K86: 2009
A87: 31171 | B87: Seafood product preparation and packaging | C87: 47554 | D87: 690544 | E87: 6137745 | F87: 126497 | G87: 82824 | H87: 10680882 | I87: 1.55 | J87: 8.61 | K87: 2010
A88: 31171 | B88: Seafood product preparation and packaging | C88: 50008 | D88: 683420 | E88: 6095093 | F88: 155819 | G88: 85146 | H88: 10541655 | I88: 2.11 | J88: 5.29 | K88: 2009
A89: 31171M | B89: Seafood product preparation and packaging | C89: 47554 | D89: 690544 | E89: 6137745 | F89: 126497 | G89: 82824 | H89: 10680882 | I89: 1.55 | J89: 8.61 | K89: 2010
A90: 31171M | B90: Seafood product preparation and packaging | C90: 50008 | D90: 683420 | E90: 6095093 | F90: 155819 | G90: 85146 | H90: 10541655 | I90: 2.11 | J90: 5.29 | K90: 2009
A91: 3118 | B91: Bakeries & tortilla mfg | C91: 321186 | D91: 5499303 | E91: 22879597 | F91: 348047 | G91: 587297 | H91: 58887781 | I91: 1.55 | J91: 8.61 | K91: 2010
A92: 3118 | B92: Bakeries & tortilla mfg | C92: 323906 | D92: 5313601 | E92: 23847962 | F92: 402569 | G92: 583718 | H92: 58939598 | I92: 2.11 | J92: 5.29 | K92: 2009
A93: 31181 | B93: Bread and bakery product manufacturing | C93: 226871 | D93: 3737530 | E93: 12824198 | F93: 224423 | G93: 383916 | H93: 34789282 | I93: 1.55 | J93: 8.61 | K93: 2010
A94: 31181 | B94: Bread and bakery product manufacturing | C94: 224563 | D94: 3581214 | E94: 13535616 | F94: 262722 | G94: 384009 | H94: 35258422 | I94: 2.11 | J94: 5.29 | K94: 2009
A95: 31181M | B95: Bread and bakery product manufacturing | C95: 226871 | D95: 3737530 | E95: 12824198 | F95: 224423 | G95: 383916 | H95: 34789282 | I95: 1.55 | J95: 8.61 | K95: 2010
A96: 31181M | B96: Bread and bakery product manufacturing | C96: 224563 | D96: 3581214 | E96: 13535616 | F96: 262722 | G96: 384009 | H96: 35258422 | I96: 2.11 | J96: 5.29 | K96: 2009
A97: 31182 | B97: Cookie, cracker, and pasta manufacturing | C97: 72337 | D97: 1459411 | E97: 8762415 | F97: 94786 | G97: 168703 | H97: 20984200 | I97: 1.55 | J97: 8.61 | K97: 2010
A98: 31182 | B98: Cookie, cracker, and pasta manufacturing | C98: 76796 | D98: 1439232 | E98: 8941155 | F98: 106110 | G98: 163666 | H98: 20540404 | I98: 2.11 | J98: 5.29 | K98: 2009
A99: 31182M | B99: Cookie, cracker, and pasta manufacturing | C99: 72337 | D99: 1459411 | E99: 8762415 | F99: 94786 | G99: 168703 | H99: 20984200 | I99: 1.55 | J99: 8.61 | K99: 2010
A100: 31182M | B100: Cookie, cracker, and pasta manufacturing | C100: 76796 | D100: 1439232 | E100: 8941155 | F100: 106110 | G100: 163666 | H100: 20540404 | I100: 2.11 | J100: 5.29 | K100: 2009
A101: 31183 | B101: Tortilla manufacturing | C101: 21979 | D101: 302361 | E101: 1292984 | F101: 28838 | G101: 34677 | H101: 3114300 | I101: 1.55 | J101: 8.61 | K101: 2010
A102: 31183 | B102: Tortilla manufacturing | C102: 22547 | D102: 293154 | E102: 1371191 | F102: 33737 | G102: 36043 | H102: 3140772 | I102: 2.11 | J102: 5.29 | K102: 2009
A103: 311830 | B103: Tortilla manufacturing | C103: 21979 | D103: 302361 | E103: 1292984 | F103: 28838 | G103: 34677 | H103: 3114300 | I103: 1.55 | J103: 8.61 | K103: 2010
A104: 311830 | B104: Tortilla manufacturing | C104: 22547 | D104: 293154 | E104: 1371191 | F104: 33737 | G104: 36043 | H104: 3140772 | I104: 2.11 | J104: 5.29 | K104: 2009
A105: 3119 | B105: Other food mfg | C105: 221519 | D105: 3810578 | E105: 37226437 | F105: 430942 | G105: 510662 | H105: 84015093 | I105: 1.55 | J105: 8.61 | K105: 2010
A106: 3119 | B106: Other food mfg | C106: 211430 | D106: 3578190 | E106: 36400770 | F106: 471892 | G106: 495850 | H106: 81605749 | I106: 2.11 | J106: 5.29 | K106: 2009
A107: 31191 | B107: Snack food manufacturing | C107: 55119 | D107: 1013517 | E107: 10688234 | F107: 188192 | G107: 128571 | H107: 27172331 | I107: 1.55 | J107: 8.61 | K107: 2010
A108: 31191 | B108: Snack food manufacturing | C108: 53300 | D108: 927530 | E108: 10234372 | F108: 220327 | G108: 126361 | H108: 26203463 | I108: 2.11 | J108: 5.29 | K108: 2009
A109: 31191M | B109: Snack food manufacturing | C109: 55119 | D109: 1013517 | E109: 10688234 | F109: 188192 | G109: 128571 | H109: 27172331 | I109: 1.55 | J109: 8.61 | K109: 2010
A110: 31191M | B110: Snack food manufacturing | C110: 53300 | D110: 927530 | E110: 10234372 | F110: 220327 | G110: 126361 | H110: 26203463 | I110: 2.11 | J110: 5.29 | K110: 2009
